Workbook

Sheet Introduction
B2: LED Streetlights Across BC Project Evaluation Tool
B3: Disclaimer:
B5: • The Government of British Columbia ("The Province") makes no representation or warranty with respect to the accuracy or completeness of any estimates generated by the Estimator. The Province accepts no liability of any kind arising out of a user’s use of or reliance of the Estimator.
B7: • The estimates are intended for illustrative purposes only. They are based on values entered by the user and should not be considered an exact forecast of incentives.
B9: • The Estimator is intended for municipal organizations with street lighting to estimate the financial benefits of LED and controls with street lighting. This Estimator is to provide estimates of financial and energy savings as a starting point, but these estimates can vary widely, and customers are responsible for verifying their actual energy savings.
B11: • The tool only applies to existing street lights located in the province of British Columbia, within the area served by BC Hydro, and under the 1702 or 1703 tariffs.
B13: • All calculations are based on various assumptions and it is the sole responsibility of each customer to verify input and output data.
B15: • The customer indemnifies BC Hydro and The Province of any decisions made by the customer based on information provided by this Estimator.

Sheet Data Input and Instructions (hidden)
F1: ="LED Street Lights Project Evaluation for "&C3 -> LED Street Lights Project Evaluation for
B2: Step 1: General Information | W2: PROJ_TYPES | X2: RATES | Z2: YES_NO | AA2: PROJ_YEARS
B3: Name of Jurisdiction | W3: LED retrofit only | X3: 1702 | Z3: YES | AA3: 1
B4: Contact Name | W4: LED retrofit with adaptive controls | X4: 1703 | Z4: NO | AA4: 2
B5: Contact Title | W5: Adaptive controls only | AA5: 3
B6: Contact Telephone # | AA6: 4
B7: Contact Email | AA7: 5
B8: Date
B10: Step 2: Inventory
B11: Rate | C11: 1702
B12: Total Streetlight Quantities | C12: 1701 Tariff | D12: 1702/1703 Tariff
B13: HPS or other 50 Watts
B14: HPS or other 70 Watts
B15: HPS or other 100 Watts
B16: HPS or other 150 Watts
B17: HPS or other 200 Watts
B18: HPS or other 250 Watts
B19: HPS or other 400 Watts
B20: HPS or other 1000 Watts
B21: Totals | C21: =SUM(C13:C20) -> 0 | D21: =SUM(D13:D20) -> 0
B23: Step 3: Proposed Project
B24: Project Type | C24: LED retrofit only | E24: =IF($C$24="LED retrofit only",1,IF($C$24="LED retrofit with adaptive controls",2,IF($C$24="Adaptive controls only",3,4))) -> 1
B25: Number of years for implementation (1-5 yr) | C25: 1 | D25: Financial evaluation will be done based on these values.
B26: HPS or other 50 Watts to retrofit
B27: HPS or other 70 Watts to retrofit | C27: 0
B28: HPS or other 100 Watts to retrofit
B29: HPS or other 150 Watts to retrofit
B30: HPS or other 200 Watts to retrofit
B31: HPS or other 250 Watts to retrofit
B32: HPS or other 400 Watts to retrofit | C32: 0
B33: HPS or other 1000 Watts to retrofit
B34: Totals | C34: =SUM(C26:C33) -> 0
B36: Step 4: Incentives and Financial Aspects
B37: Would you like to modify any of the values in RED? Please select YES or NO
B38: Unit Prices of LED Technology | E38: def
B39: Unit pricing LED 50 Watts ($) | C39: 200 | D39: NO | E39: 200
B40: Unit pricing LED 70 Watts ($) | C40: 215 | D40: NO | E40: 215
B41: Unit pricing LED 100 Watts ($) | C41: 241.65 | D41: NO | E41: 250
B42: Unit pricing LED 150 Watts ($) | C42: 261.68 | D42: NO | E42: 299
B43: Unit pricing LED 200 Watts ($) | C43: 343 | D43: NO | E43: 392
B44: Unit pricing LED 250 Watts ($) | C44: 417.63 | D44: NO | E44: 491
B45: Unit pricing LED 400 Watts ($) | C45: 451.53 | D45: NO | E45: 864
B46: Unit pricing LED 1000 Watts ($) | C46: 700 | D46: NO | E46: 1544
B47: Unit cost of installation per LED street light($) | C47: 160 | D47: NO | E47: 160
B48: Unit cost of adaptive controls for LED street lights ($) | C48: 125 | D48: NO | E48: 125
B49: Ballast Losses
B50: Ballast losses 50 Watts (%) | C50: 0.35 | D50: NO | E50: 0.35
B51: Ballast losses 70 Watts (%) | C51: 0.3 | D51: NO | E51: 0.3
B52: Ballast losses 100 Watts (%) | C52: 0.3 | D52: NO | E52: 0.3
B53: Ballast losses 150 Watts (%) | C53: 0.25 | D53: NO | E53: 0.25
B54: Ballast losses 200 Watts (%) | C54: 0.2 | D54: NO | E54: 0.2
B55: Ballast losses 250 Watts (%) | C55: 0.18 | D55: NO | E55: 0.18
B56: Ballast losses 400 Watts (%) | C56: 0.14 | D56: NO | E56: 0.14
B57: Ballast losses 1000 Watts (%) | C57: 0.11 | D57: NO | E57: 0.11
B58: Energy Efficiency Potential of LED Technology (%)
B59: Estimated energy efficiency of LED without adaptive controls (%) | C59: 0.5 | D59: NO | E59: 0.5
B60: Estimated energy efficiency with LED + adaptive controls (%) | C60: 0.7 | D60: NO | E60: 0.7
B61: Estimated efficiency with adaptive controls only (%) | C61: 0.2 | D61: NO | E61: 0.2
B62: Electricity Rates ($ per watt per month) & Electricity Rate Annual Increase (%)
B63: Electricity rate ($ per watt per month) | C63: =0.0275*1.09 -> 0.029975 | D63: NO | E63: 0.0275
B64: Electricity rate annual increase (%) | C64: 0.04125 | D64: NO | E64: 0.03
B65: Incentives & Volume Discounts
B66: Joint procurement discounts (% of total cost) | C66: 0 | D66: YES | E66: 0.1
B67: Other incentives (% of total cost) | C67: 0 | D67: NO | E67: 0
B68: Inflation (%) | C68: 0.02 | D68: NO | E68: 0.02
B69: Discount rate (%) | C69: 0.02 | D69: NO | E69: 0.04
B70: Carbon Price ($) & Carbon Price Rate Annual Increase (%)
B71: Carbon price ($ Cost of Carbon Neutral Government Program) | C71: 25 | D71: NO | E71: 25
B72: Carbon price rate annual increase(%) | C72: 0 | D72: NO | E72: 0

Sheet Summary of results (hidden)
B2: Key Values (15-year evaluation): | E2: Summary of Results (15-year evaluation)
B3: Total Energy Savings (kWh) | C3: =F18 -> 0 | F3: ="LED Street Lights Project Evaluation for "&'Data Input and Instructions'!C3 -> LED Street Lights Project Evaluation for
B4: Total $ Savings | C4: =F31 -> 0 | F4: =+'Data Input and Instructions'!C8 -> 00:00:00
B5: Post-Incentive ROI | C5: =F32 ->  | E5: Part 1: Costs
B6: Post-Incentive Payback | C6: =F33 -> 1 | E6: Business As Usual (BAU) HPS or other type of luminaries | F6: =CHOOSE('Data Input and Instructions'!$E$24,G7,H7,I7,"N/A")&" (Post-Incentive)" -> LED without adaptive controls (Post-Incentive)
B7: Pre-Incentive ROI | C7: =F21 ->  | G7: LED without adaptive controls | H7: LED with adaptive controls | I7: Adaptive controls only (No LED)
B8: Pre-Incentive Payback | C8: =F22 -> 1
B10: Total Cost ($ Nominal) | E10: =+SUM(Comparative!D9:D12) -> 0 | F10: =CHOOSE('Data Input and Instructions'!$E$24,G10,H10,I10,"N/A") -> 0 | G10: =Comparative!D26+Comparative!D29+Comparative!D30+Comparative!D31+Comparative!D32-Comparative!D27-Comparative!D28 -> 0 | H10: =Comparative!D58+Comparative!D61+Comparative!D62+Comparative!D63+Comparative!D64-Comparative!D59-Comparative!D60 -> 0 | I10: =Comparative!D90+Comparative!D93+Comparative!D94+Comparative!D95+Comparative!D96-Comparative!D91-Comparative!D92 -> 0
B11: Total Cost ($ Present Value) | E11: =+Comparative!D21 -> 0 | F11: =CHOOSE('Data Input and Instructions'!$E$24,G11,H11,I11,"N/A") -> 0 | G11: =G12+G13 -> 0 | H11: =H12+H13 -> 0 | I11: =I12+I13 -> 0
B12: Capital ($ Present Value) | E12: =+Comparative!D15 -> 0 | F12: =CHOOSE('Data Input and Instructions'!$E$24,G12,H12,I12,"N/A") -> 0 | G12: =+Comparative!D34-Comparative!D35-Comparative!D36 -> 0 | H12: =+Comparative!D67-Comparative!D68-Comparative!D69 -> 0 | I12: =+Comparative!D99-Comparative!D100-Comparative!D101 -> 0
B13: Operation ($ Present Value) | E13: =+E11-E12 -> 0 | F13: =CHOOSE('Data Input and Instructions'!$E$24,G13,H13,I13,"N/A") -> 0 | G13: =Comparative!D37+Comparative!D38+Comparative!D39 -> 0 | H13: =Comparative!D70+Comparative!D71+Comparative!D72 -> 0 | I13: =Comparative!D102+Comparative!D103+Comparative!D104 -> 0
B14: Equivalent Annual Cost ($) | E14: =+Comparative!D23 -> 0 | F14: =CHOOSE('Data Input and Instructions'!$E$24,G14,H14,I14,"N/A") -> 0 | G14: =+Comparative!D45 -> 0 | H14: =+Comparative!D77 -> 0 | I14: =+Comparative!D109 -> 0
B15: Yearly Energy (15 year avg) | E15: =Comparative!F19 -> 0 | F15: =CHOOSE('Data Input and Instructions'!$E$24,G15,H15,I15,"N/A") -> 0 | G15: =Comparative!D41/15 -> 0 | H15: =Comparative!D65/15 -> 0 | I15: =Comparative!D97/15 -> 0
B17: Part 2: Savings before Incentives
B18: Total Energy Savings vs. BAU (KWh) | F18: =CHOOSE('Data Input and Instructions'!$E$24,G18,H18,I18,"N/A") -> 0 | G18: =+Comparative!D19-Comparative!D41 -> 0 | H18: =+Comparative!D19-Comparative!D65 -> 0 | I18: =+Comparative!D19-Comparative!D97 -> 0
B19: Total Savings vs. BAU ($ Present Value) | F19: =CHOOSE('Data Input and Instructions'!$E$24,G19,H19,I19,"N/A") -> 0 | G19: =Comparative!D15+Comparative!D16+Comparative!D17+Comparative!D18-Comparative!D34-Comparative!D37-Comparative!D38-Comparative!D39 -> 0 | H19: =Comparative!D15+Comparative!D16+Comparative!D17+Comparative!D18-Comparative!D67-Comparative!D70-Comparative!D71-Comparative!D72 -> 0 | I19: =Comparative!D15+Comparative!D16+Comparative!D17+Comparative!D18-Comparative!D99-Comparative!D102-Comparative!D103-Comparative!D104 -> 0
B20: Carbon Neutral Government Savings vs. BAU (CNG $) | F20: =CHOOSE('Data Input and Instructions'!$E$24,G20,H20,I20,"N/A") -> 0 | G20: =+Comparative!D50 -> 0 | H20: =+Comparative!D73 -> 0 | I20: =+Comparative!D105 -> 0
B21: ROI after Energy, Operational and CNG Savings (%) | F21: =CHOOSE('Data Input and Instructions'!$E$24,G21,H21,I21,"N/A") ->  | G21: =+Comparative!D54 ->  | H21: =+Comparative!D86 ->  | I21: =+Comparative!D118 -> 
B22: Payback Period after Energy, Operational and CNG savings (# of years) | F22: =CHOOSE('Data Input and Instructions'!$E$24,G22,H22,I22,"N/A") -> 1 | G22: =INDEX(Comparative!F122:T122,1,MATCH(Comparative!C127,Comparative!F127:T127,0)) -> 1 | H22: =INDEX(Comparative!F122:T122,1,MATCH(Comparative!C128,Comparative!F128:T128,0)) -> 1 | I22: =INDEX(Comparative!F122:T122,1,MATCH(Comparative!C129,Comparative!F129:T129,0)) -> 1
B24: Part 3: Incentives
B25: Other Incentives & Volume Discounts | F25: =CHOOSE('Data Input and Instructions'!$E$24,G25,H25,I25,"N/A") -> 0 | G25: =SUM(G26:G27) -> 0 | H25: =SUM(H26:H27) -> 0 | I25: =SUM(I26:I27) -> 0
B26: Joint Procurement Volume Discount ($) | F26: =CHOOSE('Data Input and Instructions'!$E$24,G26,H26,I26,"N/A") -> 0 | G26: =+Comparative!D35 -> 0 | H26: =+Comparative!D68 -> 0 | I26: =+Comparative!D100 -> 0
B27: Other Incentives ($) | F27: =CHOOSE('Data Input and Instructions'!$E$24,G27,H27,I27,"N/A") -> 0 | G27: =Comparative!D36 -> 0 | H27: =+Comparative!D69 -> 0 | I27: =+Comparative!D101 -> 0
B28: Total Cost after Incentives & Volume Discounts ($) | F28: =CHOOSE('Data Input and Instructions'!$E$24,G28,H28,I28,"N/A") -> 0 | G28: =+G11-G20-G26-G27 -> 0 | H28: =+H11-H20-H26-H27 -> 0 | I28: =+I11-I20-I26-I27 -> 0
B30: Part 4: Savings after Incentives
B31: Total Savings after Incentives & Volume Discounts vs. BAU ($) | F31: =CHOOSE('Data Input and Instructions'!$E$24,G31,H31,I31,"N/A") -> 0 | G31: =+G19+G20+G26+G27 -> 0 | H31: =+H19+H20+H26+H27 -> 0 | I31: =+I19+I20+I26+I27 -> 0
B32: ROI after Incentives & Volume Discounts (%) | F32: =CHOOSE('Data Input and Instructions'!$E$24,G32,H32,I32,"N/A") ->  | G32: =+Comparative!D55 ->  | H32: =+Comparative!D87 ->  | I32: =+Comparative!D119 -> 
B33: Payback Period after Incentives & Volume Discounts (# of years) | F33: =CHOOSE('Data Input and Instructions'!$E$24,G33,H33,I33,"N/A") -> 1 | G33: =INDEX(Comparative!F122:T122,1,MATCH(Comparative!C137,Comparative!F137:T137,0)) -> 1 | H33: =INDEX(Comparative!F122:T122,1,MATCH(Comparative!C138,Comparative!F138:T138,0)) -> 1 | I33: =INDEX(Comparative!F122:T122,1,MATCH(Comparative!C139,Comparative!F139:T139,0)) -> 1

Sheet PrintSheet (hidden)
B2: LED Streetlight Project Evaluation:
B3: ='Data Input and Instructions'!C24 -> LED retrofit only
B5: ='Data Input and Instructions'!C3 -> 0 | H5: ='Data Input and Instructions'!C8 -> 00:00:00
B7: Project Summary | F7: Financial Summary
B9: ='Data Input and Instructions'!C25&"-year implementation" -> 1-year implementation | F9: Total Energy Savings (kWh) | H9: ='Summary of results'!C3 -> 0
B10: ="BC Hydro rate "&'Data Input and Instructions'!C11 -> BC Hydro rate 1702 | F10: Total $ Savings | H10: ='Summary of results'!C4 -> 0
F11: Post-Incentive ROI | H11: ='Summary of results'!C5 -> 
F12: Post-Incentive Payback | H12: ='Summary of results'!C6 -> 1
B13: ="Luminaire type "&CHOOSE('Data Input and Instructions'!E24,"retrofitted with LED:","retrofitted with LED + controls:","retrofitted with controls:","N/A") -> Luminaire type retrofitted with LED: | C13: Luminaire Count | D13: % of total inventory
B14: ='Data Input and Instructions'!B13 -> HPS or other 50 Watts | C14: ='Data Input and Instructions'!C26 -> 0 | D14: =IFERROR(C14/'Data Input and Instructions'!D13,0) -> 0 | G14: Business As Usual (BAU) HPS or other type of luminaries | H14: Project
B15: ='Data Input and Instructions'!B14 -> HPS or other 70 Watts | C15: ='Data Input and Instructions'!C27 -> 0 | D15: =IFERROR(C15/'Data Input and Instructions'!D14,0) -> 0 | F15: Capital ($ Present Value) | G15: ='Summary of results'!E12 -> 0 | H15: ='Summary of results'!F12 -> 0
B16: ='Data Input and Instructions'!B15 -> HPS or other 100 Watts | C16: ='Data Input and Instructions'!C28 -> 0 | D16: =IFERROR(C16/'Data Input and Instructions'!D15,0) -> 0 | F16: Operation ($ Present Value) | G16: ='Summary of results'!E13 -> 0 | H16: ='Summary of results'!F13 -> 0
B17: ='Data Input and Instructions'!B16 -> HPS or other 150 Watts | C17: ='Data Input and Instructions'!C29 -> 0 | D17: =IFERROR(C17/'Data Input and Instructions'!D16,0) -> 0 | F17: Total Cost ($ Nominal) | G17: ='Summary of results'!E10 -> 0 | H17: ='Summary of results'!F10 -> 0
B18: ='Data Input and Instructions'!B17 -> HPS or other 200 Watts | C18: ='Data Input and Instructions'!C30 -> 0 | D18: =IFERROR(C18/'Data Input and Instructions'!D17,0) -> 0 | F18: Total Cost ($ Present Value) | G18: ='Summary of results'!E11 -> 0 | H18: ='Summary of results'!F11 -> 0
B19: ='Data Input and Instructions'!B18 -> HPS or other 250 Watts | C19: ='Data Input and Instructions'!C31 -> 0 | D19: =IFERROR(C19/'Data Input and Instructions'!D18,0) -> 0
B20: ='Data Input and Instructions'!B19 -> HPS or other 400 Watts | C20: ='Data Input and Instructions'!C32 -> 0 | D20: =IFERROR(C20/'Data Input and Instructions'!D19,0) -> 0
B21: ='Data Input and Instructions'!B20 -> HPS or other 1000 Watts | C21: ='Data Input and Instructions'!C33 -> 0 | D21: =IFERROR(C21/'Data Input and Instructions'!D20,0) -> 0 | F21: Incentives
F22: ='Summary of results'!B26 -> Joint Procurement Volume Discount ($) | G22: ='Summary of results'!F26 -> 0
F23: ='Summary of results'!B27 -> Other Incentives ($) | G23: ='Summary of results'!F27 -> 0
B24: Total Yearly Energy (kWh) | F24: Total Incentives ($) | G24: =SUM(G22:G23) -> 0
B25: ='Summary of results'!E15 -> 0 | C25: ='Summary of results'!F15 -> 0

Sheet Comparative (hidden)
F1: LED Street Lights Project Evaluation for | J1: =+'Data Input and Instructions'!C3 -> 0
B2: Discount Rate | C2: ='Data Input and Instructions'!C69 -> 0.02
F4: Year
E5: 0 | F5: 1 | G5: 2 | H5: 3 | I5: 4 | J5: 5 | K5: 6 | L5: 7 | M5: 8 | N5: 9 | O5: 10 | P5: 11 | Q5: 12 | R5: 13 | S5: 14 | T5: 15 | U5: 16 | V5: 17 | W5: 18 | X5: 19 | Y5: 20 | Z5: 16
C6: Discount Factor | E6: =-PV($C$2,E5,0,1,0) -> 1 | F6: 0.9803921569 | G6: 0.9611687812 | H6: 0.9423223345 | I6: 0.923845426 | J6: 0.9057308098 | K6: 0.8879713822 | L6: 0.8705601786 | M6: 0.8534903712 | N6: 0.8367552659 | O6: 0.8203482999 | P6: 0.8042630391 | Q6: 0.7884931756 | R6: 0.7730325251 | S6: 0.7578750246 | T6: =-PV($C$2,T5,0,1,0) -> 0.74301473 | U6: =-PV($C$2,U5,0,1,0) -> 0.7284458137 | V6: 0.7141625625 | W6: 0.700159375 | X6: 0.6864307598 | Y6: 0.6729713331 | Z6: 0.7284458137
A7: Business as Usual Scenario with High Pressure Sodium Lamps (HPS)
B9: Nominal Value | C9: Capital Cost (replacements) | D9: =SUM(F9:T9) -> 0 | E9: =SUM('Unit Pricing BAU'!H45:H51) -> 0 | F9: =SUM('Unit Pricing BAU'!J44:J51)+SUM('Unit Pricing BAU'!J4:J11) -> 0 | G9: =SUM('Unit Pricing BAU'!K44:K51)+SUM('Unit Pricing BAU'!K4:K11) -> 0 | H9: =SUM('Unit Pricing BAU'!L44:L51)+SUM('Unit Pricing BAU'!L4:L11) -> 0 | I9: =SUM('Unit Pricing BAU'!M44:M51)+SUM('Unit Pricing BAU'!M4:M11) -> 0 | J9: =SUM('Unit Pricing BAU'!N44:N51)+SUM('Unit Pricing BAU'!N4:N11) -> 0 | K9: =SUM('Unit Pricing BAU'!O44:O51)+SUM('Unit Pricing BAU'!O4:O11) -> 0 | L9: =SUM('Unit Pricing BAU'!P44:P51)+SUM('Unit Pricing BAU'!P4:P11) -> 0 | M9: =SUM('Unit Pricing BAU'!Q44:Q51)+SUM('Unit Pricing BAU'!Q4:Q11) -> 0 | N9: =SUM('Unit Pricing BAU'!R44:R51)+SUM('Unit Pricing BAU'!R4:R11) -> 0 | O9: =SUM('Unit Pricing BAU'!S44:S51)+SUM('Unit Pricing BAU'!S4:S11) -> 0 | P9: =SUM('Unit Pricing BAU'!T44:T51)+SUM('Unit Pricing BAU'!T4:T11) -> 0 | Q9: =SUM('Unit Pricing BAU'!U44:U51)+SUM('Unit Pricing BAU'!U4:U11) -> 0 | R9: =SUM('Unit Pricing BAU'!V44:V51)+SUM('Unit Pricing BAU'!V4:V11) -> 0 | S9: =SUM('Unit Pricing BAU'!W44:W51)+SUM('Unit Pricing BAU'!W4:W11) -> 0 | T9: =SUM('Unit Pricing BAU'!X44:X51)+SUM('Unit Pricing BAU'!X4:X11) -> 0 | U9: =SUM('Unit Pricing BAU'!Y44:Y51)+SUM('Unit Pricing BAU'!Y4:Y11) -> 0 | V9: =SUM('Unit Pricing BAU'!Z44:Z51)+SUM('Unit Pricing BAU'!Z4:Z11) -> 0 | W9: =SUM('Unit Pricing BAU'!AA44:AA51)+SUM('Unit Pricing BAU'!AA4:AA11) -> 0 | X9: =SUM('Unit Pricing BAU'!AB44:AB51)+SUM('Unit Pricing BAU'!AB4:AB11) -> 0 | Y9: =SUM('Unit Pricing BAU'!AC44:AC51)+SUM('Unit Pricing BAU'!AC4:AC11) -> 0 | Z9: =SUM('Unit Pricing BAU'!AD44:AD51)+SUM('Unit Pricing BAU'!AD4:AD11) -> 0 | AA9: =SUM('Unit Pricing BAU'!AE44:AE51)+SUM('Unit Pricing BAU'!AE4:AE11) -> 0
C10: Energy | D10: =SUM(F10:Y10) -> 0 | E10: =SUM('Unit Pricing BAU'!H21:H27) -> 0 | F10: =SUM('Unit Pricing BAU'!J20:J27) -> 0 | G10: =SUM('Unit Pricing BAU'!K20:K27) -> 0 | H10: =SUM('Unit Pricing BAU'!L20:L27) -> 0 | I10: =SUM('Unit Pricing BAU'!M20:M27) -> 0 | J10: =SUM('Unit Pricing BAU'!N20:N27) -> 0 | K10: =SUM('Unit Pricing BAU'!O20:O27) -> 0 | L10: =SUM('Unit Pricing BAU'!P20:P27) -> 0 | M10: =SUM('Unit Pricing BAU'!Q20:Q27) -> 0 | N10: =SUM('Unit Pricing BAU'!R20:R27) -> 0 | O10: =SUM('Unit Pricing BAU'!S20:S27) -> 0 | P10: =SUM('Unit Pricing BAU'!T20:T27) -> 0 | Q10: =SUM('Unit Pricing BAU'!U20:U27) -> 0 | R10: =SUM('Unit Pricing BAU'!V20:V27) -> 0 | S10: =SUM('Unit Pricing BAU'!W20:W27) -> 0 | T10: =SUM('Unit Pricing BAU'!X20:X27) -> 0 | U10: =SUM('Unit Pricing BAU'!Y20:Y27) -> 0 | V10: =SUM('Unit Pricing BAU'!Z37:Z41) -> 0 | W10: =SUM('Unit Pricing BAU'!AA37:AA41) -> 0 | X10: =SUM('Unit Pricing BAU'!AB37:AB41) -> 0 | Y10: =SUM('Unit Pricing BAU'!AC37:AC41) -> 0 | Z10: =SUM('Unit Pricing BAU'!AD37:AD41) -> 0
C11: Reactive Maintenance | D11: =SUM(F11:Y11) -> 0 | E11: =SUM('Unit Pricing BAU'!H37:H43) -> 0 | F11: =SUM('Unit Pricing BAU'!J36:J43) -> 0 | G11: =SUM('Unit Pricing BAU'!K36:K43) -> 0 | H11: =SUM('Unit Pricing BAU'!L36:L43) -> 0 | I11: =SUM('Unit Pricing BAU'!M36:M43) -> 0 | J11: =SUM('Unit Pricing BAU'!N36:N43) -> 0 | K11: =SUM('Unit Pricing BAU'!O36:O43) -> 0 | L11: =SUM('Unit Pricing BAU'!P36:P43) -> 0 | M11: =SUM('Unit Pricing BAU'!Q36:Q43) -> 0 | N11: =SUM('Unit Pricing BAU'!R36:R43) -> 0 | O11: =SUM('Unit Pricing BAU'!S36:S43) -> 0 | P11: =SUM('Unit Pricing BAU'!T36:T43) -> 0 | Q11: =SUM('Unit Pricing BAU'!U36:U43) -> 0 | R11: =SUM('Unit Pricing BAU'!V36:V43) -> 0 | S11: =SUM('Unit Pricing BAU'!W36:W43) -> 0 | T11: =SUM('Unit Pricing BAU'!X36:X43) -> 0 | U11: =SUM('Unit Pricing BAU'!Y36:Y43) -> 0 | V11: =SUM('Unit Pricing BAU'!Z51:Z56) -> 0 | W11: =SUM('Unit Pricing BAU'!AA51:AA56) -> 0 | X11: =SUM('Unit Pricing BAU'!AB51:AB56) -> 0 | Y11: =SUM('Unit Pricing BAU'!AC51:AC56) -> 0 | Z11: =SUM('Unit Pricing BAU'!AD51:AD56) -> 0
C12: Scheduled Maintenance | D12: =SUM(F12:Y12) -> 0 | E12: =SUM('Unit Pricing BAU'!H53:H59) -> 0 | F12: =SUM('Unit Pricing BAU'!J52:J59) -> 0 | G12: =SUM('Unit Pricing BAU'!K52:K59) -> 0 | H12: =SUM('Unit Pricing BAU'!L52:L59) -> 0 | I12: =SUM('Unit Pricing BAU'!M52:M59) -> 0 | J12: =SUM('Unit Pricing BAU'!N52:N59) -> 0 | K12: =SUM('Unit Pricing BAU'!O52:O59) -> 0 | L12: =SUM('Unit Pricing BAU'!P52:P59) -> 0 | M12: =SUM('Unit Pricing BAU'!Q52:Q59) -> 0 | N12: =SUM('Unit Pricing BAU'!R52:R59) -> 0 | O12: =SUM('Unit Pricing BAU'!S52:S59) -> 0 | P12: =SUM('Unit Pricing BAU'!T52:T59) -> 0 | Q12: =SUM('Unit Pricing BAU'!U52:U59) -> 0 | R12: =SUM('Unit Pricing BAU'!V52:V59) -> 0 | S12: =SUM('Unit Pricing BAU'!W52:W59) -> 0 | T12: =SUM('Unit Pricing BAU'!X52:X59) -> 0 | U12: =SUM('Unit Pricing BAU'!Y52:Y59) -> 0 | V12: =SUM('Unit Pricing BAU'!Z66:Z70) -> 0 | W12: =SUM('Unit Pricing BAU'!AA66:AA70) -> 0 | X12: =SUM('Unit Pricing BAU'!AB66:AB70) -> 0 | Y12: =SUM('Unit Pricing BAU'!AC66:AC70) -> 0 | Z12: =SUM('Unit Pricing BAU'!AD66:AD70) -> 0
B15: Present Value | C15: =C9 -> Capital Cost (replacements) | D15: =SUM(F15:T15) -> 0 | E15: =E9*E$6 -> 0 | F15: 0 | G15: 0 | H15: 0 | I15: 0 | J15: 0 | K15: 0 | L15: 0 | M15: 0 | N15: 0 | O15: 0 | P15: 0 | Q15: 0 | R15: 0 | S15: 0 | T15: =T9*T$6 -> 0 | U15: =U9*U$6 -> 0 | V15: 0 | W15: 0 | X15: 0 | Y15: 0 | Z15: 0
C16: =C10 -> Energy | D16: =SUM(F16:T16) -> 0 | E16: =E10*E$6 -> 0 | F16: 0 | G16: 0 | H16: 0 | I16: 0 | J16: 0 | K16: 0 | L16: 0 | M16: 0 | N16: 0 | O16: 0 | P16: 0 | Q16: 0 | R16: 0 | S16: 0 | T16: =T10*T$6 -> 0 | U16: =U10*U$6 -> 0 | V16: 0 | W16: 0 | X16: 0 | Y16: 0 | Z16: 0
C17: =C11 -> Reactive Maintenance | D17: =SUM(F17:T17) -> 0 | E17: =E11*E$6 -> 0 | F17: 0 | G17: 0 | H17: 0 | I17: 0 | J17: 0 | K17: 0 | L17: 0 | M17: 0 | N17: 0 | O17: 0 | P17: 0 | Q17: 0 | R17: 0 | S17: 0 | T17: =T11*T$6 -> 0 | U17: =U11*U$6 -> 0 | V17: 0 | W17: 0 | X17: 0 | Y17: 0 | Z17: 0
C18: =C12 -> Scheduled Maintenance | D18: =SUM(F18:T18) -> 0 | E18: =E12*E$6 -> 0 | F18: 0 | G18: 0 | H18: 0 | I18: 0 | J18: 0 | K18: 0 | L18: 0 | M18: 0 | N18: 0 | O18: 0 | P18: 0 | Q18: 0 | R18: 0 | S18: 0 | T18: =T12*T$6 -> 0 | U18: =U12*U$6 -> 0 | V18: 0 | W18: 0 | X18: 0 | Y18: 0 | Z18: 0
C19: Energy consumption KWh | D19: =SUM(F19:T19) -> 0 | F19: =SUM('Unit Pricing BAU'!J29:J35) -> 0 | G19: =SUM('Unit Pricing BAU'!K29:K35) -> 0 | H19: =SUM('Unit Pricing BAU'!L29:L35) -> 0 | I19: =SUM('Unit Pricing BAU'!M29:M35) -> 0 | J19: =SUM('Unit Pricing BAU'!N29:N35) -> 0 | K19: =SUM('Unit Pricing BAU'!O29:O35) -> 0 | L19: =SUM('Unit Pricing BAU'!P29:P35) -> 0 | M19: =SUM('Unit Pricing BAU'!Q29:Q35) -> 0 | N19: =SUM('Unit Pricing BAU'!R29:R35) -> 0 | O19: =SUM('Unit Pricing BAU'!S29:S35) -> 0 | P19: =SUM('Unit Pricing BAU'!T29:T35) -> 0 | Q19: =SUM('Unit Pricing BAU'!U29:U35) -> 0 | R19: =SUM('Unit Pricing BAU'!V29:V35) -> 0 | S19: =SUM('Unit Pricing BAU'!W29:W35) -> 0 | T19: =SUM('Unit Pricing BAU'!X29:X35) -> 0 | U19: =SUM('Unit Pricing BAU'!Y29:Y35) -> 0 | V19: =SUM('Unit Pricing BAU'!Z29:Z35) -> 0 | W19: =SUM('Unit Pricing BAU'!AA29:AA35) -> 0 | X19: =SUM('Unit Pricing BAU'!AB29:AB35) -> 0 | Y19: =SUM('Unit Pricing BAU'!AC29:AC35) -> 0 | Z19: =SUM('Unit Pricing BAU'!AD29:AD35) -> 0 | AA19: =SUM('Unit Pricing BAU'!AE29:AE35) -> 0
C21: Total Real Cost | D21: =SUM(D15:D18) -> 0 | E21: =+D21+SUM(U15:U18) -> 0
C22: Term | D22: 15 | E22: 16 | F22: years
C23: Equivalent Annual Cost (EAC) | D23: =-PMT($C$2,D22,D21,0,0) -> 0 | E23: =-PMT($C$2,E22,E21,0,0) -> 0 | F23: per year
A24: 1st LED Scenario -energy efficiency without adaptive controls
B26: Nominal Value | C26: Capital Cost | D26: =SUM(F26:T26) -> 0 | E26: =SUM('unit pricing 1-5 years scenario'!H6:H12)+SUM('unit pricing 1-5 years scenario'!H14:H20)+SUM('unit pricing 1-5 years scenario'!H22:H28) -> 0 | F26: =SUM('unit pricing 1-5 years scenario'!J5:J12)+SUM('unit pricing 1-5 years scenario'!J13:J20)+SUM('unit pricing 1-5 years scenario'!J21:J28) -> 0 | G26: =SUM('unit pricing 1-5 years scenario'!K5:K12)+SUM('unit pricing 1-5 years scenario'!K13:K20)+SUM('unit pricing 1-5 years scenario'!K21:K28) -> 0 | H26: =SUM('unit pricing 1-5 years scenario'!L5:L12)+SUM('unit pricing 1-5 years scenario'!L13:L20)+SUM('unit pricing 1-5 years scenario'!L21:L28) -> 0 | I26: =SUM('unit pricing 1-5 years scenario'!M5:M12)+SUM('unit pricing 1-5 years scenario'!M13:M20)+SUM('unit pricing 1-5 years scenario'!M21:M28) -> 0 | J26: =SUM('unit pricing 1-5 years scenario'!N5:N12)+SUM('unit pricing 1-5 years scenario'!N13:N20)+SUM('unit pricing 1-5 years scenario'!N21:N28) -> 0 | K26: =SUM('unit pricing 1-5 years scenario'!O5:O12)+SUM('unit pricing 1-5 years scenario'!O13:O20)+SUM('unit pricing 1-5 years scenario'!O21:O28) -> 0 | L26: =SUM('unit pricing 1-5 years scenario'!P5:P12)+SUM('unit pricing 1-5 years scenario'!P13:P20)+SUM('unit pricing 1-5 years scenario'!P21:P28) -> 0 | M26: =SUM('unit pricing 1-5 years scenario'!Q5:Q12)+SUM('unit pricing 1-5 years scenario'!Q13:Q20)+SUM('unit pricing 1-5 years scenario'!Q21:Q28) -> 0 | N26: =SUM('unit pricing 1-5 years scenario'!R5:R12)+SUM('unit pricing 1-5 years scenario'!R13:R20)+SUM('unit pricing 1-5 years scenario'!R21:R28) -> 0 | O26: =SUM('unit pricing 1-5 years scenario'!S5:S12)+SUM('unit pricing 1-5 years scenario'!S13:S20)+SUM('unit pricing 1-5 years scenario'!S21:S28) -> 0 | P26: =SUM('unit pricing 1-5 years scenario'!T5:T12)+SUM('unit pricing 1-5 years scenario'!T13:T20)+SUM('unit pricing 1-5 years scenario'!T21:T28) -> 0 | Q26: =SUM('unit pricing 1-5 years scenario'!U5:U12)+SUM('unit pricing 1-5 years scenario'!U13:U20)+SUM('unit pricing 1-5 years scenario'!U21:U28) -> 0 | R26: =SUM('unit pricing 1-5 years scenario'!V5:V12)+SUM('unit pricing 1-5 years scenario'!V13:V20)+SUM('unit pricing 1-5 years scenario'!V21:V28) -> 0 | S26: =SUM('unit pricing 1-5 years scenario'!W5:W12)+SUM('unit pricing 1-5 years scenario'!W13:W20)+SUM('unit pricing 1-5 years scenario'!W21:W28) -> 0 | T26: =SUM('unit pricing 1-5 years scenario'!X5:X12)+SUM('unit pricing 1-5 years scenario'!X13:X20)+SUM('unit pricing 1-5 years scenario'!X21:X28) -> 0
B27: =+'Data Input and Instructions'!$C$66 -> 0 | C27: Volume Discounts | D27: 0 | E27: =+E26*$B$27 -> 0 | F27: 0 | G27: 0 | H27: 0 | I27: 0 | J27: 0 | K27: 0 | L27: 0 | M27: 0 | N27: 0 | O27: 0 | P27: 0 | Q27: 0 | R27: 0 | S27: 0 | T27: 0
B28: =+'Data Input and Instructions'!$C$67 -> 0 | C28: Other Incentives | D28: =SUM(F28:T28) -> 0 | E28: =(+E26-E27)*$B$28 -> 0 | F28: 0 | G28: 0 | H28: 0 | I28: 0 | J28: 0 | K28: 0 | L28: 0 | M28: 0 | N28: 0 | O28: 0 | P28: 0 | Q28: 0 | R28: 0 | S28: 0 | T28: 0
C29: Energy | D29: 0 | E29: =SUM('unit pricing 1-5 years scenario'!H38:H44)+SUM('unit pricing 1-5 years scenario'!H86:H92) -> 0 | F29: =SUM('unit pricing 1-5 years scenario'!J37:J44)+SUM('unit pricing 1-5 years scenario'!J85:J92) -> 0 | G29: =SUM('unit pricing 1-5 years scenario'!K37:K44)+SUM('unit pricing 1-5 years scenario'!K85:K92) -> 0 | H29: =SUM('unit pricing 1-5 years scenario'!L37:L44)+SUM('unit pricing 1-5 years scenario'!L85:L92) -> 0 | I29: =SUM('unit pricing 1-5 years scenario'!M37:M44)+SUM('unit pricing 1-5 years scenario'!M85:M92) -> 0 | J29: =SUM('unit pricing 1-5 years scenario'!N37:N44)+SUM('unit pricing 1-5 years scenario'!N85:N92) -> 0 | K29: =SUM('unit pricing 1-5 years scenario'!O37:O44)+SUM('unit pricing 1-5 years scenario'!O85:O92) -> 0 | L29: =SUM('unit pricing 1-5 years scenario'!P37:P44)+SUM('unit pricing 1-5 years scenario'!P85:P92) -> 0 | M29: =SUM('unit pricing 1-5 years scenario'!Q37:Q44)+SUM('unit pricing 1-5 years scenario'!Q85:Q92) -> 0 | N29: =SUM('unit pricing 1-5 years scenario'!R37:R44)+SUM('unit pricing 1-5 years scenario'!R85:R92) -> 0 | O29: =SUM('unit pricing 1-5 years scenario'!S37:S44)+SUM('unit pricing 1-5 years scenario'!S85:S92) -> 0 | P29: =SUM('unit pricing 1-5 years scenario'!T37:T44)+SUM('unit pricing 1-5 years scenario'!T85:T92) -> 0 | Q29: =SUM('unit pricing 1-5 years scenario'!U37:U44)+SUM('unit pricing 1-5 years scenario'!U85:U92) -> 0 | R29: =SUM('unit pricing 1-5 years scenario'!V37:V44)+SUM('unit pricing 1-5 years scenario'!V85:V92) -> 0 | S29: =SUM('unit pricing 1-5 years scenario'!W37:W44)+SUM('unit pricing 1-5 years scenario'!W85:W92) -> 0 | T29: =SUM('unit pricing 1-5 years scenario'!X37:X44)+SUM('unit pricing 1-5 years scenario'!X85:X92) -> 0
C30: LED maintenance | D30: 0 | E30: =SUM('unit pricing 1-5 years scenario'!H102:H108)+SUM('unit pricing 1-5 years scenario'!H110:H124)+SUM('unit pricing 1-5 years scenario'!H127:H133) -> 0 | F30: =SUM('unit pricing 1-5 years scenario'!J101:J108)+SUM('unit pricing 1-5 years scenario'!J109:J124)+SUM('unit pricing 1-5 years scenario'!J125:J133) -> 0 | G30: =SUM('unit pricing 1-5 years scenario'!K101:K108)+SUM('unit pricing 1-5 years scenario'!K109:K124)+SUM('unit pricing 1-5 years scenario'!K125:K133) -> 0 | H30: =SUM('unit pricing 1-5 years scenario'!L101:L108)+SUM('unit pricing 1-5 years scenario'!L109:L124)+SUM('unit pricing 1-5 years scenario'!L125:L133) -> 0 | I30: =SUM('unit pricing 1-5 years scenario'!M101:M108)+SUM('unit pricing 1-5 years scenario'!M109:M124)+SUM('unit pricing 1-5 years scenario'!M125:M133) -> 0 | J30: =SUM('unit pricing 1-5 years scenario'!N101:N108)+SUM('unit pricing 1-5 years scenario'!N109:N124)+SUM('unit pricing 1-5 years scenario'!N125:N133) -> 0 | K30: =SUM('unit pricing 1-5 years scenario'!O101:O108)+SUM('unit pricing 1-5 years scenario'!O109:O124)+SUM('unit pricing 1-5 years scenario'!O125:O133) -> 0 | L30: =SUM('unit pricing 1-5 years scenario'!P101:P108)+SUM('unit pricing 1-5 years scenario'!P109:P124)+SUM('unit pricing 1-5 years scenario'!P125:P133) -> 0 | M30: =SUM('unit pricing 1-5 years scenario'!Q101:Q108)+SUM('unit pricing 1-5 years scenario'!Q109:Q124)+SUM('unit pricing 1-5 years scenario'!Q125:Q133) -> 0 | N30: =SUM('unit pricing 1-5 years scenario'!R101:R108)+SUM('unit pricing 1-5 years scenario'!R109:R124)+SUM('unit pricing 1-5 years scenario'!R125:R133) -> 0 | O30: =SUM('unit pricing 1-5 years scenario'!S101:S108)+SUM('unit pricing 1-5 years scenario'!S109:S124)+SUM('unit pricing 1-5 years scenario'!S125:S133) -> 0 | P30: =SUM('unit pricing 1-5 years scenario'!T101:T108)+SUM('unit pricing 1-5 years scenario'!T109:T124)+SUM('unit pricing 1-5 years scenario'!T125:T133) -> 0 | Q30: =SUM('unit pricing 1-5 years scenario'!U101:U108)+SUM('unit pricing 1-5 years scenario'!U109:U124)+SUM('unit pricing 1-5 years scenario'!U125:U133) -> 0 | R30: =SUM('unit pricing 1-5 years scenario'!V101:V108)+SUM('unit pricing 1-5 years scenario'!V109:V124)+SUM('unit pricing 1-5 years scenario'!V125:V133) -> 0 | S30: =SUM('unit pricing 1-5 years scenario'!W101:W108)+SUM('unit pricing 1-5 years scenario'!W109:W124)+SUM('unit pricing 1-5 years scenario'!W125:W133) -> 0 | T30: =SUM('unit pricing 1-5 years scenario'!X101:X108)+SUM('unit pricing 1-5 years scenario'!X109:X124)+SUM('unit pricing 1-5 years scenario'!X125:X133) -> 0
C31: HPS maintenance | D31: 0 | E31: =SUM('unit pricing 1-5 years scenario'!H135:H141) -> 0 | F31: =SUM('unit pricing 1-5 years scenario'!J134:J141) -> 0 | G31: =SUM('unit pricing 1-5 years scenario'!K134:K141) -> 0 | H31: =SUM('unit pricing 1-5 years scenario'!L134:L141) -> 0 | I31: =SUM('unit pricing 1-5 years scenario'!M134:M141) -> 0 | J31: =SUM('unit pricing 1-5 years scenario'!N134:N141) -> 0 | K31: =SUM('unit pricing 1-5 years scenario'!O134:O141) -> 0 | L31: =SUM('unit pricing 1-5 years scenario'!P134:P141) -> 0 | M31: =SUM('unit pricing 1-5 years scenario'!Q134:Q141) -> 0 | N31: =SUM('unit pricing 1-5 years scenario'!R134:R141) -> 0 | O31: =SUM('unit pricing 1-5 years scenario'!S134:S141) -> 0 | P31: =SUM('unit pricing 1-5 years scenario'!T134:T141) -> 0 | Q31: =SUM('unit pricing 1-5 years scenario'!U134:U141) -> 0 | R31: =SUM('unit pricing 1-5 years scenario'!V134:V141) -> 0 | S31: =SUM('unit pricing 1-5 years scenario'!W134:W141) -> 0 | T31: =SUM('unit pricing 1-5 years scenario'!X134:X141) -> 0
B32: =+'Data Input and Instructions'!$C$72 -> 0 | C32: Carbon Price/Carbon Neutral Govn't Savings | D32: 0 | F32: =+'GHG savings'!I41 -> 0 | G32: =+F32*(1+$B$32) -> 0 | H32: =+G32*(1+$B$32) -> 0 | I32: 0 | J32: 0 | K32: 0 | L32: 0 | M32: 0 | N32: 0 | O32: 0 | P32: 0 | Q32: 0 | R32: 0 | S32: 0 | T32: 0
B34: Present Value | C34: =C26 -> Capital Cost | D34: =SUM(F34:T34) -> 0 | E34: =E26*E$6 -> 0 | F34: 0 | G34: 0 | H34: 0 | I34: 0 | J34: 0 | K34: 0 | L34: 0 | M34: 0 | N34: 0 | O34: 0 | P34: 0 | Q34: 0 | R34: 0 | S34: 0 | T34: 0
C35: Volume Discounts | D35: 0 | E35: =E27*E$6 -> 0 | F35: 0 | G35: 0 | H35: 0 | I35: 0 | J35: 0 | K35: 0 | L35: 0 | M35: 0 | N35: 0 | O35: 0 | P35: 0 | Q35: 0 | R35: 0 | S35: 0 | T35: 0
C36: Other Incentives | D36: =SUM(F36:T36) -> 0 | E36: =E28*E$6 -> 0 | F36: 0 | G36: 0 | H36: 0 | I36: 0 | J36: 0 | K36: 0 | L36: 0 | M36: 0 | N36: 0 | O36: 0 | P36: 0 | Q36: 0 | R36: 0 | S36: 0 | T36: 0
C37: =C29 -> Energy | D37: 0 | E37: =E29*E$6 -> 0 | F37: 0 | G37: 0 | H37: 0 | I37: 0 | J37: 0 | K37: 0 | L37: 0 | M37: 0 | N37: 0 | O37: 0 | P37: 0 | Q37: 0 | R37: 0 | S37: 0 | T37: 0
C38: =C30 -> LED maintenance | D38: 0 | E38: =E30*E$6 -> 0 | F38: 0 | G38: 0 | H38: 0 | I38: 0 | J38: 0 | K38: 0 | L38: 0 | M38: 0 | N38: 0 | O38: 0 | P38: 0 | Q38: 0 | R38: 0 | S38: 0 | T38: 0
C39: =C31 -> HPS maintenance | D39: 0 | E39: =E31*E$6 -> 0 | F39: 0 | G39: 0 | H39: 0 | I39: 0 | J39: 0 | K39: 0 | L39: 0 | M39: 0 | N39: 0 | O39: =O31*O$6 -> 0 | P39: 0 | Q39: 0 | R39: 0 | S39: 0 | T39: 0
C40: =C32 -> Carbon Price/Carbon Neutral Govn't Savings | D40: =SUM(F40:T40) -> 0 | E40: 0 | F40: 0 | G40: 0 | H40: 0 | I40: 0 | J40: 0 | K40: 0 | L40: 0 | M40: =M32*M$6 -> 0 | N40: =N32*N$6 -> 0 | O40: 0 | P40: 0 | Q40: 0 | R40: 0 | S40: 0 | T40: 0
C41: Energy consumption KWh | D41: =SUM(F41:T41) -> 0 | F41: =SUM('unit pricing 1-5 years scenario'!J45:J52)+ SUM('unit pricing 1-5 years scenario'!J93:J100) -> 0 | G41: =SUM('unit pricing 1-5 years scenario'!K45:K52)+ SUM('unit pricing 1-5 years scenario'!K93:K100) -> 0 | H41: =SUM('unit pricing 1-5 years scenario'!L45:L52)+ SUM('unit pricing 1-5 years scenario'!L93:L100) -> 0 | I41: =SUM('unit pricing 1-5 years scenario'!M45:M52)+ SUM('unit pricing 1-5 years scenario'!M93:M100) -> 0 | J41: =SUM('unit pricing 1-5 years scenario'!N45:N52)+ SUM('unit pricing 1-5 years scenario'!N93:N100) -> 0 | K41: =SUM('unit pricing 1-5 years scenario'!O45:O52)+ SUM('unit pricing 1-5 years scenario'!O93:O100) -> 0 | L41: =SUM('unit pricing 1-5 years scenario'!P45:P52)+ SUM('unit pricing 1-5 years scenario'!P93:P100) -> 0 | M41: =SUM('unit pricing 1-5 years scenario'!Q45:Q52)+ SUM('unit pricing 1-5 years scenario'!Q93:Q100) -> 0 | N41: =SUM('unit pricing 1-5 years scenario'!R45:R52)+ SUM('unit pricing 1-5 years scenario'!R93:R100) -> 0 | O41: =SUM('unit pricing 1-5 years scenario'!S45:S52)+ SUM('unit pricing 1-5 years scenario'!S93:S100) -> 0 | P41: =SUM('unit pricing 1-5 years scenario'!T45:T52)+ SUM('unit pricing 1-5 years scenario'!T93:T100) -> 0 | Q41: =SUM('unit pricing 1-5 years scenario'!U45:U52)+ SUM('unit pricing 1-5 years scenario'!U93:U100) -> 0 | R41: =SUM('unit pricing 1-5 years scenario'!V45:V52)+ SUM('unit pricing 1-5 years scenario'!V93:V100) -> 0 | S41: =SUM('unit pricing 1-5 years scenario'!W45:W52)+ SUM('unit pricing 1-5 years scenario'!W93:W100) -> 0 | T41: =SUM('unit pricing 1-5 years scenario'!X45:X52)+ SUM('unit pricing 1-5 years scenario'!X93:X100) -> 0
C43: Total Present Value | D43: =+D34+D37+D38+D39-D35-D36 -> 0
C44: Term | D44: 15
C45: Equivalent Annual Cost (EAC) | D45: =-PMT($C$2,D44,D43,0,0) -> 0
A46: Comparative with BAU
C47: Total Present Value | D47: =+D43-D21 -> 0
C48: Term | D48: 15
C49: Equivalent Annual Cost (EAC) | D49: =+D45-D23 -> 0
C50: Carbon Neutral Govn't Savings | D50: =+D40 -> 0 | L50: `
C51: Volume Discounts | D51: =+D35 -> 0
C52: Other Incentives | D52: =+D36 -> 0
C53: Subtotal | D53: =+D47-D50-D51-D52 -> 0
C54: Rate of Savings | D54: =-((SUM(F37:T39)-SUM(F15:T18)-D50)/SUM(F34:T34))/15 -> 
C55: Rate of Savings after discounts | D55: =-((SUM(F37:T39)-SUM(F15:T18)-D50-D51-D52)/SUM(F34:T34)/15) -> 
A57: 2nd LED Scenario- energy efficiency with adaptive controls
B58: Nominal Value | C58: Capital Cost | D58: =SUM(F58:U58) -> 0 | E58: =SUM('unit pricing 1-5 years scenario'!H6:H20)+SUM('unit pricing 1-5 years scenario'!H22:H28)+SUM('unit pricing 1-5 years scenario'!H30:H36) -> 0 | F58: =SUM('unit pricing 1-5 years scenario'!J5:J20)+SUM('unit pricing 1-5 years scenario'!J21:J28)+SUM('unit pricing 1-5 years scenario'!J29:J36) -> 0 | G58: =SUM('unit pricing 1-5 years scenario'!K5:K20)+SUM('unit pricing 1-5 years scenario'!K21:K28)+SUM('unit pricing 1-5 years scenario'!K29:K36) -> 0 | H58: =SUM('unit pricing 1-5 years scenario'!L5:L20)+SUM('unit pricing 1-5 years scenario'!L21:L28)+SUM('unit pricing 1-5 years scenario'!L29:L36) -> 0 | I58: =SUM('unit pricing 1-5 years scenario'!M5:M20)+SUM('unit pricing 1-5 years scenario'!M21:M28)+SUM('unit pricing 1-5 years scenario'!M29:M36) -> 0 | J58: =SUM('unit pricing 1-5 years scenario'!N5:N20)+SUM('unit pricing 1-5 years scenario'!N21:N28)+SUM('unit pricing 1-5 years scenario'!N29:N36) -> 0 | K58: =SUM('unit pricing 1-5 years scenario'!O5:O20)+SUM('unit pricing 1-5 years scenario'!O21:O28)+SUM('unit pricing 1-5 years scenario'!O29:O36) -> 0 | L58: =SUM('unit pricing 1-5 years scenario'!P5:P20)+SUM('unit pricing 1-5 years scenario'!P21:P28)+SUM('unit pricing 1-5 years scenario'!P29:P36) -> 0 | M58: =SUM('unit pricing 1-5 years scenario'!Q5:Q20)+SUM('unit pricing 1-5 years scenario'!Q21:Q28)+SUM('unit pricing 1-5 years scenario'!Q29:Q36) -> 0 | N58: =SUM('unit pricing 1-5 years scenario'!R5:R20)+SUM('unit pricing 1-5 years scenario'!R21:R28)+SUM('unit pricing 1-5 years scenario'!R29:R36) -> 0 | O58: =SUM('unit pricing 1-5 years scenario'!S5:S20)+SUM('unit pricing 1-5 years scenario'!S21:S28)+SUM('unit pricing 1-5 years scenario'!S29:S36) -> 0 | P58: =SUM('unit pricing 1-5 years scenario'!T5:T20)+SUM('unit pricing 1-5 years scenario'!T21:T28)+SUM('unit pricing 1-5 years scenario'!T29:T36) -> 0 | Q58: =SUM('unit pricing 1-5 years scenario'!U5:U20)+SUM('unit pricing 1-5 years scenario'!U21:U28)+SUM('unit pricing 1-5 years scenario'!U29:U36) -> 0 | R58: =SUM('unit pricing 1-5 years scenario'!V5:V20)+SUM('unit pricing 1-5 years scenario'!V21:V28)+SUM('unit pricing 1-5 years scenario'!V29:V36) -> 0 | S58: =SUM('unit pricing 1-5 years scenario'!W5:W20)+SUM('unit pricing 1-5 years scenario'!W21:W28)+SUM('unit pricing 1-5 years scenario'!W29:W36) -> 0 | T58: =SUM('unit pricing 1-5 years scenario'!X5:X20)+SUM('unit pricing 1-5 years scenario'!X21:X28)+SUM('unit pricing 1-5 years scenario'!X29:X36) -> 0 | U58: =SUM('unit pricing 1-5 years scenario'!Y5:Y20)+SUM('unit pricing 1-5 years scenario'!Y21:Y28)+SUM('unit pricing 1-5 years scenario'!Y29:Y36) -> 0 | V58: =SUM('unit pricing 1-5 years scenario'!Z5:Z20)+SUM('unit pricing 1-5 years scenario'!Z21:Z28)+SUM('unit pricing 1-5 years scenario'!Z29:Z36) -> 0 | W58: =SUM('unit pricing 1-5 years scenario'!AA5:AA20)+SUM('unit pricing 1-5 years scenario'!AA21:AA28)+SUM('unit pricing 1-5 years scenario'!AA29:AA36) -> 0 | X58: =SUM('unit pricing 1-5 years scenario'!AB5:AB20)+SUM('unit pricing 1-5 years scenario'!AB21:AB28)+SUM('unit pricing 1-5 years scenario'!AB29:AB36) -> 0 | Y58: =SUM('unit pricing 1-5 years scenario'!AC5:AC20)+SUM('unit pricing 1-5 years scenario'!AC21:AC28)+SUM('unit pricing 1-5 years scenario'!AC29:AC36) -> 0 | Z58: =SUM('unit pricing 1-5 years scenario'!AD5:AD20)+SUM('unit pricing 1-5 years scenario'!AD21:AD28)+SUM('unit pricing 1-5 years scenario'!AD29:AD36) -> 0 | AA58: =SUM('unit pricing 1-5 years scenario'!AE5:AE20)+SUM('unit pricing 1-5 years scenario'!AE21:AE28)+SUM('unit pricing 1-5 years scenario'!AE29:AE36) -> 0
B59: =+'Data Input and Instructions'!$C$66 -> 0 | C59: Volume Discounts | D59: 0 | E59: =+E58*$B$59 -> 0 | F59: =+F58*$B$59 -> 0 | G59: 0 | H59: 0 | I59: 0 | J59: 0 | K59: 0 | L59: 0 | M59: 0 | N59: 0 | O59: 0 | P59: 0 | Q59: 0 | R59: 0 | S59: 0 | T59: 0 | U59: =+U58*(1-0.8) -> 0 | V59: =+V58*(1-0.8) -> 0 | W59: =+W58*(1-0.8) -> 0 | X59: =+X58*(1-0.8) -> 0 | Y59: =+Y58*(1-0.8) -> 0
B60: =+'Data Input and Instructions'!$C$67 -> 0 | C60: Other Incentives | D60: =SUM(F60:T60) -> 0 | E60: =(+E58-E59)*$B$60 -> 0 | F60: 0 | G60: 0 | H60: 0 | I60: 0 | J60: 0 | K60: 0 | L60: 0 | M60: 0 | N60: 0 | O60: 0 | P60: 0 | Q60: 0 | R60: 0 | S60: 0 | T60: 0 | U60: 0 | V60: 0 | W60: 0 | X60: 0 | Y60: 0 | Z60: 0 | AA60: 0
C61: Energy | D61: 0 | E61: =(SUM('unit pricing 1-5 years scenario'!H54:H60)+SUM('unit pricing 1-5 years scenario'!H86:H92)) -> 0 | F61: =(SUM('unit pricing 1-5 years scenario'!J53:J60)+SUM('unit pricing 1-5 years scenario'!J85:J92)) -> 0 | G61: =(SUM('unit pricing 1-5 years scenario'!K53:K60)+SUM('unit pricing 1-5 years scenario'!K85:K92)) -> 0 | H61: =(SUM('unit pricing 1-5 years scenario'!L53:L60)+SUM('unit pricing 1-5 years scenario'!L85:L92)) -> 0 | I61: =(SUM('unit pricing 1-5 years scenario'!M53:M60)+SUM('unit pricing 1-5 years scenario'!M85:M92)) -> 0 | J61: =(SUM('unit pricing 1-5 years scenario'!N53:N60)+SUM('unit pricing 1-5 years scenario'!N85:N92)) -> 0 | K61: =(SUM('unit pricing 1-5 years scenario'!O53:O60)+SUM('unit pricing 1-5 years scenario'!O85:O92)) -> 0 | L61: =(SUM('unit pricing 1-5 years scenario'!P53:P60)+SUM('unit pricing 1-5 years scenario'!P85:P92)) -> 0 | M61: =(SUM('unit pricing 1-5 years scenario'!Q53:Q60)+SUM('unit pricing 1-5 years scenario'!Q85:Q92)) -> 0 | N61: =(SUM('unit pricing 1-5 years scenario'!R53:R60)+SUM('unit pricing 1-5 years scenario'!R85:R92)) -> 0 | O61: =(SUM('unit pricing 1-5 years scenario'!S53:S60)+SUM('unit pricing 1-5 years scenario'!S85:S92)) -> 0 | P61: =(SUM('unit pricing 1-5 years scenario'!T53:T60)+SUM('unit pricing 1-5 years scenario'!T85:T92)) -> 0 | Q61: =(SUM('unit pricing 1-5 years scenario'!U53:U60)+SUM('unit pricing 1-5 years scenario'!U85:U92)) -> 0 | R61: =(SUM('unit pricing 1-5 years scenario'!V53:V60)+SUM('unit pricing 1-5 years scenario'!V85:V92)) -> 0 | S61: =(SUM('unit pricing 1-5 years scenario'!W53:W60)+SUM('unit pricing 1-5 years scenario'!W85:W92)) -> 0 | T61: =(SUM('unit pricing 1-5 years scenario'!X53:X60)+SUM('unit pricing 1-5 years scenario'!X85:X92)) -> 0 | U61: =(SUM('unit pricing 1-5 years scenario'!Y53:Y60)+SUM('unit pricing 1-5 years scenario'!Y85:Y92)) -> 0 | V61: =(SUM('unit pricing 1-5 years scenario'!Z53:Z60)+SUM('unit pricing 1-5 years scenario'!Z85:Z92)) -> 0 | W61: =(SUM('unit pricing 1-5 years scenario'!AA53:AA60)+SUM('unit pricing 1-5 years scenario'!AA85:AA92)) -> 0 | X61: =(SUM('unit pricing 1-5 years scenario'!AB53:AB60)+SUM('unit pricing 1-5 years scenario'!AB85:AB92)) -> 0 | Y61: =(SUM('unit pricing 1-5 years scenario'!AC53:AC60)+SUM('unit pricing 1-5 years scenario'!AC85:AC92)) -> 0 | Z61: =(SUM('unit pricing 1-5 years scenario'!AD53:AD60)+SUM('unit pricing 1-5 years scenario'!AD85:AD92)) -> 0 | AA61: =(SUM('unit pricing 1-5 years scenario'!AE53:AE60)+SUM('unit pricing 1-5 years scenario'!AE85:AE92)) -> 0
C62: LED maintenance | D62: 0 | E62: =SUM('unit pricing 1-5 years scenario'!H102:H108)+SUM('unit pricing 1-5 years scenario'!H110:H124)+SUM('unit pricing 1-5 years scenario'!H127:H133) -> 0 | F62: =SUM('unit pricing 1-5 years scenario'!J101:J108)+SUM('unit pricing 1-5 years scenario'!J109:J124)+SUM('unit pricing 1-5 years scenario'!J126:J133) -> 0 | G62: =SUM('unit pricing 1-5 years scenario'!K101:K108)+SUM('unit pricing 1-5 years scenario'!K109:K124)+SUM('unit pricing 1-5 years scenario'!K126:K133) -> 0 | H62: =SUM('unit pricing 1-5 years scenario'!L101:L108)+SUM('unit pricing 1-5 years scenario'!L109:L124)+SUM('unit pricing 1-5 years scenario'!L126:L133) -> 0 | I62: =SUM('unit pricing 1-5 years scenario'!M101:M108)+SUM('unit pricing 1-5 years scenario'!M109:M124)+SUM('unit pricing 1-5 years scenario'!M126:M133) -> 0 | J62: =SUM('unit pricing 1-5 years scenario'!N101:N108)+SUM('unit pricing 1-5 years scenario'!N109:N124)+SUM('unit pricing 1-5 years scenario'!N126:N133) -> 0 | K62: =SUM('unit pricing 1-5 years scenario'!O101:O108)+SUM('unit pricing 1-5 years scenario'!O109:O124)+SUM('unit pricing 1-5 years scenario'!O126:O133) -> 0 | L62: =SUM('unit pricing 1-5 years scenario'!P101:P108)+SUM('unit pricing 1-5 years scenario'!P109:P124)+SUM('unit pricing 1-5 years scenario'!P126:P133) -> 0 | M62: =SUM('unit pricing 1-5 years scenario'!Q101:Q108)+SUM('unit pricing 1-5 years scenario'!Q109:Q124)+SUM('unit pricing 1-5 years scenario'!Q126:Q133) -> 0 | N62: =SUM('unit pricing 1-5 years scenario'!R101:R108)+SUM('unit pricing 1-5 years scenario'!R109:R124)+SUM('unit pricing 1-5 years scenario'!R126:R133) -> 0 | O62: =SUM('unit pricing 1-5 years scenario'!S101:S108)+SUM('unit pricing 1-5 years scenario'!S109:S124)+SUM('unit pricing 1-5 years scenario'!S126:S133) -> 0 | P62: =SUM('unit pricing 1-5 years scenario'!T101:T108)+SUM('unit pricing 1-5 years scenario'!T109:T124)+SUM('unit pricing 1-5 years scenario'!T126:T133) -> 0 | Q62: =SUM('unit pricing 1-5 years scenario'!U101:U108)+SUM('unit pricing 1-5 years scenario'!U109:U124)+SUM('unit pricing 1-5 years scenario'!U126:U133) -> 0 | R62: =SUM('unit pricing 1-5 years scenario'!V101:V108)+SUM('unit pricing 1-5 years scenario'!V109:V124)+SUM('unit pricing 1-5 years scenario'!V126:V133) -> 0 | S62: =SUM('unit pricing 1-5 years scenario'!W101:W108)+SUM('unit pricing 1-5 years scenario'!W109:W124)+SUM('unit pricing 1-5 years scenario'!W126:W133) -> 0 | T62: =SUM('unit pricing 1-5 years scenario'!X101:X108)+SUM('unit pricing 1-5 years scenario'!X109:X124)+SUM('unit pricing 1-5 years scenario'!X126:X133) -> 0 | U62: =SUM('unit pricing 1-5 years scenario'!Y101:Y108)+SUM('unit pricing 1-5 years scenario'!Y109:Y124)+SUM('unit pricing 1-5 years scenario'!Y126:Y133) -> 0
C63: HPS maintenance | D63: 0 | E63: =SUM('unit pricing 1-5 years scenario'!H135:H141) -> 0 | F63: =SUM('unit pricing 1-5 years scenario'!J134:J141) -> 0 | G63: =SUM('unit pricing 1-5 years scenario'!K134:K141) -> 0 | H63: =SUM('unit pricing 1-5 years scenario'!L134:L141) -> 0 | I63: =SUM('unit pricing 1-5 years scenario'!M134:M141) -> 0 | J63: =SUM('unit pricing 1-5 years scenario'!N134:N141) -> 0 | K63: =SUM('unit pricing 1-5 years scenario'!O134:O141) -> 0 | L63: =SUM('unit pricing 1-5 years scenario'!P134:P141) -> 0 | M63: =SUM('unit pricing 1-5 years scenario'!Q134:Q141) -> 0 | N63: =SUM('unit pricing 1-5 years scenario'!R134:R141) -> 0 | O63: =SUM('unit pricing 1-5 years scenario'!S134:S141) -> 0 | P63: =SUM('unit pricing 1-5 years scenario'!T134:T141) -> 0 | Q63: =SUM('unit pricing 1-5 years scenario'!U134:U141) -> 0 | R63: =SUM('unit pricing 1-5 years scenario'!V134:V141) -> 0 | S63: =SUM('unit pricing 1-5 years scenario'!W134:W141) -> 0 | T63: =SUM('unit pricing 1-5 years scenario'!X134:X141) -> 0 | U63: =SUM('unit pricing 1-5 years scenario'!Y134:Y141) -> 0
B64: =+'Data Input and Instructions'!$C$72 -> 0 | C64: Carbon Price/Carbon Neutral Govn't Savings | D64: =SUM(F64:T64) -> 0 | F64: =+'GHG savings'!I49 -> 0 | G64: =+F64*(1+$B$64) -> 0 | H64: =+G64*(1+$B$64) -> 0 | I64: 0 | J64: 0 | K64: 0 | L64: 0 | M64: 0 | N64: 0 | O64: 0 | P64: 0 | Q64: 0 | R64: 0 | S64: 0 | T64: 0 | U64: 0
C65: Energy consumption KWh | D65: =SUM(F65:T65) -> 0 | F65: =SUM('unit pricing 1-5 years scenario'!J61:J68)+ SUM('unit pricing 1-5 years scenario'!J93:J100) -> 0 | G65: =SUM('unit pricing 1-5 years scenario'!K61:K68)+ SUM('unit pricing 1-5 years scenario'!K93:K100) -> 0 | H65: =SUM('unit pricing 1-5 years scenario'!L61:L68)+ SUM('unit pricing 1-5 years scenario'!L93:L100) -> 0 | I65: =SUM('unit pricing 1-5 years scenario'!M61:M68)+ SUM('unit pricing 1-5 years scenario'!M93:M100) -> 0 | J65: =SUM('unit pricing 1-5 years scenario'!N61:N68)+ SUM('unit pricing 1-5 years scenario'!N93:N100) -> 0 | K65: =SUM('unit pricing 1-5 years scenario'!O61:O68)+ SUM('unit pricing 1-5 years scenario'!O93:O100) -> 0 | L65: =SUM('unit pricing 1-5 years scenario'!P61:P68)+ SUM('unit pricing 1-5 years scenario'!P93:P100) -> 0 | M65: =SUM('unit pricing 1-5 years scenario'!Q61:Q68)+ SUM('unit pricing 1-5 years scenario'!Q93:Q100) -> 0 | N65: =SUM('unit pricing 1-5 years scenario'!R61:R68)+ SUM('unit pricing 1-5 years scenario'!R93:R100) -> 0 | O65: =SUM('unit pricing 1-5 years scenario'!S61:S68)+ SUM('unit pricing 1-5 years scenario'!S93:S100) -> 0 | P65: =SUM('unit pricing 1-5 years scenario'!T61:T68)+ SUM('unit pricing 1-5 years scenario'!T93:T100) -> 0 | Q65: =SUM('unit pricing 1-5 years scenario'!U61:U68)+ SUM('unit pricing 1-5 years scenario'!U93:U100) -> 0 | R65: =SUM('unit pricing 1-5 years scenario'!V61:V68)+ SUM('unit pricing 1-5 years scenario'!V93:V100) -> 0 | S65: =SUM('unit pricing 1-5 years scenario'!W61:W68)+ SUM('unit pricing 1-5 years scenario'!W93:W100) -> 0 | T65: =SUM('unit pricing 1-5 years scenario'!X61:X68)+ SUM('unit pricing 1-5 years scenario'!X93:X100) -> 0 | U65: =SUM('unit pricing 1-5 years scenario'!Y61:Y68)+ SUM('unit pricing 1-5 years scenario'!Y93:Y100) -> 0
B67: Present Value | C67: =C58 -> Capital Cost | D67: =SUM(F67:T67) -> 0 | E67: =E58*E$6 -> 0 | F67: 0 | G67: 0 | H67: 0 | I67: 0 | J67: 0 | K67: 0 | L67: 0 | M67: 0 | N67: 0 | O67: 0 | P67: 0 | Q67: 0 | R67: 0 | S67: 0 | T67: 0 | U67: 0 | V67: 0 | W67: 0 | X67: 0 | Y67: 0
C68: Volume Discounts | D68: =SUM(F68:T68) -> 0 | E68: =E59*E$6 -> 0 | F68: 0 | G68: 0 | H68: 0 | I68: 0 | J68: 0 | K68: 0 | L68: 0 | M68: 0 | N68: 0 | O68: 0 | P68: 0 | Q68: 0 | R68: 0 | S68: 0 | T68: 0
C69: Other Incentives | D69: 0 | E69: =E60*E$6 -> 0 | F69: 0 | G69: 0 | H69: 0 | I69: 0 | J69: 0 | K69: 0 | L69: 0 | M69: 0 | N69: 0 | O69: 0 | P69: 0 | Q69: 0 | R69: 0 | S69: 0 | T69: 0
C70: =C61 -> Energy | D70: 0 | E70: =E61*E$6 -> 0 | F70: 0 | G70: 0 | H70: 0 | I70: 0 | J70: 0 | K70: 0 | L70: 0 | M70: 0 | N70: 0 | O70: 0 | P70: 0 | Q70: 0 | R70: 0 | S70: 0 | T70: 0 | U70: =U61*U$6 -> 0 | V70: 0 | W70: 0 | X70: 0 | Y70: 0
C71: =C62 -> LED maintenance | D71: 0 | E71: =E62*E$6 -> 0 | F71: 0 | G71: 0 | H71: 0 | I71: 0 | J71: 0 | K71: 0 | L71: 0 | M71: 0 | N71: 0 | O71: 0 | P71: 0 | Q71: 0 | R71: 0 | S71: 0 | T71: 0 | U71: 0 | V71: 0 | W71: 0 | X71: 0 | Y71: 0
C72: =C63 -> HPS maintenance | D72: 0 | E72: =E63*E$6 -> 0 | F72: 0 | G72: 0 | H72: 0 | I72: 0 | J72: 0 | K72: 0 | L72: 0 | M72: 0 | N72: 0 | O72: 0 | P72: 0 | Q72: 0 | R72: 0 | S72: 0 | T72: 0 | U72: 0 | V72: 0 | W72: 0 | X72: 0 | Y72: 0
C73: =C64 -> Carbon Price/Carbon Neutral Govn't Savings | D73: 0 | E73: =E64*E$6 -> 0 | F73: 0 | G73: 0 | H73: 0 | I73: 0 | J73: 0 | K73: 0 | L73: 0 | M73: 0 | N73: 0 | O73: 0 | P73: 0 | Q73: 0 | R73: 0 | S73: 0 | T73: 0
C75: Total Present Value | D75: =+D67+D70+D71+D72-D68-D69 -> 0
C76: Term | D76: 15
C77: Equivalent Annual Cost (EAC) | D77: =-PMT($C$2,D76,D75,0,0) -> 0
A78: Comparative
C79: Total Present Value | D79: =+D75-D21 -> 0
C80: Term | D80: 16
C81: Equivalent Annual Cost (EAC) | D81: =+D77-D23 -> 0
C82: Carbon Neutral Govn't Savings | D82: =+D73 -> 0
C83: Volume Discounts | D83: =+D68 -> 0
C84: Other Incentives | D84: =+D69 -> 0
C85: Subtotal | D85: =+D79-D82-D83-D84 -> 0
C86: Rate of Savings | D86: =-((SUM(F70:T72)-SUM(F15:T18)-D82)/SUM(F67:T67))/15 -> 
C87: Rate of Savings after discounts | D87: =-((SUM(F70:T72)-SUM(F15:T18)-D82-D83-D84)/SUM(F67:T67)/15) -> 
A89: 3rd Scenario- energy efficiency with adaptive controls only (NO LED)
B90: Nominal Value | C90: Capital Cost | D90: =SUM(F90:T90) -> 0 | E90: =SUM('unit pricing 1-5 years scenario'!H41:H55)+SUM('unit pricing 1-5 years scenario'!H57:H63)+SUM('unit pricing 1-5 years scenario'!H65:H71) -> 0 | F90: =SUM('unit pricing 1-5 years scenario'!J21:J28)+((SUM('unit pricing 1-5 years scenario'!J29:J36)*1.3)) -> 0 | G90: =SUM('unit pricing 1-5 years scenario'!K21:K28)+((SUM('unit pricing 1-5 years scenario'!K29:K36)*1.3)) -> 0 | H90: =SUM('unit pricing 1-5 years scenario'!L21:L28)+((SUM('unit pricing 1-5 years scenario'!L29:L36)*1.3)) -> 0 | I90: =SUM('unit pricing 1-5 years scenario'!M21:M28)+((SUM('unit pricing 1-5 years scenario'!M29:M36)*1.3)) -> 0 | J90: =SUM('unit pricing 1-5 years scenario'!N21:N28)+((SUM('unit pricing 1-5 years scenario'!N29:N36)*1.3)) -> 0 | K90: =SUM('unit pricing 1-5 years scenario'!O21:O28)+((SUM('unit pricing 1-5 years scenario'!O29:O36)*1.3)) -> 0 | L90: =SUM('unit pricing 1-5 years scenario'!P21:P28)+((SUM('unit pricing 1-5 years scenario'!P29:P36)*1.3)) -> 0 | M90: =SUM('unit pricing 1-5 years scenario'!Q21:Q28)+((SUM('unit pricing 1-5 years scenario'!Q29:Q36)*1.3)) -> 0 | N90: =SUM('unit pricing 1-5 years scenario'!R21:R28)+((SUM('unit pricing 1-5 years scenario'!R29:R36)*1.3)) -> 0 | O90: =SUM('unit pricing 1-5 years scenario'!S21:S28)+((SUM('unit pricing 1-5 years scenario'!S29:S36)*1.3)) -> 0 | P90: =SUM('unit pricing 1-5 years scenario'!T21:T28)+((SUM('unit pricing 1-5 years scenario'!T29:T36)*1.3)) -> 0 | Q90: =SUM('unit pricing 1-5 years scenario'!U21:U28)+((SUM('unit pricing 1-5 years scenario'!U29:U36)*1.3)) -> 0 | R90: =SUM('unit pricing 1-5 years scenario'!V21:V28)+((SUM('unit pricing 1-5 years scenario'!V29:V36)*1.3)) -> 0 | S90: =SUM('unit pricing 1-5 years scenario'!W21:W28)+((SUM('unit pricing 1-5 years scenario'!W29:W36)*1.3)) -> 0 | T90: =SUM('unit pricing 1-5 years scenario'!X21:X28)+((SUM('unit pricing 1-5 years scenario'!X29:X36)*1.3)) -> 0 | U90: =SUM('unit pricing 1-5 years scenario'!Y21:Y28)+((SUM('unit pricing 1-5 years scenario'!Y29:Y36)*1.3)) -> 0
B91: =+'Data Input and Instructions'!$C$66 -> 0 | C91: Volume Discounts | D91: 0 | E91: =+E90*$B$59 -> 0 | F91: =+F90*$B$59 -> 0 | G91: 0 | H91: 0 | I91: 0 | J91: 0 | K91: 0 | L91: 0 | M91: 0 | N91: 0 | O91: 0 | P91: 0 | Q91: 0 | R91: 0 | S91: 0 | T91: 0 | U91: =+U90*(1-0.8) -> 0 | V91: =+V90*(1-0.8) -> 0 | W91: =+W90*(1-0.8) -> 0 | X91: =+X90*(1-0.8) -> 0 | Y91: =+Y90*(1-0.8) -> 0
B92: =+'Data Input and Instructions'!$C$67 -> 0 | C92: Other Incentives | D92: 0 | E92: =(+E90-E91)*$B$60 -> 0 | F92: 0 | G92: 0 | H92: 0 | I92: 0 | J92: 0 | K92: 0 | L92: 0 | M92: 0 | N92: 0 | O92: 0 | P92: 0 | Q92: 0 | R92: 0 | S92: 0 | T92: 0 | U92: 0 | V92: 0 | W92: 0 | X92: 0 | Y92: 0 | Z92: 0 | AA92: 0
C93: Energy | D93: 0 | E93: =(SUM('unit pricing 1-5 years scenario'!H89:H95)+SUM('unit pricing 1-5 years scenario'!H121:H128)) -> 0 | F93: =(SUM('unit pricing 1-5 years scenario'!J69:J76)+SUM('unit pricing 1-5 years scenario'!J85:J92)) -> 0 | G93: =(SUM('unit pricing 1-5 years scenario'!K69:K76)+SUM('unit pricing 1-5 years scenario'!K85:K92)) -> 0 | H93: =(SUM('unit pricing 1-5 years scenario'!L69:L76)+SUM('unit pricing 1-5 years scenario'!L85:L92)) -> 0 | I93: =(SUM('unit pricing 1-5 years scenario'!M69:M76)+SUM('unit pricing 1-5 years scenario'!M85:M92)) -> 0 | J93: =(SUM('unit pricing 1-5 years scenario'!N69:N76)+SUM('unit pricing 1-5 years scenario'!N85:N92)) -> 0 | K93: =(SUM('unit pricing 1-5 years scenario'!O69:O76)+SUM('unit pricing 1-5 years scenario'!O85:O92)) -> 0 | L93: =(SUM('unit pricing 1-5 years scenario'!P69:P76)+SUM('unit pricing 1-5 years scenario'!P85:P92)) -> 0 | M93: =(SUM('unit pricing 1-5 years scenario'!Q69:Q76)+SUM('unit pricing 1-5 years scenario'!Q85:Q92)) -> 0 | N93: =(SUM('unit pricing 1-5 years scenario'!R69:R76)+SUM('unit pricing 1-5 years scenario'!R85:R92)) -> 0 | O93: =(SUM('unit pricing 1-5 years scenario'!S69:S76)+SUM('unit pricing 1-5 years scenario'!S85:S92)) -> 0 | P93: =(SUM('unit pricing 1-5 years scenario'!T69:T76)+SUM('unit pricing 1-5 years scenario'!T85:T92)) -> 0 | Q93: =(SUM('unit pricing 1-5 years scenario'!U69:U76)+SUM('unit pricing 1-5 years scenario'!U85:U92)) -> 0 | R93: =(SUM('unit pricing 1-5 years scenario'!V69:V76)+SUM('unit pricing 1-5 years scenario'!V85:V92)) -> 0 | S93: =(SUM('unit pricing 1-5 years scenario'!W69:W76)+SUM('unit pricing 1-5 years scenario'!W85:W92)) -> 0 | T93: =(SUM('unit pricing 1-5 years scenario'!X69:X76)+SUM('unit pricing 1-5 years scenario'!X85:X92)) -> 0 | U93: =(SUM('unit pricing 1-5 years scenario'!Y69:Y76)+SUM('unit pricing 1-5 years scenario'!Y85:Y92)) -> 0 | V93: =(SUM('unit pricing 1-5 years scenario'!Z69:Z876)+SUM('unit pricing 1-5 years scenario'!Z85:Z92)) -> 0 | W93: =(SUM('unit pricing 1-5 years scenario'!AA69:AA876)+SUM('unit pricing 1-5 years scenario'!AA85:AA92)) -> 0 | X93: =(SUM('unit pricing 1-5 years scenario'!AB69:AB876)+SUM('unit pricing 1-5 years scenario'!AB85:AB92)) -> 0 | Y93: =(SUM('unit pricing 1-5 years scenario'!AC69:AC876)+SUM('unit pricing 1-5 years scenario'!AC85:AC92)) -> 0 | Z93: =(SUM('unit pricing 1-5 years scenario'!AD69:AD876)+SUM('unit pricing 1-5 years scenario'!AD85:AD92)) -> 0 | AA93: =(SUM('unit pricing 1-5 years scenario'!AE69:AE876)+SUM('unit pricing 1-5 years scenario'!AE85:AE92)) -> 0
C94: LED maintenance | D94: =SUM(F94:T94) -> 0 | E94: =SUM('unit pricing 1-5 years scenario'!H138:H144)+SUM('unit pricing 1-5 years scenario'!H146:H160)+SUM('unit pricing 1-5 years scenario'!H162:H168) -> 0 | F94: 0 | G94: 0 | H94: 0 | I94: 0 | J94: 0 | K94: 0 | L94: 0 | M94: 0 | N94: 0 | O94: 0 | P94: 0 | Q94: 0 | R94: 0 | S94: 0 | T94: 0 | U94: 0 | V94: 0 | W94: 0 | X94: 0 | Y94: 0 | Z94: 0 | AA94: 0
C95: HPS maintenance | D95: 0 | E95: =SUM('unit pricing 1-5 years scenario'!H170:H176) -> 0 | F95: =+F11+F12 -> 0 | G95: 0 | H95: 0 | I95: 0 | J95: 0 | K95: 0 | L95: 0 | M95: 0 | N95: 0 | O95: 0 | P95: 0 | Q95: 0 | R95: 0 | S95: 0 | T95: 0 | U95: 0 | V95: 0 | W95: 0 | X95: 0 | Y95: 0 | Z95: 0 | AA95: 0
B96: =+'Data Input and Instructions'!$C$72 -> 0 | C96: Carbon Price/Carbon Neutral Govn't Savings | D96: =SUM(F96:T96) -> 0 | F96: =+'GHG savings'!I84 -> 0 | G96: =+F96*(1+$B$64) -> 0 | H96: 0 | I96: 0 | J96: 0 | K96: 0 | L96: 0 | M96: 0 | N96: 0 | O96: 0 | P96: 0 | Q96: 0 | R96: 0 | S96: 0 | T96: 0 | U96: 0
C97: Energy consumption KWh | D97: =SUM(F97:T97) -> 0 | F97: =SUM('unit pricing 1-5 years scenario'!J77:J84)+ SUM('unit pricing 1-5 years scenario'!J93:J100) -> 0 | G97: =SUM('unit pricing 1-5 years scenario'!K77:K84)+ SUM('unit pricing 1-5 years scenario'!K93:K100) -> 0 | H97: =SUM('unit pricing 1-5 years scenario'!L77:L84)+ SUM('unit pricing 1-5 years scenario'!L93:L100) -> 0 | I97: =SUM('unit pricing 1-5 years scenario'!M77:M84)+ SUM('unit pricing 1-5 years scenario'!M93:M100) -> 0 | J97: =SUM('unit pricing 1-5 years scenario'!N77:N84)+ SUM('unit pricing 1-5 years scenario'!N93:N100) -> 0 | K97: =SUM('unit pricing 1-5 years scenario'!O77:O84)+ SUM('unit pricing 1-5 years scenario'!O93:O100) -> 0 | L97: =SUM('unit pricing 1-5 years scenario'!P77:P84)+ SUM('unit pricing 1-5 years scenario'!P93:P100) -> 0 | M97: =SUM('unit pricing 1-5 years scenario'!Q77:Q84)+ SUM('unit pricing 1-5 years scenario'!Q93:Q100) -> 0 | N97: =SUM('unit pricing 1-5 years scenario'!R77:R84)+ SUM('unit pricing 1-5 years scenario'!R93:R100) -> 0 | O97: =SUM('unit pricing 1-5 years scenario'!S77:S84)+ SUM('unit pricing 1-5 years scenario'!S93:S100) -> 0 | P97: =SUM('unit pricing 1-5 years scenario'!T77:T84)+ SUM('unit pricing 1-5 years scenario'!T93:T100) -> 0 | Q97: =SUM('unit pricing 1-5 years scenario'!U77:U84)+ SUM('unit pricing 1-5 years scenario'!U93:U100) -> 0 | R97: =SUM('unit pricing 1-5 years scenario'!V77:V84)+ SUM('unit pricing 1-5 years scenario'!V93:V100) -> 0 | S97: =SUM('unit pricing 1-5 years scenario'!W77:W84)+ SUM('unit pricing 1-5 years scenario'!W93:W100) -> 0 | T97: =SUM('unit pricing 1-5 years scenario'!X77:X84)+ SUM('unit pricing 1-5 years scenario'!X93:X100) -> 0 | U97: =SUM('unit pricing 1-5 years scenario'!Y77:Y84)+ SUM('unit pricing 1-5 years scenario'!Y93:Y100) -> 0
B99: Present Value | C99: =C90 -> Capital Cost | D99: =SUM(F99:T99) -> 0 | E99: =E90*E$6 -> 0 | F99: 0 | G99: 0 | H99: 0 | I99: 0 | J99: 0 | K99: 0 | L99: 0 | M99: 0 | N99: 0 | O99: 0 | P99: 0 | Q99: 0 | R99: 0 | S99: 0 | T99: 0 | U99: 0 | V99: 0 | W99: 0 | X99: 0 | Y99: 0
C100: Volume Discounts | D100: =SUM(F100:T100) -> 0 | E100: =E91*E$6 -> 0 | F100: 0 | G100: 0 | H100: 0 | I100: 0 | J100: 0 | K100: 0 | L100: 0 | M100: 0 | N100: 0 | O100: 0 | P100: 0 | Q100: 0 | R100: 0 | S100: 0 | T100: 0
C101: Other Incentives | D101: 0 | E101: =E92*E$6 -> 0 | F101: 0 | G101: 0 | H101: 0 | I101: 0 | J101: 0 | K101: 0 | L101: 0 | M101: 0 | N101: 0 | O101: 0 | P101: 0 | Q101: 0 | R101: 0 | S101: 0 | T101: 0
C102: =C93 -> Energy | D102: 0 | E102: =E93*E$6 -> 0 | F102: 0 | G102: 0 | H102: 0 | I102: 0 | J102: 0 | K102: 0 | L102: 0 | M102: 0 | N102: 0 | O102: 0 | P102: 0 | Q102: 0 | R102: 0 | S102: 0 | T102: 0 | U102: =U93*U$6 -> 0 | V102: 0 | W102: 0 | X102: 0 | Y102: 0
C103: =C94 -> LED maintenance | D103: 0 | E103: =E94*E$6 -> 0 | F103: 0 | G103: 0 | H103: 0 | I103: 0 | J103: 0 | K103: 0 | L103: 0 | M103: 0 | N103: 0 | O103: 0 | P103: 0 | Q103: 0 | R103: 0 | S103: 0 | T103: 0 | U103: 0 | V103: 0 | W103: 0 | X103: 0 | Y103: 0
C104: =C95 -> HPS maintenance | D104: 0 | E104: =E95*E$6 -> 0 | F104: 0 | G104: 0 | H104: 0 | I104: 0 | J104: 0 | K104: 0 | L104: 0 | M104: 0 | N104: 0 | O104: 0 | P104: 0 | Q104: 0 | R104: 0 | S104: 0 | T104: 0 | U104: 0 | V104: 0 | W104: 0 | X104: 0 | Y104: 0
C105: =C96 -> Carbon Price/Carbon Neutral Govn't Savings | D105: 0 | E105: =E96*E$6 -> 0 | F105: 0 | G105: 0 | H105: 0 | I105: 0 | J105: 0 | K105: 0 | L105: 0 | M105: 0 | N105: 0 | O105: 0 | P105: 0 | Q105: 0 | R105: 0 | S105: 0 | T105: 0
C107: Total Present Value | D107: =+D99+D102+D103+D104-D100-D101 -> 0
C108: Term | D108: 15
C109: Equivalent Annual Cost (EAC) | D109: =-PMT($C$2,D108,D107,0,0) -> 0
A110: Comparative
C111: Total Present Value | D111: =+D107-D21 -> 0
C112: Term | D112: 15
C113: Equivalent Annual Cost (EAC) | D113: =+D109-D23 -> 0
C114: Carbon Neutral Govn't Savings | D114: =+D105 -> 0
C115: Volume Discounts | D115: =+D100 -> 0
C116: Other Incentives | D116: =+D101 -> 0
C117: Subtotal | D117: =+D111-D114-D115-D116 -> 0
C118: Rate of Savings | D118: =-((SUM(F102:T104)-SUM(F15:T18)-D114)/SUM(F99:T99))/15 -> 
C119: Rate of Savings after discounts | D119: =-((SUM(F102:U104)-SUM(F15:T18)-D114-D115-D116)/SUM(F99:T99)/15) -> 
A120: Cumulative Comparison and Payback
F121: 2013 | G121: 2014 | H121: 2015 | I121: 2016 | J121: 2017 | K121: 2018 | L121: 2019 | M121: 2020 | N121: 2021 | O121: 2022 | P121: 2023 | Q121: 2024 | R121: 2025 | S121: 2026 | T121: 2027
F122: 1 | G122: 2 | H122: 3 | I122: 4 | J122: 5 | K122: 6 | L122: 7 | M122: 8 | N122: 9 | O122: 10 | P122: 11 | Q122: 12 | R122: 13 | S122: 14 | T122: 15
D123: Cumulative Cost HPS | F123: =+SUM(F9:F12) -> 0 | G123: =+SUM(G9:G12)+F123 -> 0 | H123: 0 | I123: 0 | J123: 0 | K123: 0 | L123: 0 | M123: 0 | N123: 0 | O123: 0 | P123: 0 | Q123: 0 | R123: 0 | S123: 0 | T123: 0 | U123: =+SUM(U9:U12) -> 0 | V123: =+SUM(V9:V12) -> 0 | W123: =+SUM(W9:W12) -> 0 | X123: =+SUM(X9:X12) -> 0 | Y123: =+SUM(Y9:Y12) -> 0
D124: Cumulative Cost LED no adaptive controls | F124: =+SUM('unit pricing 1-5 years scenario'!J$5:J$28)+SUM('unit pricing 1-5 years scenario'!J$37:J$44)+SUM('unit pricing 1-5 years scenario'!J$85:J$92)+SUM('unit pricing 1-5 years scenario'!J$101:J$141) -> 0 | G124: =+SUM('unit pricing 1-5 years scenario'!K$5:K$28)+SUM('unit pricing 1-5 years scenario'!K$37:K$44)+SUM('unit pricing 1-5 years scenario'!K$85:K$92)+SUM('unit pricing 1-5 years scenario'!K$101:K$141)+F124 -> 0 | H124: =+SUM('unit pricing 1-5 years scenario'!L$5:L$28)+SUM('unit pricing 1-5 years scenario'!L$37:L$44)+SUM('unit pricing 1-5 years scenario'!L$85:L$92)+SUM('unit pricing 1-5 years scenario'!L$101:L$141)+G124 -> 0 | I124: =+SUM('unit pricing 1-5 years scenario'!M$5:M$28)+SUM('unit pricing 1-5 years scenario'!M$37:M$44)+SUM('unit pricing 1-5 years scenario'!M$85:M$92)+SUM('unit pricing 1-5 years scenario'!M$101:M$141)+H124 -> 0 | J124: =+SUM('unit pricing 1-5 years scenario'!N$5:N$28)+SUM('unit pricing 1-5 years scenario'!N$37:N$44)+SUM('unit pricing 1-5 years scenario'!N$85:N$92)+SUM('unit pricing 1-5 years scenario'!N$101:N$141)+I124 -> 0 | K124: =+SUM('unit pricing 1-5 years scenario'!O$5:O$28)+SUM('unit pricing 1-5 years scenario'!O$37:O$44)+SUM('unit pricing 1-5 years scenario'!O$85:O$92)+SUM('unit pricing 1-5 years scenario'!O$101:O$141)+J124 -> 0 | L124: =+SUM('unit pricing 1-5 years scenario'!P$5:P$28)+SUM('unit pricing 1-5 years scenario'!P$37:P$44)+SUM('unit pricing 1-5 years scenario'!P$85:P$92)+SUM('unit pricing 1-5 years scenario'!P$101:P$141)+K124 -> 0 | M124: =+SUM('unit pricing 1-5 years scenario'!Q$5:Q$28)+SUM('unit pricing 1-5 years scenario'!Q$37:Q$44)+SUM('unit pricing 1-5 years scenario'!Q$85:Q$92)+SUM('unit pricing 1-5 years scenario'!Q$101:Q$141)+L124 -> 0 | N124: =+SUM('unit pricing 1-5 years scenario'!R$5:R$28)+SUM('unit pricing 1-5 years scenario'!R$37:R$44)+SUM('unit pricing 1-5 years scenario'!R$85:R$92)+SUM('unit pricing 1-5 years scenario'!R$101:R$141)+M124 -> 0 | O124: =+SUM('unit pricing 1-5 years scenario'!S$5:S$28)+SUM('unit pricing 1-5 years scenario'!S$37:S$44)+SUM('unit pricing 1-5 years scenario'!S$85:S$92)+SUM('unit pricing 1-5 years scenario'!S$101:S$141)+N124 -> 0 | P124: =+SUM('unit pricing 1-5 years scenario'!T$5:T$28)+SUM('unit pricing 1-5 years scenario'!T$37:T$44)+SUM('unit pricing 1-5 years scenario'!T$85:T$92)+SUM('unit pricing 1-5 years scenario'!T$101:T$141)+O124 -> 0 | Q124: =+SUM('unit pricing 1-5 years scenario'!U$5:U$28)+SUM('unit pricing 1-5 years scenario'!U$37:U$44)+SUM('unit pricing 1-5 years scenario'!U$85:U$92)+SUM('unit pricing 1-5 years scenario'!U$101:U$141)+P124 -> 0 | R124: =+SUM('unit pricing 1-5 years scenario'!V$5:V$28)+SUM('unit pricing 1-5 years scenario'!V$37:V$44)+SUM('unit pricing 1-5 years scenario'!V$85:V$92)+SUM('unit pricing 1-5 years scenario'!V$101:V$141)+Q124 -> 0 | S124: =+SUM('unit pricing 1-5 years scenario'!W$5:W$28)+SUM('unit pricing 1-5 years scenario'!W$37:W$44)+SUM('unit pricing 1-5 years scenario'!W$85:W$92)+SUM('unit pricing 1-5 years scenario'!W$101:W$141)+R124 -> 0 | T124: =+SUM('unit pricing 1-5 years scenario'!X$5:X$28)+SUM('unit pricing 1-5 years scenario'!X$37:X$44)+SUM('unit pricing 1-5 years scenario'!X$85:X$92)+SUM('unit pricing 1-5 years scenario'!X$101:X$141)+S124 -> 0
C125: Minimum Positive (for ROI) | D125: Cumulative Cost LED with adaptive controls | F125: =+SUM('unit pricing 1-5 years scenario'!J$5:J$36)+SUM('unit pricing 1-5 years scenario'!J$53:J$60)+SUM('unit pricing 1-5 years scenario'!J$85:J$92)+SUM('unit pricing 1-5 years scenario'!J$101:J$141) -> 0 | G125: =+SUM('unit pricing 1-5 years scenario'!K$5:K$36)+SUM('unit pricing 1-5 years scenario'!K$53:K$60)+SUM('unit pricing 1-5 years scenario'!K$85:K$92)+SUM('unit pricing 1-5 years scenario'!K$101:K$141)+F125 -> 0 | H125: =+SUM('unit pricing 1-5 years scenario'!L$5:L$36)+SUM('unit pricing 1-5 years scenario'!L$53:L$60)+SUM('unit pricing 1-5 years scenario'!L$85:L$92)+SUM('unit pricing 1-5 years scenario'!L$101:L$141)+G125 -> 0 | I125: =+SUM('unit pricing 1-5 years scenario'!M$5:M$36)+SUM('unit pricing 1-5 years scenario'!M$53:M$60)+SUM('unit pricing 1-5 years scenario'!M$85:M$92)+SUM('unit pricing 1-5 years scenario'!M$101:M$141)+H125 -> 0 | J125: =+SUM('unit pricing 1-5 years scenario'!N$5:N$36)+SUM('unit pricing 1-5 years scenario'!N$53:N$60)+SUM('unit pricing 1-5 years scenario'!N$85:N$92)+SUM('unit pricing 1-5 years scenario'!N$101:N$141)+I125 -> 0 | K125: =+SUM('unit pricing 1-5 years scenario'!O$5:O$36)+SUM('unit pricing 1-5 years scenario'!O$53:O$60)+SUM('unit pricing 1-5 years scenario'!O$85:O$92)+SUM('unit pricing 1-5 years scenario'!O$101:O$141)+J125 -> 0 | L125: =+SUM('unit pricing 1-5 years scenario'!P$5:P$36)+SUM('unit pricing 1-5 years scenario'!P$53:P$60)+SUM('unit pricing 1-5 years scenario'!P$85:P$92)+SUM('unit pricing 1-5 years scenario'!P$101:P$141)+K125 -> 0 | M125: =+SUM('unit pricing 1-5 years scenario'!Q$5:Q$36)+SUM('unit pricing 1-5 years scenario'!Q$53:Q$60)+SUM('unit pricing 1-5 years scenario'!Q$85:Q$92)+SUM('unit pricing 1-5 years scenario'!Q$101:Q$141)+L125 -> 0 | N125: =+SUM('unit pricing 1-5 years scenario'!R$5:R$36)+SUM('unit pricing 1-5 years scenario'!R$53:R$60)+SUM('unit pricing 1-5 years scenario'!R$85:R$92)+SUM('unit pricing 1-5 years scenario'!R$101:R$141)+M125 -> 0 | O125: =+SUM('unit pricing 1-5 years scenario'!S$5:S$36)+SUM('unit pricing 1-5 years scenario'!S$53:S$60)+SUM('unit pricing 1-5 years scenario'!S$85:S$92)+SUM('unit pricing 1-5 years scenario'!S$101:S$141)+N125 -> 0 | P125: =+SUM('unit pricing 1-5 years scenario'!T$5:T$36)+SUM('unit pricing 1-5 years scenario'!T$53:T$60)+SUM('unit pricing 1-5 years scenario'!T$85:T$92)+SUM('unit pricing 1-5 years scenario'!T$101:T$141)+O125 -> 0 | Q125: =+SUM('unit pricing 1-5 years scenario'!U$5:U$36)+SUM('unit pricing 1-5 years scenario'!U$53:U$60)+SUM('unit pricing 1-5 years scenario'!U$85:U$92)+SUM('unit pricing 1-5 years scenario'!U$101:U$141)+P125 -> 0 | R125: =+SUM('unit pricing 1-5 years scenario'!V$5:V$36)+SUM('unit pricing 1-5 years scenario'!V$53:V$60)+SUM('unit pricing 1-5 years scenario'!V$85:V$92)+SUM('unit pricing 1-5 years scenario'!V$101:V$141)+Q125 -> 0 | S125: =+SUM('unit pricing 1-5 years scenario'!W$5:W$36)+SUM('unit pricing 1-5 years scenario'!W$53:W$60)+SUM('unit pricing 1-5 years scenario'!W$85:W$92)+SUM('unit pricing 1-5 years scenario'!W$101:W$141)+R125 -> 0 | T125: =+SUM('unit pricing 1-5 years scenario'!X$5:X$36)+SUM('unit pricing 1-5 years scenario'!X$53:X$60)+SUM('unit pricing 1-5 years scenario'!X$85:X$92)+SUM('unit pricing 1-5 years scenario'!X$101:X$141)+S125 -> 0
D126: Cumulative Cost Adaptive | F126: =SUM('unit pricing 1-5 years scenario'!J$21:J$28)+SUM('unit pricing 1-5 years scenario'!J$69:J$76)+SUM('unit pricing 1-5 years scenario'!J$85:J$92)+SUM('unit pricing 1-5 years scenario'!J$29:J$36)*1.3+SUM('Unit Pricing BAU'!J$36:J$59) -> 0 | G126: =SUM('unit pricing 1-5 years scenario'!K$21:K$28)+SUM('unit pricing 1-5 years scenario'!K$69:K$76)+SUM('unit pricing 1-5 years scenario'!K$85:K$92)+SUM('unit pricing 1-5 years scenario'!K$29:K$36)*1.3+SUM('Unit Pricing BAU'!K$36:K$59)+F126 -> 0 | H126: =SUM('unit pricing 1-5 years scenario'!L$21:L$28)+SUM('unit pricing 1-5 years scenario'!L$69:L$76)+SUM('unit pricing 1-5 years scenario'!L$85:L$92)+SUM('unit pricing 1-5 years scenario'!L$29:L$36)*1.3+SUM('Unit Pricing BAU'!L$36:L$59)+G126 -> 0 | I126: =SUM('unit pricing 1-5 years scenario'!M$21:M$28)+SUM('unit pricing 1-5 years scenario'!M$69:M$76)+SUM('unit pricing 1-5 years scenario'!M$85:M$92)+SUM('unit pricing 1-5 years scenario'!M$29:M$36)*1.3+SUM('Unit Pricing BAU'!M$36:M$59)+H126 -> 0 | J126: =SUM('unit pricing 1-5 years scenario'!N$21:N$28)+SUM('unit pricing 1-5 years scenario'!N$69:N$76)+SUM('unit pricing 1-5 years scenario'!N$85:N$92)+SUM('unit pricing 1-5 years scenario'!N$29:N$36)*1.3+SUM('Unit Pricing BAU'!N$36:N$59)+I126 -> 0 | K126: =SUM('unit pricing 1-5 years scenario'!O$21:O$28)+SUM('unit pricing 1-5 years scenario'!O$69:O$76)+SUM('unit pricing 1-5 years scenario'!O$85:O$92)+SUM('unit pricing 1-5 years scenario'!O$29:O$36)*1.3+SUM('Unit Pricing BAU'!O$36:O$59)+J126 -> 0 | L126: =SUM('unit pricing 1-5 years scenario'!P$21:P$28)+SUM('unit pricing 1-5 years scenario'!P$69:P$76)+SUM('unit pricing 1-5 years scenario'!P$85:P$92)+SUM('unit pricing 1-5 years scenario'!P$29:P$36)*1.3+SUM('Unit Pricing BAU'!P$36:P$59)+K126 -> 0 | M126: =SUM('unit pricing 1-5 years scenario'!Q$21:Q$28)+SUM('unit pricing 1-5 years scenario'!Q$69:Q$76)+SUM('unit pricing 1-5 years scenario'!Q$85:Q$92)+SUM('unit pricing 1-5 years scenario'!Q$29:Q$36)*1.3+SUM('Unit Pricing BAU'!Q$36:Q$59)+L126 -> 0 | N126: =SUM('unit pricing 1-5 years scenario'!R$21:R$28)+SUM('unit pricing 1-5 years scenario'!R$69:R$76)+SUM('unit pricing 1-5 years scenario'!R$85:R$92)+SUM('unit pricing 1-5 years scenario'!R$29:R$36)*1.3+SUM('Unit Pricing BAU'!R$36:R$59)+M126 -> 0 | O126: =SUM('unit pricing 1-5 years scenario'!S$21:S$28)+SUM('unit pricing 1-5 years scenario'!S$69:S$76)+SUM('unit pricing 1-5 years scenario'!S$85:S$92)+SUM('unit pricing 1-5 years scenario'!S$29:S$36)*1.3+SUM('Unit Pricing BAU'!S$36:S$59)+N126 -> 0 | P126: =SUM('unit pricing 1-5 years scenario'!T$21:T$28)+SUM('unit pricing 1-5 years scenario'!T$69:T$76)+SUM('unit pricing 1-5 years scenario'!T$85:T$92)+SUM('unit pricing 1-5 years scenario'!T$29:T$36)*1.3+SUM('Unit Pricing BAU'!T$36:T$59)+O126 -> 0 | Q126: =SUM('unit pricing 1-5 years scenario'!U$21:U$28)+SUM('unit pricing 1-5 years scenario'!U$69:U$76)+SUM('unit pricing 1-5 years scenario'!U$85:U$92)+SUM('unit pricing 1-5 years scenario'!U$29:U$36)*1.3+SUM('Unit Pricing BAU'!U$36:U$59)+P126 -> 0 | R126: =SUM('unit pricing 1-5 years scenario'!V$21:V$28)+SUM('unit pricing 1-5 years scenario'!V$69:V$76)+SUM('unit pricing 1-5 years scenario'!V$85:V$92)+SUM('unit pricing 1-5 years scenario'!V$29:V$36)*1.3+SUM('Unit Pricing BAU'!V$36:V$59)+Q126 -> 0 | S126: =SUM('unit pricing 1-5 years scenario'!W$21:W$28)+SUM('unit pricing 1-5 years scenario'!W$69:W$76)+SUM('unit pricing 1-5 years scenario'!W$85:W$92)+SUM('unit pricing 1-5 years scenario'!W$29:W$36)*1.3+SUM('Unit Pricing BAU'!W$36:W$59)+R126 -> 0 | T126: =SUM('unit pricing 1-5 years scenario'!X$21:X$28)+SUM('unit pricing 1-5 years scenario'!X$69:X$76)+SUM('unit pricing 1-5 years scenario'!X$85:X$92)+SUM('unit pricing 1-5 years scenario'!X$29:X$36)*1.3+SUM('Unit Pricing BAU'!X$36:X$59)+S126 -> 0
C127: =MIN(IF(F127:T127>0,F127:T127)) -> 0 | D127: Cumulative savings LED no adaptive controls | F127: =+F123-F124 -> 0 | G127: 0 | H127: 0 | I127: 0 | J127: 0 | K127: 0 | L127: 0 | M127: 0 | N127: 0 | O127: 0 | P127: 0 | Q127: 0 | R127: 0 | S127: 0 | T127: 0
C128: =MIN(IF(F128:T128>0,F128:T128)) -> 0 | D128: Cumulative savings LED with adaptive controls | F128: =+F123-F125 -> 0 | G128: 0 | H128: 0 | I128: 0 | J128: 0 | K128: 0 | L128: 0 | M128: 0 | N128: 0 | O128: 0 | P128: 0 | Q128: 0 | R128: 0 | S128: 0 | T128: 0
C129: =MIN(IF(F129:T129>0,F129:T129)) -> 0 | D129: Cumulative savings adaptive | F129: =F123-F126 -> 0 | G129: =G123-G126 -> 0 | H129: 0 | I129: 0 | J129: 0 | K129: 0 | L129: 0 | M129: 0 | N129: 0 | O129: 0 | P129: 0 | Q129: 0 | R129: 0 | S129: 0 | T129: 0
E130: 1 | F130: 2 | G130: 3 | H130: 4 | I130: 5 | J130: 6 | K130: 7 | L130: 8 | M130: 9 | N130: 10 | O130: 11 | P130: 12 | Q130: 13 | R130: 14 | S130: 15
D131: Other cumulative discounts LED no adaptive | F131: =($D$50/15)+F35+F36+F40 -> 0 | G131: =($D$50/15)+G35+G36+G40+F131 -> 0 | H131: 0 | I131: 0 | J131: 0 | K131: 0 | L131: 0 | M131: 0 | N131: 0 | O131: 0 | P131: 0 | Q131: 0 | R131: 0 | S131: 0 | T131: 0 | U131: 0 | V131: =($D$50/15)+V35+U131 -> 0 | W131: =($D$50/15)+W35+V131 -> 0 | X131: =($D$50/15)+X35+W131 -> 0 | Y131: =($D$50/15)+Y35+X131 -> 0
D132: Other cumulative discounts LED with adaptive | F132: =($D$82/15)+F68+F69+F73 -> 0 | G132: =($D$82/15)+G68+G69+G73+F132 -> 0 | H132: 0 | I132: 0 | J132: 0 | K132: 0 | L132: 0 | M132: 0 | N132: 0 | O132: 0 | P132: 0 | Q132: 0 | R132: 0 | S132: 0 | T132: 0 | U132: 0 | V132: =($D$82/15)+V68+U132 -> 0 | W132: =($D$82/15)+W68+V132 -> 0 | X132: =($D$82/15)+X68+W132 -> 0 | Y132: =($D$82/15)+Y68+X132 -> 0
D133: Other cumulative discounts adaptive only | F133: =($D$114/15)+F$100+F$101+F$105 -> 0 | G133: =($D$114/15)+G$100+G$101+G$105+F133 -> 0 | H133: 0 | I133: 0 | J133: 0 | K133: 0 | L133: 0 | M133: 0 | N133: 0 | O133: 0 | P133: 0 | Q133: 0 | R133: 0 | S133: 0 | T133: 0
D134: Cumulative cost LED without adaptive controls after incentives | F134: =+F124-F131 -> 0 | G134: 0 | H134: 0 | I134: 0 | J134: 0 | K134: 0 | L134: 0 | M134: 0 | N134: 0 | O134: 0 | P134: 0 | Q134: 0 | R134: 0 | S134: 0 | T134: 0
D135: Cumulative cost LED with adaptive controls after incentives | F135: =+F125-F132 -> 0 | G135: 0 | H135: 0 | I135: 0 | J135: 0 | K135: 0 | L135: 0 | M135: 0 | N135: 0 | O135: 0 | P135: 0 | Q135: 0 | R135: 0 | S135: 0 | T135: 0
D136: Cumulative cost adaptive only after incentives | F136: =F126-F133 -> 0 | G136: =G126-G133 -> 0 | H136: 0 | I136: 0 | J136: 0 | K136: 0 | L136: 0 | M136: 0 | N136: 0 | O136: 0 | P136: 0 | Q136: 0 | R136: 0 | S136: 0 | T136: 0
C137: =MIN(IF(F137:T137>0,F137:T137)) -> 0 | D137: Cumulative savings LED without adpative controls after incentives | F137: =+F127+F131 -> 0 | G137: 0 | H137: 0 | I137: 0 | J137: 0 | K137: 0 | L137: 0 | M137: 0 | N137: 0 | O137: 0 | P137: 0 | Q137: 0 | R137: 0 | S137: 0 | T137: 0
C138: =MIN(IF(F138:T138>0,F138:T138)) -> 0 | D138: Cumulative savings LED with adaptive controls after incentives | F138: =+F128+F132 -> 0 | G138: 0 | H138: 0 | I138: 0 | J138: 0 | K138: 0 | L138: 0 | M138: 0 | N138: 0 | O138: 0 | P138: 0 | Q138: 0 | R138: 0 | S138: 0 | T138: 0
C139: =MIN(IF(F139:T139>0,F139:T139)) -> 0 | D139: Cumulative savings LED adaptive only after incentives | F139: =F129+F133 -> 0 | G139: =G129+G133 -> 0 | H139: 0 | I139: 0 | J139: 0 | K139: 0 | L139: 0 | M139: 0 | N139: 0 | O139: 0 | P139: 0 | Q139: 0 | R139: 0 | S139: 0 | T139: 0
E140: 1 | F140: 2 | G140: 3 | H140: 4 | I140: 5 | J140: 6 | K140: 7 | L140: 8 | M140: 9 | N140: 10 | O140: 11 | P140: 12 | Q140: 13 | R140: 14 | S140: 15
D142: Cumulative cost active | F142: =CHOOSE('Data Input and Instructions'!$E$24,Comparative!F$134,Comparative!F$135,Comparative!F$136,0) -> 0 | G142: =CHOOSE('Data Input and Instructions'!$E$24,Comparative!G$134,Comparative!G$135,Comparative!G$136,0) -> 0 | H142: =CHOOSE('Data Input and Instructions'!$E$24,Comparative!H$134,Comparative!H$135,Comparative!H$136,0) -> 0 | I142: =CHOOSE('Data Input and Instructions'!$E$24,Comparative!I$134,Comparative!I$135,Comparative!I$136,0) -> 0 | J142: =CHOOSE('Data Input and Instructions'!$E$24,Comparative!J$134,Comparative!J$135,Comparative!J$136,0) -> 0 | K142: =CHOOSE('Data Input and Instructions'!$E$24,Comparative!K$134,Comparative!K$135,Comparative!K$136,0) -> 0 | L142: =CHOOSE('Data Input and Instructions'!$E$24,Comparative!L$134,Comparative!L$135,Comparative!L$136,0) -> 0 | M142: =CHOOSE('Data Input and Instructions'!$E$24,Comparative!M$134,Comparative!M$135,Comparative!M$136,0) -> 0 | N142: =CHOOSE('Data Input and Instructions'!$E$24,Comparative!N$134,Comparative!N$135,Comparative!N$136,0) -> 0 | O142: =CHOOSE('Data Input and Instructions'!$E$24,Comparative!O$134,Comparative!O$135,Comparative!O$136,0) -> 0 | P142: =CHOOSE('Data Input and Instructions'!$E$24,Comparative!P$134,Comparative!P$135,Comparative!P$136,0) -> 0 | Q142: =CHOOSE('Data Input and Instructions'!$E$24,Comparative!Q$134,Comparative!Q$135,Comparative!Q$136,0) -> 0 | R142: =CHOOSE('Data Input and Instructions'!$E$24,Comparative!R$134,Comparative!R$135,Comparative!R$136,0) -> 0 | S142: =CHOOSE('Data Input and Instructions'!$E$24,Comparative!S$134,Comparative!S$135,Comparative!S$136,0) -> 0 | T142: =CHOOSE('Data Input and Instructions'!$E$24,Comparative!T$134,Comparative!T$135,Comparative!T$136,0) -> 0
D143: Cumulative cost bau | F143: =F$123 -> 0 | G143: =G$123 -> 0 | H143: 0 | I143: 0 | J143: 0 | K143: 0 | L143: 0 | M143: 0 | N143: 0 | O143: 0 | P143: 0 | Q143: 0 | R143: 0 | S143: 0 | T143: 0
D145: Cumulative energy active | F145: =CHOOSE('Data Input and Instructions'!$E$24,F$41,F$65,F$97,0) -> 0 | G145: =CHOOSE('Data Input and Instructions'!$E$24,G$41,G$65,G$97,0)+F145 -> 0 | H145: =CHOOSE('Data Input and Instructions'!$E$24,H$41,H$65,H$97,0)+G145 -> 0 | I145: =CHOOSE('Data Input and Instructions'!$E$24,I$41,I$65,I$97,0)+H145 -> 0 | J145: =CHOOSE('Data Input and Instructions'!$E$24,J$41,J$65,J$97,0)+I145 -> 0 | K145: =CHOOSE('Data Input and Instructions'!$E$24,K$41,K$65,K$97,0)+J145 -> 0 | L145: =CHOOSE('Data Input and Instructions'!$E$24,L$41,L$65,L$97,0)+K145 -> 0 | M145: =CHOOSE('Data Input and Instructions'!$E$24,M$41,M$65,M$97,0)+L145 -> 0 | N145: =CHOOSE('Data Input and Instructions'!$E$24,N$41,N$65,N$97,0)+M145 -> 0 | O145: =CHOOSE('Data Input and Instructions'!$E$24,O$41,O$65,O$97,0)+N145 -> 0 | P145: =CHOOSE('Data Input and Instructions'!$E$24,P$41,P$65,P$97,0)+O145 -> 0 | Q145: =CHOOSE('Data Input and Instructions'!$E$24,Q$41,Q$65,Q$97,0)+P145 -> 0 | R145: =CHOOSE('Data Input and Instructions'!$E$24,R$41,R$65,R$97,0)+Q145 -> 0 | S145: =CHOOSE('Data Input and Instructions'!$E$24,S$41,S$65,S$97,0)+R145 -> 0 | T145: =CHOOSE('Data Input and Instructions'!$E$24,T$41,T$65,T$97,0)+S145 -> 0
D146: Cumulative energy bau | F146: =F19 -> 0 | G146: =G19+F146 -> 0 | H146: 0 | I146: 0 | J146: 0 | K146: 0 | L146: 0 | M146: 0 | N146: 0 | O146: 0 | P146: 0 | Q146: 0 | R146: 0 | S146: 0 | T146: 0

Sheet One Street Light Example (hidden)
G1: One Street Light Example 70 Watts 50% efficiency
E3: 2013 | F3: 2014 | G3: 2015 | H3: 2016 | I3: 2017 | J3: 2018 | K3: 2019 | L3: 2020 | M3: 2021 | N3: 2022 | O3: 2023 | P3: 2024 | Q3: 2025 | R3: 2026 | S3: 2027 | T3: Payback Period | U3: Rate of Annual Savings
B4: Lamp and Installation | C4: HPS
C5: LED | E5: =+'unit pricing 1-5 years scenario'!F6+'unit pricing 1-5 years scenario'!F14 -> 375.9375
B6: Maintenance | C6: HPS | I6: 33.14 | N6: =92.14+33.14 -> 125.28 | S6: 33.14
C7: LED | N7: 33
B8: Failures & Replacements | C8: HPS | E8: 260 | F8: =$I$6*0.1 -> 3.314 | G8: 3.314 | H8: 3.314 | I8: 3.314 | J8: 3.314 | K8: 3.314 | L8: 3.314 | M8: 3.314 | N8: 3.314 | O8: 3.314 | P8: 3.314 | Q8: 3.314 | R8: 3.314 | S8: 3.314
C9: LED | E9: =($E$5*0.01) -> 3.759375 | F9: =($E$5*0.01) -> 3.759375 | G9: 3.759375 | H9: 3.759375 | I9: 3.759375 | J9: 3.759375 | K9: 3.759375 | L9: 3.759375 | M9: 3.759375 | N9: 3.759375 | O9: 3.759375 | P9: 3.759375 | Q9: 3.759375 | R9: 3.759375 | S9: 3.759375
B10: Electricity | C10: HPS | E10: 29.27 | F10: =$E10 -> 29.27 | G10: =$E10 -> 29.27 | H10: 29.27 | I10: 29.27 | J10: 29.27 | K10: 29.27 | L10: 29.27 | M10: 29.27 | N10: 29.27 | O10: 29.27 | P10: 29.27 | Q10: 29.27 | R10: 29.27 | S10: 29.27
C11: LED | E11: 14.63 | F11: =$E11 -> 14.63 | G11: 14.63 | H11: 14.63 | I11: 14.63 | J11: 14.63 | K11: 14.63 | L11: 14.63 | M11: 14.63 | N11: 14.63 | O11: 14.63 | P11: 14.63 | Q11: 14.63 | R11: 14.63 | S11: 14.63
B13: Cumulative Annual Cost | C13: HPS | E13: =+E4+E8+E10 -> 289.27 | F13: =+F4+F6+F10+E13 -> 318.54 | G13: =+G4+G6+G10+F13 -> 347.81 | H13: 377.08 | I13: 439.49 | J13: 468.76 | K13: 498.03 | L13: 527.3 | M13: 556.57 | N13: 711.12 | O13: 740.39 | P13: 769.66 | Q13: 798.93 | R13: 828.2 | S13: 890.61
C14: LED | E14: =+E5+E9+E11 -> 394.326875 | F14: =+E14+F5+F7+F11 -> 408.956875 | G14: =+F14+G5+G7+G11 -> 423.586875 | H14: 438.216875 | I14: 452.846875 | J14: 467.476875 | K14: 482.106875 | L14: 496.736875 | M14: 511.366875 | N14: 558.996875 | O14: 573.626875 | P14: 588.256875 | Q14: 602.886875 | R14: 617.516875 | S14: 632.146875
B15: Subtotal 1 (Cumulative Savings) | E15: =E13-E14 -> -105.056875 | F15: =F13-F14 -> -90.416875 | G15: -75.776875 | H15: -61.136875 | I15: -13.356875 | J15: 1.283125 | K15: 15.923125 | L15: 30.563125 | M15: 45.203125 | N15: 152.123125 | O15: 166.763125 | P15: 181.403125 | Q15: 196.043125 | R15: 210.683125 | S15: 258.463125 | T15: 10
B16: Carbon Neutral Government Savings | E16: 3 | F16: =+E16+3 -> 6 | G16: =+F16+3 -> 9 | H16: 12 | I16: 15 | J16: 18 | K16: 21 | L16: 24 | M16: 27 | N16: 30 | O16: 33 | P16: 36 | Q16: 39 | R16: 42 | S16: 45
B17: Subtotal 2 | E17: =+E15+E16 -> -102.056875 | F17: -84.416875 | G17: -66.776875 | H17: -49.136875 | I17: 1.643125 | J17: 19.283125 | K17: 36.923125 | L17: 54.563125 | M17: 72.203125 | N17: 182.123125 | O17: 199.763125 | P17: 217.403125 | Q17: 235.043125 | R17: 252.683125 | S17: 303.463125 | T17: 10
B18: Volume Discount | E18: =+E5*0.1 -> 37.59375
B19: Subtotal 3 | E19: =+E17+E18 -> -64.463125 | F19: =+F17+$E$18 -> -46.823125 | G19: =+G17+$E$18 -> -29.183125 | H19: -11.543125 | I19: 39.236875 | J19: 56.876875 | K19: 74.516875 | L19: 92.156875 | M19: 109.796875 | N19: 219.716875 | O19: 237.356875 | P19: 254.996875 | Q19: 272.636875 | R19: 290.276875 | S19: 341.056875 | T19: 8
B20: Power Smart Contribution | E20: =+E18*0.2 -> 7.51875
B21: Subtotal 4 | E21: =+E19+E20 -> -56.944375 | F21: =+F19+$E$20 -> -39.304375 | G21: =+G19+$E$20 -> -21.664375 | H21: -4.024375 | I21: 46.755625 | J21: 64.395625 | K21: 82.035625 | L21: 99.675625 | M21: 117.315625 | N21: 227.235625 | O21: 244.875625 | P21: 262.515625 | Q21: 280.155625 | R21: 297.795625 | S21: 348.575625 | T21: 7
B22: Other Incentives
B23: Total | E23: =+E21+E22 -> -56.944375 | F23: =+F21+$E$46 -> -39.304375 | G23: =+G21+$E$46 -> -21.664375 | H23: -4.024375 | I23: 46.755625 | J23: 64.395625 | K23: 82.035625 | L23: 99.675625 | M23: 117.315625 | N23: 227.235625 | O23: 244.875625 | P23: 262.515625 | Q23: 280.155625 | R23: 297.795625 | S23: 348.575625
J26: One Street Light Example 70 Watts 70% efficiency with adaptative controls
E27: 2013 | F27: 2014 | G27: 2015 | H27: 2016 | I27: 2017 | J27: 2018 | K27: 2019 | L27: 2020 | M27: 2021 | N27: 2022 | O27: 2023 | P27: 2024 | Q27: 2025 | R27: 2026 | S27: 2027 | T27: Payback Period | U27: Rate of Annual Savings
B28: Lamp and Installation | C28: HPS | T28: =SUM(E28:S28) -> 0
C29: LED | E29: =+'unit pricing 1-5 years scenario'!F6+'unit pricing 1-5 years scenario'!F14+'unit pricing 1-5 years scenario'!F30 -> 500.9375 | T29: =SUM(E29:S29) -> 500.9375
B30: Maintenance | C30: HPS | I30: 33.14 | N30: =92.14+33.14 -> 125.28 | S30: 33.14 | T30: 191.56
C31: LED | N31: 33 | T31: 33
B32: Failures & Replacements | C32: HPS | E32: 260 | F32: =$I$6*0.1 -> 3.314 | G32: 3.314 | H32: 3.314 | I32: 3.314 | J32: 3.314 | K32: 3.314 | L32: 3.314 | M32: 3.314 | N32: 3.314 | O32: 3.314 | P32: 3.314 | Q32: 3.314 | R32: 3.314 | S32: 3.314 | T32: 306.396
C33: LED | E33: =($E$5*0.01) -> 3.759375 | F33: =($E$5*0.01) -> 3.759375 | G33: 3.759375 | H33: 3.759375 | I33: 3.759375 | J33: 3.759375 | K33: 3.759375 | L33: 3.759375 | M33: 3.759375 | N33: 3.759375 | O33: 3.759375 | P33: 3.759375 | Q33: 3.759375 | R33: 3.759375 | S33: 3.759375 | T33: 56.390625
B34: Electricity | C34: HPS | E34: =+'unit pricing 1-5 years scenario'!F86 -> 32.7327 | F34: =$E34 -> 32.7327 | G34: =$E34 -> 32.7327 | H34: 32.7327 | I34: 32.7327 | J34: 32.7327 | K34: 32.7327 | L34: 32.7327 | M34: 32.7327 | N34: 32.7327 | O34: 32.7327 | P34: 32.7327 | Q34: 32.7327 | R34: 32.7327 | S34: 32.7327 | T34: 490.9905
C35: LED | E35: =+'unit pricing 1-5 years scenario'!F54 -> 9.81981 | F35: =$E35 -> 9.81981 | G35: 9.81981 | H35: 9.81981 | I35: 9.81981 | J35: 9.81981 | K35: 9.81981 | L35: 9.81981 | M35: 9.81981 | N35: 9.81981 | O35: 9.81981 | P35: 9.81981 | Q35: 9.81981 | R35: 9.81981 | S35: 9.81981 | T35: 147.29715
B37: Cumulative Annual Cost | C37: HPS | E37: =+E28+E32+E34 -> 292.7327 | F37: =+F28+F30+F34+E37 -> 325.4654 | G37: =+G28+G30+G34+F37 -> 358.1981 | H37: 390.9308 | I37: 456.8035 | J37: 489.5362 | K37: 522.2689 | L37: 555.0016 | M37: 587.7343 | N37: 745.747 | O37: 778.4797 | P37: 811.2124 | Q37: 843.9451 | R37: 876.6778 | S37: 942.5505
C38: LED | E38: =+E29+E33+E35 -> 514.516685 | F38: =+E38+F29+F31+F35 -> 524.336495 | G38: =+F38+G29+G31+G35 -> 534.156305 | H38: 543.976115 | I38: 553.795925 | J38: 563.615735 | K38: 573.435545 | L38: 583.255355 | M38: 593.075165 | N38: 635.894975 | O38: 645.714785 | P38: 655.534595 | Q38: 665.354405 | R38: 675.174215 | S38: 684.994025
B39: Subtotal 1 (Cumulative Savings) | E39: =E37-E38 -> -221.783985 | F39: =F37-F38 -> -198.871095 | G39: -175.958205 | H39: -153.045315 | I39: -96.992425 | J39: -74.079535 | K39: -51.166645 | L39: -28.253755 | M39: -5.340865 | N39: =N37-N38 -> 109.852025 | O39: 132.764915 | P39: 155.677805 | Q39: 178.590695 | R39: 201.503585 | S39: 257.556475 | T39: 10
B40: Carbon Neutral Government Savings | E40: 4.25 | F40: 8.5 | G40: 12.75 | H40: 17 | I40: 21.25 | J40: 25.5 | K40: 29.75 | L40: 34 | M40: 38.25 | N40: 42.5 | O40: 46.75 | P40: 51 | Q40: 55.25 | R40: 59.5 | S40: 63.75
B41: Subtotal 2 | E41: =+E39+E40 -> -217.533985 | F41: -190.371095 | G41: -163.208205 | H41: -136.045315 | I41: -75.742425 | J41: -48.579535 | K41: -21.416645 | L41: 5.746245 | M41: 32.909135 | N41: 152.352025 | O41: 179.514915 | P41: 206.677805 | Q41: 233.840695 | R41: 261.003585 | S41: 321.306475 | T41: 10
B42: Volume Discount | E42: =+E29*0.1 -> 50.09375
B43: Subtotal 3 | E43: =+E41+E42 -> -167.440235 | F43: =+F41+$E$42 -> -140.277345 | G43: =+G41+$E$42 -> -113.114455 | H43: -85.951565 | I43: -25.648675 | J43: 1.514215 | K43: 28.677105 | L43: 55.839995 | M43: 83.002885 | N43: 202.445775 | O43: 229.608665 | P43: 256.771555 | Q43: 283.934445 | R43: 311.097335 | S43: 371.400225 | T43: 9
B44: Power Smart Contribution | E44: =+E42*0.2 -> 10.01875
B45: Subtotal 4 | E45: =+E43+E44 -> -157.421485 | F45: =+F43+$E$44 -> -130.258595 | G45: =+G43+$E$44 -> -103.095705 | H45: -75.932815 | I45: -15.629925 | J45: 11.532965 | K45: 38.695855 | L45: 65.858745 | M45: 93.021635 | N45: 212.464525 | O45: 239.627415 | P45: 266.790305 | Q45: 293.953195 | R45: 321.116085 | S45: 381.418975 | T45: 8
B46: Other Incentives
B47: Total | E47: =+E45+E46 -> -157.421485 | F47: =+F45+$E$46 -> -130.258595 | G47: =+G45+$E$46 -> -103.095705 | H47: -75.932815 | I47: -15.629925 | J47: 11.532965 | K47: 38.695855 | L47: 65.858745 | M47: 93.021635 | N47: 212.464525 | O47: 239.627415 | P47: 266.790305 | Q47: 293.953195 | R47: 321.116085 | S47: 381.418975 | T47: 8

Sheet Unit Pricing BAU (hidden)
A1: quantity 50 | B1: =+'Data Input and Instructions'!C26 -> 0 | E1: phases | F1: 5 | H1: year => | I1: annual | J1: 1 | K1: =1+J1 -> 2 | L1: =1+K1 -> 3 | M1: 4 | N1: 5 | O1: 6 | P1: 7 | Q1: 8 | R1: 9 | S1: 10 | T1: 11 | U1: 12 | V1: =1+U1 -> 13 | W1: =1+V1 -> 14 | X1: =1+W1 -> 15 | Y1: 16
A2: quantity 70 | B2: =+'Data Input and Instructions'!$C$27 -> 0 | H2: HPS | I2: adjustment | J2: 1 | K2: 1 | L2: 1 | M2: 1 | N2: 1 | O2: 1 | P2: 1 | Q2: 1 | R2: 1 | S2: 1 | T2: 1 | U2: 1 | V2: 1 | W2: 1 | X2: 1 | Y2: 1
A3: quantity 100 | B3: =+'Data Input and Instructions'!C$28 -> 0 | H3: LED | J3: 0 | K3: 0 | L3: 0 | M3: 0 | N3: =N1/$F$1 -> 1 | O3: 1 | P3: 1 | Q3: 1 | R3: 1 | S3: 1 | T3: 1 | U3: 1 | V3: 1 | W3: 1 | X3: 1 | Y3: 1
A4: quantity 150 | B4: =+'Data Input and Instructions'!$C$29 -> 0 | E4: unit capital cost 50 watt (Light bulbs only) | F4: 18 | G4: =+$B$1 -> 0 | H4: =F4*G4 -> 0 | I4: 0.25 | J4: =J$2*$H4*$I4 -> 0 | K4: =K$2*$H4*$I4*((1+$B$29)^J$1) -> 0 | L4: =L$2*$H4*$I4*((1+$B$29)^K$1) -> 0 | M4: =M$2*$H4*$I4*((1+$B$29)^L$1) -> 0 | N4: =N$2*$H4*$I4*((1+$B$29)^M$1) -> 0 | O4: =O$2*$H4*$I4*((1+$B$29)^N$1) -> 0 | P4: =P$2*$H4*$I4*((1+$B$29)^O$1) -> 0 | Q4: =Q$2*$H4*$I4*((1+$B$29)^P$1) -> 0 | R4: =R$2*$H4*$I4*((1+$B$29)^Q$1) -> 0 | S4: =S$2*$H4*$I4*((1+$B$29)^R$1) -> 0 | T4: =T$2*$H4*$I4*((1+$B$29)^S$1) -> 0 | U4: =U$2*$H4*$I4*((1+$B$29)^T$1) -> 0 | V4: =V$2*$H4*$I4*((1+$B$29)^U$1) -> 0 | W4: =W$2*$H4*$I4*((1+$B$29)^V$1) -> 0 | X4: =X$2*$H4*$I4*((1+$B$29)^W$1) -> 0 | Y4: =Y$2*$H4*$I4*((1+$B$29)^X$1) -> 0
A5: quantity 200 | B5: =+'Data Input and Instructions'!$C$30 -> 0 | E5: unit capital cost 70 watt (Light bulbs only) | F5: 14 | G5: =+$B$2 -> 0 | H5: =F5*G5 -> 0 | I5: 0.25 | J5: 0 | K5: 0 | L5: 0 | M5: 0 | N5: 0 | O5: 0 | P5: 0 | Q5: 0 | R5: 0 | S5: 0 | T5: 0 | U5: 0 | V5: 0 | W5: 0 | X5: 0 | Y5: 0
A6: quantity 250 | B6: =+'Data Input and Instructions'!$C$31 -> 0 | E6: unit capital cost 100 watt (Light bulbs only) | F6: 13 | G6: =+$B$3 -> 0 | H6: 0 | I6: 0.25 | J6: 0 | K6: 0 | L6: 0 | M6: 0 | N6: 0 | O6: 0 | P6: 0 | Q6: 0 | R6: 0 | S6: 0 | T6: 0 | U6: 0 | V6: 0 | W6: 0 | X6: 0 | Y6: 0
A7: quantity 400 | B7: =+'Data Input and Instructions'!C32 -> 0 | E7: unit capital cost 150 watt (Light bulbs only) | F7: 13 | G7: =+$B$4 -> 0 | H7: 0 | I7: 0.25 | J7: 0 | K7: 0 | L7: 0 | M7: 0 | N7: 0 | O7: 0 | P7: 0 | Q7: 0 | R7: 0 | S7: 0 | T7: 0 | U7: 0 | V7: 0 | W7: 0 | X7: 0 | Y7: 0
A8: quantity 1000 | B8: =+'Data Input and Instructions'!C33 -> 0 | E8: unit capital cost 200 watt (Light bulbs only) | F8: 15 | G8: =+$B$5 -> 0 | H8: 0 | I8: 0.25 | J8: 0 | K8: 0 | L8: 0 | M8: 0 | N8: 0 | O8: 0 | P8: 0 | Q8: 0 | R8: 0 | S8: 0 | T8: 0 | U8: 0 | V8: 0 | W8: 0 | X8: 0 | Y8: 0
A9: Total | B9: =SUM(B1:B8) -> 0 | E9: unit capital cost 250 watt (Light bulbs only) | F9: 13 | G9: =+$B$6 -> 0 | H9: 0 | I9: 0.25 | J9: 0 | K9: 0 | L9: 0 | M9: 0 | N9: 0 | O9: 0 | P9: 0 | Q9: 0 | R9: 0 | S9: 0 | T9: 0 | U9: 0 | V9: 0 | W9: 0 | X9: 0 | Y9: 0
E10: unit capital cost 400 watt (Light bulbs only) | F10: 13 | G10: =+$B$7 -> 0 | H10: 0 | I10: 0.25 | J10: 0 | K10: 0 | L10: 0 | M10: 0 | N10: 0 | O10: 0 | P10: 0 | Q10: 0 | R10: 0 | S10: 0 | T10: 0 | U10: 0 | V10: 0 | W10: 0 | X10: 0 | Y10: 0
E11: unit capital cost 1000 watt (Light bulbs only) | F11: 19 | G11: =+$B$8 -> 0 | H11: 0 | I11: 0.25 | J11: 0 | K11: 0 | L11: 0 | M11: 0 | N11: 0 | O11: 0 | P11: 0 | Q11: 0 | R11: 0 | S11: 0 | T11: 0 | U11: 0 | V11: 0 | W11: 0 | X11: 0 | Y11: 0
E12: Installation cost 50 watt (relamping included in group maintenance) | G12: =+$B$1 -> 0 | H12: =F12*G12 -> 0 | I12: 0.3 | J12: 0 | K12: 0 | L12: 0 | M12: 0 | N12: 0 | O12: 0 | P12: 0 | Q12: 0 | R12: 0 | S12: 0 | T12: 0 | U12: 0 | V12: 0 | W12: 0 | X12: 0 | Y12: 0
E13: Installation cost 70 watt (relamping included in group maintenance) | G13: =+$B$2 -> 0 | H13: =F13*G13 -> 0 | I13: 0.3 | J13: 0 | K13: 0 | L13: 0 | M13: 0 | N13: 0 | O13: 0 | P13: 0 | Q13: 0 | R13: 0 | S13: 0 | T13: 0 | U13: 0 | V13: 0 | W13: 0 | X13: 0 | Y13: 0
A14: BCHydro Rate Oct 30, 2012 | B14: =+'Data Input and Instructions'!$C$63 -> 0.029975 | C14: per watt per month | E14: Installation cost 100 watt (relamping included in group maintenance) | G14: =+$B$3 -> 0 | H14: =F14*G14 -> 0 | I14: 0.3 | J14: 0 | K14: 0 | L14: 0 | M14: 0 | N14: 0 | O14: 0 | P14: 0 | Q14: 0 | R14: 0 | S14: 0 | T14: 0 | U14: 0 | V14: 0 | W14: 0 | X14: 0 | Y14: 0
E15: Installation cost 150 watt (relamping included in group maintenance) | G15: =+$B$4 -> 0 | H15: 0 | I15: 0.3 | J15: 0 | K15: 0 | L15: 0 | M15: 0 | N15: 0 | O15: 0 | P15: 0 | Q15: 0 | R15: 0 | S15: 0 | T15: 0 | U15: 0 | V15: 0 | W15: 0 | X15: 0 | Y15: 0
E16: Installation cost 200 watt (relamping included in group maintenance) | G16: =+$B$5 -> 0 | H16: 0 | I16: 0.3 | J16: 0 | K16: 0 | L16: 0 | M16: 0 | N16: 0 | O16: 0 | P16: 0 | Q16: 0 | R16: 0 | S16: 0 | T16: 0 | U16: 0 | V16: 0 | W16: 0 | X16: 0 | Y16: 0
D17: KWh | E17: Installation cost 250 watt (relamping included in group maintenance) | G17: =+$B$6 -> 0 | H17: 0 | I17: 0.3 | J17: 0 | K17: 0 | L17: 0 | M17: 0 | N17: 0 | O17: 0 | P17: 0 | Q17: 0 | R17: 0 | S17: 0 | T17: 0 | U17: 0 | V17: 0 | W17: 0 | X17: 0 | Y17: 0
A18: watts 50 watt HPS | B18: =+'ballast losses'!F3 -> 67.5 | C18: =B18*12*$B$14 -> 24.27975 | D18: =+($B18*4000)/1000 -> 270 | E18: Installation cost 400 watt (relamping included in group maintenance) | G18: =+$B$7 -> 0 | H18: 0 | I18: 0.3 | J18: 0 | K18: 0 | L18: 0 | M18: 0 | N18: 0 | O18: 0 | P18: 0 | Q18: 0 | R18: 0 | S18: 0 | T18: 0 | U18: 0 | V18: 0 | W18: 0 | X18: 0 | Y18: 0
A19: watts 70 watt HPS | B19: =+'ballast losses'!F4 -> 91 | C19: 32.7327 | D19: 364 | E19: Installation cost 1000 watt (relamping included in group maintenance) | G19: =+$B$8 -> 0 | H19: 0 | I19: 0.3 | J19: 0 | K19: 0 | L19: 0 | M19: 0 | N19: 0 | O19: 0 | P19: 0 | Q19: 0 | R19: 0 | S19: 0 | T19: 0 | U19: 0 | V19: 0 | W19: 0 | X19: 0 | Y19: 0
A20: watts 100 watt HPS | B20: =+'ballast losses'!F5 -> 130 | C20: 46.761 | D20: 520 | E20: energy cost 50 HPS | F20: =+C18+IF('Data Input and Instructions'!$C$11="1703",0.8309,0) -> 24.27975 | G20: =+$B$1 -> 0 | H20: =F20*G20 -> 0 | I20: 1 | J20: =+H20 -> 0 | K20: =$H20*((1+'Data Input and Instructions'!$C$64)^J$1) -> 0 | L20: =$H20*((1+'Data Input and Instructions'!$C$64)^K$1) -> 0 | M20: =$H20*((1+'Data Input and Instructions'!$C$64)^L$1) -> 0 | N20: =$H20*((1+'Data Input and Instructions'!$C$64)^M$1) -> 0 | O20: =$H20*((1+'Data Input and Instructions'!$C$64)^N$1) -> 0 | P20: =$H20*((1+'Data Input and Instructions'!$C$64)^O$1) -> 0 | Q20: =$H20*((1+'Data Input and Instructions'!$C$64)^P$1) -> 0 | R20: =$H20*((1+'Data Input and Instructions'!$C$64)^Q$1) -> 0 | S20: =$H20*((1+'Data Input and Instructions'!$C$64)^R$1) -> 0 | T20: =$H20*((1+'Data Input and Instructions'!$C$64)^S$1) -> 0 | U20: =$H20*((1+'Data Input and Instructions'!$C$64)^T$1) -> 0 | V20: =$H20*((1+'Data Input and Instructions'!$C$64)^U$1) -> 0 | W20: =$H20*((1+'Data Input and Instructions'!$C$64)^V$1) -> 0 | X20: =$H20*((1+'Data Input and Instructions'!$C$64)^W$1) -> 0 | Y20: =$H20*((1+'Data Input and Instructions'!$C$64)^X$1) -> 0
A21: watts 150 watt HPS | B21: =+'ballast losses'!F6 -> 187.5 | C21: 67.44375 | D21: 750 | E21: energy cost 70 HPS | F21: =+C19+IF('Data Input and Instructions'!$C$11="1703",0.8309,0) -> 32.7327 | G21: =+$B$2 -> 0 | H21: 0 | I21: 1 | J21: =+H21 -> 0 | K21: =$H21*((1+'Data Input and Instructions'!$C$64)^J$1) -> 0 | L21: =$H21*((1+'Data Input and Instructions'!$C$64)^K$1) -> 0 | M21: =$H21*((1+'Data Input and Instructions'!$C$64)^L$1) -> 0 | N21: =$H21*((1+'Data Input and Instructions'!$C$64)^M$1) -> 0 | O21: =$H21*((1+'Data Input and Instructions'!$C$64)^N$1) -> 0 | P21: =$H21*((1+'Data Input and Instructions'!$C$64)^O$1) -> 0 | Q21: =$H21*((1+'Data Input and Instructions'!$C$64)^P$1) -> 0 | R21: =$H21*((1+'Data Input and Instructions'!$C$64)^Q$1) -> 0 | S21: =$H21*((1+'Data Input and Instructions'!$C$64)^R$1) -> 0 | T21: =$H21*((1+'Data Input and Instructions'!$C$64)^S$1) -> 0 | U21: =$H21*((1+'Data Input and Instructions'!$C$64)^T$1) -> 0 | V21: =$H21*((1+'Data Input and Instructions'!$C$64)^U$1) -> 0 | W21: =$H21*((1+'Data Input and Instructions'!$C$64)^V$1) -> 0 | X21: =$H21*((1+'Data Input and Instructions'!$C$64)^W$1) -> 0 | Y21: =$H21*((1+'Data Input and Instructions'!$C$64)^X$1) -> 0
A22: watts 200 watt HPS | B22: =+'ballast losses'!F7 -> 240 | C22: 86.328 | D22: 960 | E22: energy cost 100 HPS | F22: =+C20+IF('Data Input and Instructions'!$C$11="1703",0.8309,0) -> 46.761 | G22: =+$B$3 -> 0 | H22: 0 | I22: 1 | J22: =+H22 -> 0 | K22: =$H22*((1+'Data Input and Instructions'!$C$64)^J$1) -> 0 | L22: =$H22*((1+'Data Input and Instructions'!$C$64)^K$1) -> 0 | M22: =$H22*((1+'Data Input and Instructions'!$C$64)^L$1) -> 0 | N22: =$H22*((1+'Data Input and Instructions'!$C$64)^M$1) -> 0 | O22: =$H22*((1+'Data Input and Instructions'!$C$64)^N$1) -> 0 | P22: =$H22*((1+'Data Input and Instructions'!$C$64)^O$1) -> 0 | Q22: =$H22*((1+'Data Input and Instructions'!$C$64)^P$1) -> 0 | R22: =$H22*((1+'Data Input and Instructions'!$C$64)^Q$1) -> 0 | S22: =$H22*((1+'Data Input and Instructions'!$C$64)^R$1) -> 0 | T22: =$H22*((1+'Data Input and Instructions'!$C$64)^S$1) -> 0 | U22: =$H22*((1+'Data Input and Instructions'!$C$64)^T$1) -> 0 | V22: =$H22*((1+'Data Input and Instructions'!$C$64)^U$1) -> 0 | W22: =$H22*((1+'Data Input and Instructions'!$C$64)^V$1) -> 0 | X22: =$H22*((1+'Data Input and Instructions'!$C$64)^W$1) -> 0 | Y22: =$H22*((1+'Data Input and Instructions'!$C$64)^X$1) -> 0
A23: watts 250 watt HPS | B23: =+'ballast losses'!F8 -> 295 | C23: 106.1115 | D23: 1180 | E23: energy cost 150 HPS | F23: =+C21+IF('Data Input and Instructions'!$C$11="1703",0.8309,0) -> 67.44375 | G23: =+$B$4 -> 0 | H23: 0 | I23: 1 | J23: 0 | K23: =$H23*((1+'Data Input and Instructions'!$C$64)^J$1) -> 0 | L23: =$H23*((1+'Data Input and Instructions'!$C$64)^K$1) -> 0 | M23: =$H23*((1+'Data Input and Instructions'!$C$64)^L$1) -> 0 | N23: =$H23*((1+'Data Input and Instructions'!$C$64)^M$1) -> 0 | O23: =$H23*((1+'Data Input and Instructions'!$C$64)^N$1) -> 0 | P23: =$H23*((1+'Data Input and Instructions'!$C$64)^O$1) -> 0 | Q23: =$H23*((1+'Data Input and Instructions'!$C$64)^P$1) -> 0 | R23: =$H23*((1+'Data Input and Instructions'!$C$64)^Q$1) -> 0 | S23: =$H23*((1+'Data Input and Instructions'!$C$64)^R$1) -> 0 | T23: =$H23*((1+'Data Input and Instructions'!$C$64)^S$1) -> 0 | U23: =$H23*((1+'Data Input and Instructions'!$C$64)^T$1) -> 0 | V23: =$H23*((1+'Data Input and Instructions'!$C$64)^U$1) -> 0 | W23: =$H23*((1+'Data Input and Instructions'!$C$64)^V$1) -> 0 | X23: =$H23*((1+'Data Input and Instructions'!$C$64)^W$1) -> 0 | Y23: =$H23*((1+'Data Input and Instructions'!$C$64)^X$1) -> 0
A24: watts 400 watt HPS | B24: =+'ballast losses'!F9 -> 456 | C24: 164.0232 | D24: 1824 | E24: energy cost 200 HPS | F24: =+C22+IF('Data Input and Instructions'!$C$11="1703",0.8309,0) -> 86.328 | G24: =+$B$5 -> 0 | H24: 0 | I24: 1 | J24: 0 | K24: =$H24*((1+'Data Input and Instructions'!$C$64)^J$1) -> 0 | L24: =$H24*((1+'Data Input and Instructions'!$C$64)^K$1) -> 0 | M24: =$H24*((1+'Data Input and Instructions'!$C$64)^L$1) -> 0 | N24: =$H24*((1+'Data Input and Instructions'!$C$64)^M$1) -> 0 | O24: =$H24*((1+'Data Input and Instructions'!$C$64)^N$1) -> 0 | P24: =$H24*((1+'Data Input and Instructions'!$C$64)^O$1) -> 0 | Q24: =$H24*((1+'Data Input and Instructions'!$C$64)^P$1) -> 0 | R24: =$H24*((1+'Data Input and Instructions'!$C$64)^Q$1) -> 0 | S24: =$H24*((1+'Data Input and Instructions'!$C$64)^R$1) -> 0 | T24: =$H24*((1+'Data Input and Instructions'!$C$64)^S$1) -> 0 | U24: =$H24*((1+'Data Input and Instructions'!$C$64)^T$1) -> 0 | V24: =$H24*((1+'Data Input and Instructions'!$C$64)^U$1) -> 0 | W24: =$H24*((1+'Data Input and Instructions'!$C$64)^V$1) -> 0 | X24: =$H24*((1+'Data Input and Instructions'!$C$64)^W$1) -> 0 | Y24: =$H24*((1+'Data Input and Instructions'!$C$64)^X$1) -> 0
A25: watts 1000 watt HPS | B25: =+'ballast losses'!F10 -> 1110 | C25: 399.267 | D25: 4440 | E25: energy cost 250 HPS | F25: =+C23+IF('Data Input and Instructions'!$C$11="1703",0.8309,0) -> 106.1115 | G25: =+$B$6 -> 0 | H25: 0 | I25: 1 | J25: 0 | K25: =$H25*((1+'Data Input and Instructions'!$C$64)^J$1) -> 0 | L25: =$H25*((1+'Data Input and Instructions'!$C$64)^K$1) -> 0 | M25: =$H25*((1+'Data Input and Instructions'!$C$64)^L$1) -> 0 | N25: =$H25*((1+'Data Input and Instructions'!$C$64)^M$1) -> 0 | O25: =$H25*((1+'Data Input and Instructions'!$C$64)^N$1) -> 0 | P25: =$H25*((1+'Data Input and Instructions'!$C$64)^O$1) -> 0 | Q25: =$H25*((1+'Data Input and Instructions'!$C$64)^P$1) -> 0 | R25: =$H25*((1+'Data Input and Instructions'!$C$64)^Q$1) -> 0 | S25: =$H25*((1+'Data Input and Instructions'!$C$64)^R$1) -> 0 | T25: =$H25*((1+'Data Input and Instructions'!$C$64)^S$1) -> 0 | U25: =$H25*((1+'Data Input and Instructions'!$C$64)^T$1) -> 0 | V25: =$H25*((1+'Data Input and Instructions'!$C$64)^U$1) -> 0 | W25: =$H25*((1+'Data Input and Instructions'!$C$64)^V$1) -> 0 | X25: =$H25*((1+'Data Input and Instructions'!$C$64)^W$1) -> 0 | Y25: =$H25*((1+'Data Input and Instructions'!$C$64)^X$1) -> 0
E26: energy cost 400 HPS | F26: =+C24+IF('Data Input and Instructions'!$C$11="1703",0.8309,0) -> 164.0232 | G26: =+$B$7 -> 0 | H26: =F26*G26*I26 -> 0 | I26: 1 | J26: 0 | K26: =$H26*((1+'Data Input and Instructions'!$C$64)^J$1) -> 0 | L26: =$H26*((1+'Data Input and Instructions'!$C$64)^K$1) -> 0 | M26: =$H26*((1+'Data Input and Instructions'!$C$64)^L$1) -> 0 | N26: =$H26*((1+'Data Input and Instructions'!$C$64)^M$1) -> 0 | O26: =$H26*((1+'Data Input and Instructions'!$C$64)^N$1) -> 0 | P26: =$H26*((1+'Data Input and Instructions'!$C$64)^O$1) -> 0 | Q26: =$H26*((1+'Data Input and Instructions'!$C$64)^P$1) -> 0 | R26: =$H26*((1+'Data Input and Instructions'!$C$64)^Q$1) -> 0 | S26: =$H26*((1+'Data Input and Instructions'!$C$64)^R$1) -> 0 | T26: =$H26*((1+'Data Input and Instructions'!$C$64)^S$1) -> 0 | U26: =$H26*((1+'Data Input and Instructions'!$C$64)^T$1) -> 0 | V26: =$H26*((1+'Data Input and Instructions'!$C$64)^U$1) -> 0 | W26: =$H26*((1+'Data Input and Instructions'!$C$64)^V$1) -> 0 | X26: =$H26*((1+'Data Input and Instructions'!$C$64)^W$1) -> 0 | Y26: =$H26*((1+'Data Input and Instructions'!$C$64)^X$1) -> 0
E27: energy cost 1000 HPS | F27: =+C25+IF('Data Input and Instructions'!$C$11="1703",0.8309,0) -> 399.267 | G27: =+$B$8 -> 0 | H27: =F27*G27*I27 -> 0 | I27: 1 | J27: 0 | K27: =$H27*((1+'Data Input and Instructions'!$C$64)^J$1) -> 0 | L27: =$H27*((1+'Data Input and Instructions'!$C$64)^K$1) -> 0 | M27: =$H27*((1+'Data Input and Instructions'!$C$64)^L$1) -> 0 | N27: =$H27*((1+'Data Input and Instructions'!$C$64)^M$1) -> 0 | O27: =$H27*((1+'Data Input and Instructions'!$C$64)^N$1) -> 0 | P27: =$H27*((1+'Data Input and Instructions'!$C$64)^O$1) -> 0 | Q27: =$H27*((1+'Data Input and Instructions'!$C$64)^P$1) -> 0 | R27: =$H27*((1+'Data Input and Instructions'!$C$64)^Q$1) -> 0 | S27: =$H27*((1+'Data Input and Instructions'!$C$64)^R$1) -> 0 | T27: =$H27*((1+'Data Input and Instructions'!$C$64)^S$1) -> 0 | U27: =$H27*((1+'Data Input and Instructions'!$C$64)^T$1) -> 0 | V27: =$H27*((1+'Data Input and Instructions'!$C$64)^U$1) -> 0 | W27: =$H27*((1+'Data Input and Instructions'!$C$64)^V$1) -> 0 | X27: =$H27*((1+'Data Input and Instructions'!$C$64)^W$1) -> 0 | Y27: =$H27*((1+'Data Input and Instructions'!$C$64)^X$1) -> 0
E28: energy KWh 50 HPS | F28: =+D18 -> 270 | G28: =+$B$1 -> 0 | H28: =F28*G28 -> 0 | I28: 1 | J28: =+$H28 -> 0 | K28: =+$H28 -> 0 | L28: 0 | M28: 0 | N28: 0 | O28: 0 | P28: 0 | Q28: 0 | R28: 0 | S28: 0 | T28: 0 | U28: 0 | V28: 0 | W28: 0 | X28: 0 | Y28: 0
A29: Inflation | B29: =+'Data Input and Instructions'!C68 -> 0.02 | E29: energy KWh 70 HPS | F29: 364 | G29: =+$B$2 -> 0 | H29: =F29*G29 -> 0 | I29: 1 | J29: =+$H29 -> 0 | K29: 0 | L29: 0 | M29: 0 | N29: 0 | O29: 0 | P29: 0 | Q29: 0 | R29: 0 | S29: 0 | T29: 0 | U29: 0 | V29: 0 | W29: 0 | X29: 0 | Y29: 0
E30: energy KWh 100 HPS | F30: 520 | G30: =+$B$3 -> 0 | H30: =F30*G30 -> 0 | I30: 1 | J30: =+$H30 -> 0 | K30: 0 | L30: 0 | M30: 0 | N30: 0 | O30: 0 | P30: 0 | Q30: 0 | R30: 0 | S30: 0 | T30: 0 | U30: 0 | V30: 0 | W30: 0 | X30: 0 | Y30: 0
E31: energy KWh 150 HPS | F31: 750 | G31: =+$B$4 -> 0 | H31: 0 | I31: 1 | J31: 0 | K31: 0 | L31: 0 | M31: 0 | N31: 0 | O31: 0 | P31: 0 | Q31: 0 | R31: 0 | S31: 0 | T31: 0 | U31: 0 | V31: 0 | W31: 0 | X31: 0 | Y31: 0
E32: energy KWh 200 HPS | F32: 960 | G32: =+$B$5 -> 0 | H32: 0 | I32: 1 | J32: 0 | K32: 0 | L32: 0 | M32: 0 | N32: 0 | O32: 0 | P32: 0 | Q32: 0 | R32: 0 | S32: 0 | T32: 0 | U32: 0 | V32: 0 | W32: 0 | X32: 0 | Y32: 0
E33: energy KWh 250 HPS | F33: 1180 | G33: =+$B$6 -> 0 | H33: 0 | I33: 1 | J33: 0 | K33: 0 | L33: 0 | M33: 0 | N33: 0 | O33: 0 | P33: 0 | Q33: 0 | R33: 0 | S33: 0 | T33: 0 | U33: 0 | V33: 0 | W33: 0 | X33: 0 | Y33: 0
E34: energy KWh 400 HPS | F34: 1824 | G34: =+$B$7 -> 0 | H34: 0 | I34: 1 | J34: 0 | K34: 0 | L34: 0 | M34: 0 | N34: 0 | O34: 0 | P34: 0 | Q34: 0 | R34: 0 | S34: 0 | T34: 0 | U34: 0 | V34: 0 | W34: 0 | X34: 0 | Y34: 0
E35: energy KWh 1000 HPS | F35: 4440 | G35: =+$B$8 -> 0 | H35: 0 | I35: 1 | J35: 0 | K35: 0 | L35: 0 | M35: 0 | N35: 0 | O35: 0 | P35: 0 | Q35: 0 | R35: 0 | S35: 0 | T35: 0 | U35: 0 | V35: 0 | W35: 0 | X35: 0 | Y35: 0
E36: reactive maintenance (failures) cost 50 HPS | F36: 150 | G36: =+$B$1 -> 0 | H36: =F36*G36 -> 0 | I36: 0.1 | J36: =J$2*$H36*$I36 -> 0 | K36: =K$2*$H36*$I36*((1+$B$29)^J$1) -> 0 | L36: 0 | M36: 0 | N36: 0 | O36: 0 | P36: 0 | Q36: 0 | R36: 0 | S36: 0 | T36: 0 | U36: 0 | V36: 0 | W36: 0 | X36: 0 | Y36: 0
E37: reactive maintenance (failures) cost 70 HPS | F37: 150 | G37: =+$B$2 -> 0 | H37: =F37*G37 -> 0 | I37: 0.1 | J37: =J$2*$H37*$I37 -> 0 | K37: =K$2*$H37*$I37*((1+$B$29)^J$1) -> 0 | L37: 0 | M37: 0 | N37: 0 | O37: 0 | P37: 0 | Q37: 0 | R37: 0 | S37: 0 | T37: 0 | U37: 0 | V37: 0 | W37: 0 | X37: 0 | Y37: 0
E38: reactive maintenance (failures) cost 100 HPS | F38: 150 | G38: =+$B$3 -> 0 | H38: =F38*G38 -> 0 | I38: 0.1 | J38: =J$2*$H38*$I38 -> 0 | K38: =K$2*$H38*$I38*((1+$B$29)^J$1) -> 0 | L38: 0 | M38: 0 | N38: 0 | O38: 0 | P38: 0 | Q38: 0 | R38: 0 | S38: 0 | T38: 0 | U38: 0 | V38: 0 | W38: 0 | X38: 0 | Y38: 0
E39: reactive maintenance (failures) cost 150 HPS | F39: 150 | G39: =+$B$4 -> 0 | H39: 0 | I39: 0.1 | J39: 0 | K39: =K$2*$H39*$I39*((1+$B$29)^J$1) -> 0 | L39: 0 | M39: 0 | N39: 0 | O39: 0 | P39: 0 | Q39: 0 | R39: 0 | S39: 0 | T39: 0 | U39: 0 | V39: 0 | W39: 0 | X39: 0 | Y39: 0
E40: reactive maintenance (failures) cost 200 HPS | F40: 150 | G40: =+$B$5 -> 0 | H40: 0 | I40: 0.1 | J40: 0 | K40: =K$2*$H40*$I40*((1+$B$29)^J$1) -> 0 | L40: 0 | M40: 0 | N40: 0 | O40: 0 | P40: 0 | Q40: 0 | R40: 0 | S40: 0 | T40: 0 | U40: 0 | V40: 0 | W40: 0 | X40: 0 | Y40: 0
E41: reactive maintenance (failures) cost 250 HPS | F41: 150 | G41: =+$B$6 -> 0 | H41: 0 | I41: 0.1 | J41: 0 | K41: =K$2*$H41*$I41*((1+$B$29)^J$1) -> 0 | L41: 0 | M41: 0 | N41: 0 | O41: 0 | P41: 0 | Q41: 0 | R41: 0 | S41: 0 | T41: 0 | U41: 0 | V41: 0 | W41: 0 | X41: 0 | Y41: 0
E42: reactive maintenance (failures) cost 400 HPS | F42: 150 | G42: =+$B$7 -> 0 | H42: 0 | I42: 0.1 | J42: 0 | K42: =K$2*$H42*$I42*((1+$B$29)^J$1) -> 0 | L42: 0 | M42: 0 | N42: 0 | O42: 0 | P42: 0 | Q42: 0 | R42: 0 | S42: 0 | T42: 0 | U42: 0 | V42: 0 | W42: 0 | X42: 0 | Y42: 0
E43: reactive maintenance (failures) cost 1000 HPS | F43: 150 | G43: =+$B$8 -> 0 | H43: 0 | I43: 0.1 | J43: 0 | K43: =K$2*$H43*$I43*((1+$B$29)^J$1) -> 0 | L43: 0 | M43: 0 | N43: 0 | O43: 0 | P43: 0 | Q43: 0 | R43: 0 | S43: 0 | T43: 0 | U43: 0 | V43: 0 | W43: 0 | X43: 0 | Y43: 0
E44: luminaire maintenance (replacements) 50 HPS | F44: 99 | G44: =+$B$1 -> 0 | H44: 0 | I44: 0.05 | J44: 0 | K44: 0 | L44: 0 | M44: 0 | N44: 0 | O44: 0 | P44: 0 | Q44: 0 | R44: 0 | S44: 0 | T44: 0 | U44: 0 | V44: 0 | W44: 0 | X44: 0 | Y44: 0
E45: luminaire maintenance (replacements) 70 HPS | F45: 99 | G45: =+$B$2 -> 0 | H45: =F45*G45 -> 0 | I45: 0.05 | J45: 0 | K45: =K$2*$H45*$I45*((1+$B$29)^J$1) -> 0 | L45: 0 | M45: 0 | N45: 0 | O45: 0 | P45: 0 | Q45: 0 | R45: 0 | S45: 0 | T45: 0 | U45: 0 | V45: 0 | W45: 0 | X45: 0 | Y45: 0
E46: luminaire maintenance (replacements) 100 HPS | F46: 154 | G46: =+$B$3 -> 0 | H46: =F46*G46 -> 0 | I46: 0.05 | J46: 0 | K46: =K$2*$H46*$I46*((1+$B$29)^J$1) -> 0 | L46: 0 | M46: 0 | N46: 0 | O46: 0 | P46: 0 | Q46: 0 | R46: 0 | S46: 0 | T46: 0 | U46: 0 | V46: 0 | W46: 0 | X46: 0 | Y46: 0
E47: luminaire maintenance (replacements)150 HPS | F47: 154 | G47: =+$B$4 -> 0 | H47: =F47*G47 -> 0 | I47: 0.05 | J47: 0 | K47: =K$2*$H47*$I47*((1+$B$29)^J$1) -> 0 | L47: 0 | M47: 0 | N47: 0 | O47: 0 | P47: 0 | Q47: 0 | R47: 0 | S47: 0 | T47: 0 | U47: 0 | V47: 0 | W47: 0 | X47: 0 | Y47: 0
E48: luminaire maintenance (replacements)200 HPS | F48: =+F47*1.2 -> 184.8 | G48: =+$B$5 -> 0 | H48: =F48*G48 -> 0 | I48: 0.05 | J48: 0 | K48: =K$2*$H48*$I48*((1+$B$29)^J$1) -> 0 | L48: 0 | M48: 0 | N48: 0 | O48: 0 | P48: 0 | Q48: 0 | R48: 0 | S48: 0 | T48: 0 | U48: 0 | V48: 0 | W48: 0 | X48: 0 | Y48: 0
E49: luminaire maintenance (replacements) 250 HPS | F49: 184.8 | G49: =+$B$6 -> 0 | H49: 0 | I49: 0.05 | J49: 0 | K49: =K$2*$H49*$I49*((1+$B$29)^J$1) -> 0 | L49: 0 | M49: 0 | N49: 0 | O49: 0 | P49: 0 | Q49: 0 | R49: 0 | S49: 0 | T49: 0 | U49: 0 | V49: 0 | W49: 0 | X49: 0 | Y49: 0
E50: luminaire maintenance (replacements) 400 HPS | F50: =+F49*1.2 -> 221.76 | G50: =+$B$7 -> 0 | H50: 0 | I50: 0.05 | J50: 0 | K50: =K$2*$H50*$I50*((1+$B$29)^J$1) -> 0 | L50: 0 | M50: 0 | N50: 0 | O50: 0 | P50: 0 | Q50: 0 | R50: 0 | S50: 0 | T50: 0 | U50: 0 | V50: 0 | W50: 0 | X50: 0 | Y50: 0
E51: luminaire maintenance (replacements) 1000 HPS | F51: =+F50*1.2 -> 266.112 | G51: =+$B$8 -> 0 | H51: 0 | I51: 0.05 | J51: 0 | K51: =K$2*$H51*$I51*((1+$B$29)^J$1) -> 0 | L51: 0 | M51: 0 | N51: 0 | O51: 0 | P51: 0 | Q51: 0 | R51: 0 | S51: 0 | T51: 0 | U51: 0 | V51: 0 | W51: 0 | X51: 0 | Y51: 0
E52: group maintenance(scheduled)cost 50 HPS (ncludes re-lamping) | F52: 33.14 | G52: =+$B$1 -> 0 | H52: =F52*G52 -> 0 | I52: 0.25 | J52: 0 | K52: 0 | L52: 0 | M52: 0 | N52: 0 | O52: 0 | P52: 0 | Q52: 0 | R52: 0 | S52: 0 | T52: 0 | U52: 0 | V52: 0 | W52: 0 | X52: 0 | Y52: 0
E53: group maintenance(scheduled)cost 70 HPS (ncludes re-lamping) | F53: 33.14 | G53: =+$B$2 -> 0 | H53: =F53*G53 -> 0 | I53: 0.25 | J53: 0 | K53: =K$2*$H53*$I53*((1+$B$29)^J$1) -> 0 | L53: 0 | M53: 0 | N53: 0 | O53: 0 | P53: 0 | Q53: 0 | R53: 0 | S53: 0 | T53: 0 | U53: 0 | V53: 0 | W53: 0 | X53: 0 | Y53: 0
E54: group maintenance(scheduled)cost 100 HPS (ncludes re-lamping) | F54: 33.14 | G54: =+$B$3 -> 0 | H54: =F54*G54 -> 0 | I54: 0.25 | J54: 0 | K54: =K$2*$H54*$I54*((1+$B$29)^J$1) -> 0 | L54: 0 | M54: 0 | N54: 0 | O54: 0 | P54: 0 | Q54: 0 | R54: 0 | S54: 0 | T54: 0 | U54: 0 | V54: 0 | W54: 0 | X54: 0 | Y54: 0
E55: group maintenance(scheduled)cost 150 HPS (ncludes re-lamping) | F55: 33.14 | G55: =+$B$4 -> 0 | H55: 0 | I55: 0.25 | J55: 0 | K55: =K$2*$H55*$I55*((1+$B$29)^J$1) -> 0 | L55: 0 | M55: 0 | N55: 0 | O55: 0 | P55: 0 | Q55: 0 | R55: 0 | S55: 0 | T55: 0 | U55: 0 | V55: 0 | W55: 0 | X55: 0 | Y55: 0
E56: group maintenance(scheduled)cost 200 HPS (ncludes re-lamping) | F56: 33.14 | G56: =+$B$5 -> 0 | H56: 0 | I56: 0.25 | J56: 0 | K56: =K$2*$H56*$I56*((1+$B$29)^J$1) -> 0 | L56: 0 | M56: 0 | N56: 0 | O56: 0 | P56: 0 | Q56: 0 | R56: 0 | S56: 0 | T56: 0 | U56: 0 | V56: 0 | W56: 0 | X56: 0 | Y56: 0
E57: group maintenance(scheduled)cost 250 HPS (ncludes re-lamping) | F57: 33.14 | G57: =+$B$6 -> 0 | H57: 0 | I57: 0.25 | J57: 0 | K57: =K$2*$H57*$I57*((1+$B$29)^J$1) -> 0 | L57: 0 | M57: 0 | N57: 0 | O57: 0 | P57: 0 | Q57: 0 | R57: 0 | S57: 0 | T57: 0 | U57: 0 | V57: 0 | W57: 0 | X57: 0 | Y57: 0
E58: group maintenance(scheduled)cost 400 HPS (ncludes re-lamping) | F58: 33.14 | G58: =+$B$7 -> 0 | H58: 0 | I58: 0.25 | J58: 0 | K58: =K$2*$H58*$I58*((1+$B$29)^J$1) -> 0 | L58: 0 | M58: 0 | N58: 0 | O58: 0 | P58: 0 | Q58: 0 | R58: 0 | S58: 0 | T58: 0 | U58: 0 | V58: 0 | W58: 0 | X58: 0 | Y58: 0
E59: group maintenance(scheduled)cost 1000 HPS (ncludes re-lamping) | F59: 33.14 | G59: =+$B$8 -> 0 | H59: 0 | I59: 0.25 | J59: 0 | K59: =K$2*$H59*$I59*((1+$B$29)^J$1) -> 0 | L59: 0 | M59: 0 | N59: 0 | O59: 0 | P59: 0 | Q59: 0 | R59: 0 | S59: 0 | T59: 0 | U59: 0 | V59: 0 | W59: 0 | X59: 0 | Y59: 0

Sheet unit pricing 1-5 years scenario (hidden)
F2: 5 | H2: year => | I2: annual | J2: 1 | K2: =1+J2 -> 2 | L2: =1+K2 -> 3 | M2: 4 | N2: 5 | O2: 6 | P2: 7 | Q2: 8 | R2: 9 | S2: 10 | T2: 11 | U2: 12 | V2: =1+U2 -> 13 | W2: =1+V2 -> 14 | X2: =1+W2 -> 15 | Y2: 16
A3: quantity 50 | B3: =+'Data Input and Instructions'!C26 -> 0 | H3: HPS | I3: adjustment | J3: =IF('Data Input and Instructions'!$C$25>1,(1-(1/'Data Input and Instructions'!$C$25)),0) -> 0 | K3: =IF('Data Input and Instructions'!C25<=2,0,(1-(1/'Data Input and Instructions'!C25)-J4)) -> 0 | L3: =IF('Data Input and Instructions'!C25<=3,0,(1-(1/'Data Input and Instructions'!C25)-K4)) -> 0 | M3: =IF('Data Input and Instructions'!C25<=4,0,(1-(1/'Data Input and Instructions'!C25)-L4)) -> 0 | N3: =IF('Data Input and Instructions'!C25<=5,0,(1/'Data Input and Instructions'!C25)-M4) -> 0 | O3: 0 | P3: 0 | Q3: 0 | R3: 0 | S3: 0 | T3: 0 | U3: 0 | V3: 0 | W3: 0 | X3: 0 | Y3: 0
A4: quantity 70 | B4: =+'Data Input and Instructions'!$C$27 -> 0 | H4: LED | J4: =1-J3 -> 1 | K4: =IF(J3=0,1,1-K3) -> 1 | L4: =IF(K3=0,1,1-L3) -> 1 | M4: =IF(L3=0,1,1-M3) -> 1 | N4: =IF(M3=0,1,1-N3) -> 1 | O4: 1 | P4: 1 | Q4: 1 | R4: 1 | S4: 1 | T4: 1 | U4: 1 | V4: 1 | W4: 1 | X4: 1 | Y4: 1
A5: quantity 100 | B5: =+'Data Input and Instructions'!C28 -> 0 | E5: unit capital cost 50 watt LED (including procurement fee) | F5: ='Data Input and Instructions'!C39*(1+$B$54) -> 200.5 | G5: =+$B$3 -> 0 | H5: =F5*G5 -> 0 | I5: =1-$B$13 -> 0.9 | J5: =$J$4*$H5*$I5^(J$2-1) -> 0 | K5: =IF(AND($J$3=0,$J$4=1),0,($H5*$I5^(K$2-1))) -> 0 | L5: =IF(AND($K$3=0,$K$4=1),0,($J$4*$H5*$I5^(L$2-1))) -> 0 | M5: =IF(AND($L$3=0,$L$4=1),0,($J$4*$H5*$I5^(M$2-1))) -> 0 | N5: =IF(AND($M$3=0,$M$4=1),0,($J$4*$H5*$I5^(N$2-1))) -> 0
A6: quantity 150 | B6: =+'Data Input and Instructions'!$C$29 -> 0 | E6: unit capital cost 70 watt LED (including procurement fee) | F6: ='Data Input and Instructions'!C40*(1+$B$54) -> 215.5375 | G6: =+$B$4 -> 0 | H6: 0 | I6: 0.9 | J6: 0 | K6: =IF(AND($J$3=0,$J$4=1),0,($J$4*$H6*$I6^(K$2-1))) -> 0 | L6: =IF(AND($K$3=0,$K$4=1),0,($J$4*$H6*$I6^(L$2-1))) -> 0 | M6: =IF(AND($L$3=0,$L$4=1),0,($J$4*$H6*$I6^(M$2-1))) -> 0 | N6: =IF(AND($M$3=0,$M$4=1),0,($J$4*$H6*$I6^(N$2-1))) -> 0
A7: quantity 200 | B7: =+'Data Input and Instructions'!$C$30 -> 0 | E7: unit capital cost 100 watt LED (including procurement fee) | F7: ='Data Input and Instructions'!C41*(1+$B$54) -> 242.254125 | G7: =+$B$5 -> 0 | H7: 0 | I7: 0.9 | J7: 0 | K7: =IF(AND($J$3=0,$J$4=1),0,($J$4*$H7*$I7^(K$2-1))) -> 0 | L7: 0 | M7: =IF(AND($L$3=0,$L$4=1),0,($J$4*$H7*$I7^(M$2-1))) -> 0 | N7: 0
A8: quantity 250 | B8: =+'Data Input and Instructions'!$C$31 -> 0 | E8: unit capital cost 150 watt LED (including procurement fee) | F8: ='Data Input and Instructions'!C42*(1+$B$54) -> 262.3342 | G8: =+$B$6 -> 0 | H8: 0 | I8: 0.9 | J8: =$J$4*$H8*$I8^(J$2-1) -> 0 | K8: 0 | L8: 0 | M8: 0 | N8: 0
A9: quantity 400 | B9: =+'Data Input and Instructions'!C32 -> 0 | E9: unit capital cost 200 watt LED (including procurement fee) | F9: ='Data Input and Instructions'!C43*(1+$B$54) -> 343.8575 | G9: =+$B$7 -> 0 | H9: 0 | I9: 0.9 | J9: =$J$4*$H9*$I9^(J$2-1) -> 0 | K9: 0 | L9: 0 | M9: 0 | N9: 0
A10: quantity 1000 | B10: =+'Data Input and Instructions'!C33 -> 0 | E10: unit capital cost 250 watt LED (including procurement fee) | F10: ='Data Input and Instructions'!C44*(1+$B$54) -> 418.674075 | G10: =+$B$8 -> 0 | H10: 0 | I10: 0.9 | J10: =$J$4*$H10*$I10^(J$2-1) -> 0 | K10: 0 | L10: 0 | M10: 0 | N10: 0
A11: Total | B11: =SUM(B4:B10) -> 0 | E11: unit capital cost 400 watt LED (including procurement fee) | F11: ='Data Input and Instructions'!C45*(1+$B$54) -> 452.658825 | G11: =+$B$9 -> 0 | H11: =F11*G11 -> 0 | I11: 0.9 | J11: =$J$4*$H11*$I11^(J$2-1) -> 0 | K11: 0 | L11: 0 | M11: 0 | N11: 0
E12: unit capital cost 1000 watt LED (including procurement fee) | F12: ='Data Input and Instructions'!C46*(1+$B$54) -> 701.75 | G12: =+$B$10 -> 0 | H12: =F12*G12 -> 0 | I12: 0.9 | J12: 0 | K12: 0 | L12: 0 | M12: 0 | N12: 0
A13: led price reductions over first 5 years | B13: 0.1 | E13: Installation cost 50 watt LED (including procurement fee) | F13: ='Data Input and Instructions'!C$47*(1+$B$54) -> 160.4 | G13: =+$B$3 -> 0 | H13: =F13*G13 -> 0 | I13: 0.9 | J13: 0 | K13: 0 | L13: 0 | M13: 0 | N13: 0
A14: BCHydro Rate Oct 30, 2012 | B14: =+'Data Input and Instructions'!$C$63 -> 0.029975 | C14: per watt per month | E14: Installation cost 70 watt LED (including procurement fee) | F14: ='Data Input and Instructions'!C$47*(1+$B$54) -> 160.4 | G14: =+$B$4 -> 0 | H14: =F14*G14 -> 0 | I14: 0.9 | J14: 0 | K14: 0 | L14: 0 | M14: 0 | N14: 0
A15: estimated LED efficiency | B15: =+'Data Input and Instructions'!$C$59 -> 0.5 | C15: =+'Data Input and Instructions'!$C$60 -> 0.7 | D15: =+'Data Input and Instructions'!C61 -> 0.2 | E15: Installation cost 100 watt LED (including procurement fee) | F15: ='Data Input and Instructions'!C$47*(1+$B$54) -> 160.4 | G15: =+$B$5 -> 0 | H15: =F15*G15 -> 0 | I15: 0.9 | J15: 0 | K15: 0 | L15: 0 | M15: 0 | N15: 0
D16: KWh | E16: Installation cost 150 watt LED (including procurement fee) | F16: ='Data Input and Instructions'!C$47*(1+$B$54) -> 160.4 | G16: =+$B$6 -> 0 | H16: =F16*G16 -> 0 | I16: 0.9 | J16: 0 | K16: 0 | L16: 0 | M16: 0 | N16: 0
A17: watts 50 watt HPS | B17: =+'ballast losses'!F3 -> 67.5 | C17: =B17*12*$B$14 -> 24.27975 | D17: =+($B17*4000)/1000 -> 270 | E17: Installation cost 200 watt LED (including procurement fee) | F17: ='Data Input and Instructions'!C$47*(1+$B$54) -> 160.4 | G17: =+$B$7 -> 0 | H17: 0 | I17: 0.9 | J17: 0 | K17: 0 | L17: 0 | M17: 0 | N17: 0
A18: watts 70 watt HPS | B18: =+'ballast losses'!F4 -> 91 | C18: 32.7327 | D18: 364 | E18: Installation cost 250 watt LED (including procurement fee) | F18: ='Data Input and Instructions'!C$47*(1+$B$54) -> 160.4 | G18: =+$B$8 -> 0 | H18: 0 | I18: 0.9 | J18: 0 | K18: 0 | L18: 0 | M18: 0 | N18: 0
A19: watts 100 watt HPS | B19: =+'ballast losses'!F5 -> 130 | C19: 46.761 | D19: 520 | E19: Installation cost 400 watt LED (including procurement fee) | F19: ='Data Input and Instructions'!C$47*(1+$B$54) -> 160.4 | G19: =+$B$9 -> 0 | H19: 0 | I19: 0.9 | J19: 0 | K19: 0 | L19: 0 | M19: 0 | N19: 0
A20: watts 150 watt HPS | B20: =+'ballast losses'!F6 -> 187.5 | C20: 67.44375 | D20: 750 | E20: Installation cost 10000 watt LED (including procurement fee) | F20: ='Data Input and Instructions'!C$47*(1+$B$54) -> 160.4 | G20: =+$B$10 -> 0 | H20: 0 | I20: 0.9 | J20: 0 | K20: 0 | L20: 0 | M20: 0 | N20: 0
A21: watts 200 watt HPS | B21: =+'ballast losses'!F7 -> 240 | C21: 86.328 | D21: 960 | E21: Consulting cost 50 watt LED | F21: =(+F5*$B$52) -> 2.005 | G21: =+$B$3 -> 0 | H21: =F21*G21 -> 0 | I21: 0.9 | J21: =$J$4*$H21 -> 0 | K21: 0 | L21: 0 | M21: 0 | N21: 0
A22: watts 250 watt HPS | B22: =+'ballast losses'!F8 -> 295 | C22: 106.1115 | D22: 1180 | E22: Consulting cost 70 watt LED | F22: 2.155375 | G22: =+$B$4 -> 0 | H22: =F22*G22 -> 0 | I22: 0.9 | J22: 0 | K22: 0 | L22: 0 | M22: 0 | N22: 0
A23: watts 400 watt HPS | B23: =+'ballast losses'!F9 -> 456 | C23: 164.0232 | D23: 1824 | E23: Consulting cost 100 watt LED | F23: 2.42254125 | G23: =+$B$5 -> 0 | H23: =F23*G23 -> 0 | I23: 0.9 | J23: 0 | K23: 0 | L23: 0 | M23: 0 | N23: 0
A24: watts 1000 watt HPS | B24: =+'ballast losses'!F10 -> 1110 | C24: 399.267 | D24: 4440 | E24: Consulting cost 150 watt LED | F24: 2.623342 | G24: =+$B$6 -> 0 | H24: 0 | I24: 0.9 | J24: 0 | K24: 0 | L24: 0 | M24: 0 | N24: 0
E25: Consulting cost 200 watt LED | F25: 3.438575 | G25: =+$B$7 -> 0 | H25: 0 | I25: 0.9 | J25: 0 | K25: 0 | L25: 0 | M25: 0 | N25: 0
A26: 50 watt equivalent LED considering energy efficiency without adaptive controls | B26: =B17*(1-$B$15) -> 33.75 | C26: =B26*12*$B$14 -> 12.139875 | D26: =+($B26*4000)/1000 -> 135 | E26: Consulting cost 250 watt LED | F26: 4.18674075 | G26: =+$B$8 -> 0 | H26: 0 | I26: 0.9 | J26: 0 | K26: 0 | L26: 0 | M26: 0 | N26: 0
A27: 70 watt equivalent LED considering energy efficiency without adaptive controls | B27: 45.5 | C27: 16.36635 | D27: =+($B27*4000)/1000 -> 182 | E27: Consulting cost 400 watt LED | F27: 4.52658825 | G27: =+$B$9 -> 0 | H27: 0 | I27: 0.9 | J27: 0 | K27: 0 | L27: 0 | M27: 0 | N27: 0
A28: 100 watt equivalent LED considering energy efficiency without adaptive controls | B28: 65 | C28: 23.3805 | D28: =+($B28*4000)/1000 -> 260 | E28: Consulting cost 1000 watt LED | F28: 7.0175 | G28: =+$B$10 -> 0 | H28: 0 | I28: 0.9 | J28: 0 | K28: 0 | L28: 0 | M28: 0 | N28: 0
A29: 150 watt equivalent LED considering energy efficiency without adaptive controls | B29: 93.75 | C29: 33.721875 | D29: =+($B29*4000)/1000 -> 375 | E29: adaptive controls 50 watt LED | F29: =+'Data Input and Instructions'!$C$48 -> 125 | G29: =+$B$3 -> 0 | H29: 0 | I29: 0.9 | J29: =$J$4*$H29*$I29^(J$2-1) -> 0 | K29: 0 | L29: 0 | M29: 0 | N29: 0
A30: 200 watt equivalent LED considering energy efficiency without adaptive controls | B30: 120 | C30: 43.164 | D30: =+($B30*4000)/1000 -> 480 | E30: adaptive controls 70 watt LED | F30: =+'Data Input and Instructions'!$C$48 -> 125 | G30: =+$B$4 -> 0 | H30: =F30*G30 -> 0 | I30: 0.9 | J30: 0 | K30: 0 | L30: 0 | M30: 0 | N30: 0
A31: 250 watt equivalent LED considering energy efficiency without adaptive controls | B31: 147.5 | C31: 53.05575 | D31: 590 | E31: adaptive controls 100 watt LED | F31: =+'Data Input and Instructions'!$C$48 -> 125 | G31: =+$B$5 -> 0 | H31: 0 | I31: 0.9 | J31: 0 | K31: 0 | L31: 0 | M31: 0 | N31: 0
A32: 400 watt equivalent LED considering energy efficiency without adaptive controls | B32: 228 | C32: 82.0116 | D32: 912 | E32: adaptive controls 150 watt LED | F32: =+'Data Input and Instructions'!$C$48 -> 125 | G32: =+$B$6 -> 0 | H32: 0 | I32: 0.9 | J32: 0 | K32: 0 | L32: 0 | M32: 0 | N32: 0
A33: 1000 watt equivalent LED considering energy efficiency without adaptive controls | B33: 555 | C33: 199.6335 | D33: 2220 | E33: adaptive controls 200 watt LED | F33: =+'Data Input and Instructions'!$C$48 -> 125 | G33: =+$B$7 -> 0 | H33: 0 | I33: 0.9 | J33: 0 | K33: 0 | L33: 0 | M33: 0 | N33: 0
A34: 50 watt equivalent LED considering energy efficiency with adaptive controls | B34: =+B17*(1-$C$15) -> 20.25 | C34: 7.283925 | D34: =+($B34*4000)/1000 -> 81 | E34: adaptive controls 250 watt LED | F34: =+'Data Input and Instructions'!$C$48 -> 125 | G34: =+$B$8 -> 0 | H34: 0 | I34: 0.9 | J34: 0 | K34: 0 | L34: 0 | M34: 0 | N34: 0
A35: 70 watt equivalent LED considering energy efficiency with adaptive controls | B35: 27.3 | C35: 9.81981 | D35: =+($B35*4000)/1000 -> 109.2 | E35: adaptive controls 400 watt LED | F35: =+'Data Input and Instructions'!$C$48 -> 125 | G35: =+$B$9 -> 0 | H35: 0 | I35: 0.9 | J35: 0 | K35: 0 | L35: 0 | M35: 0 | N35: 0
A36: 100 watt equivalent LED considering energy efficiency with adaptive controls | B36: 39 | C36: 14.0283 | D36: =+($B36*4000)/1000 -> 156 | E36: adaptive controls 1000 watt LED | F36: =+'Data Input and Instructions'!$C$48 -> 125 | G36: =+$B$10 -> 0 | H36: 0 | I36: 0.9 | J36: 0 | K36: 0 | L36: 0 | M36: 0 | N36: 0
A37: 150 watt equivalent LED considering energy efficiency with adaptive controls | B37: 56.25 | C37: 20.233125 | D37: =+($B37*4000)/1000 -> 225 | E37: energy cost 50 LED no adaptive controls | F37: =+C26+IF('Data Input and Instructions'!$C$11="1703",0.8309,0) -> 12.139875 | G37: =+$B$3 -> 0 | H37: 0 | I37: 1 | J37: =(J$4*$H37) -> 0 | K37: =(K$4*$H37)*((1+'Data Input and Instructions'!$C$64)^$J$2) -> 0 | L37: =(L$4*$H37)*((1+'Data Input and Instructions'!$C$64)^$K$2) -> 0 | M37: =(M$4*$H37)*((1+'Data Input and Instructions'!$C$64)^$L$2) -> 0 | N37: =(N$4*$H37)*((1+'Data Input and Instructions'!$C$64)^$M$2) -> 0 | O37: =+N37*(1+'Data Input and Instructions'!$C$64) -> 0 | P37: =+O37*(1+'Data Input and Instructions'!$C$64) -> 0 | Q37: =+P37*(1+'Data Input and Instructions'!$C$64) -> 0 | R37: =+Q37*(1+'Data Input and Instructions'!$C$64) -> 0 | S37: =+R37*(1+'Data Input and Instructions'!$C$64) -> 0 | T37: =+S37*(1+'Data Input and Instructions'!$C$64) -> 0 | U37: =+T37*(1+'Data Input and Instructions'!$C$64) -> 0 | V37: =+U37*(1+'Data Input and Instructions'!$C$64) -> 0 | W37: =+V37*(1+'Data Input and Instructions'!$C$64) -> 0 | X37: =+W37*(1+'Data Input and Instructions'!$C$64) -> 0 | Y37: =+X37*(1+'Data Input and Instructions'!$C$64) -> 0
A38: 200 watt equivalent LED considering energy efficiency with adaptive controls | B38: 72 | C38: 25.8984 | D38: 288 | E38: energy cost 70 LED no adaptive controls | F38: =+C27+IF('Data Input and Instructions'!$C$11="1703",0.8309,0) -> 16.36635 | G38: =+$B$4 -> 0 | H38: =F38*G38 -> 0 | I38: 1 | J38: 0 | K38: =(K$4*$H38)*((1+'Data Input and Instructions'!$C$64)^$J$2) -> 0 | L38: =(L$4*$H38)*((1+'Data Input and Instructions'!$C$64)^$K$2) -> 0 | M38: =(M$4*$H38)*((1+'Data Input and Instructions'!$C$64)^$L$2) -> 0 | N38: =(N$4*$H38)*((1+'Data Input and Instructions'!$C$64)^$M$2) -> 0 | O38: =+N38*(1+'Data Input and Instructions'!$C$64) -> 0 | P38: =+O38*(1+'Data Input and Instructions'!$C$64) -> 0 | Q38: =+P38*(1+'Data Input and Instructions'!$C$64) -> 0 | R38: =+Q38*(1+'Data Input and Instructions'!$C$64) -> 0 | S38: =+R38*(1+'Data Input and Instructions'!$C$64) -> 0 | T38: =+S38*(1+'Data Input and Instructions'!$C$64) -> 0 | U38: =+T38*(1+'Data Input and Instructions'!$C$64) -> 0 | V38: =+U38*(1+'Data Input and Instructions'!$C$64) -> 0 | W38: =+V38*(1+'Data Input and Instructions'!$C$64) -> 0 | X38: =+W38*(1+'Data Input and Instructions'!$C$64) -> 0 | Y38: =+X38*(1+'Data Input and Instructions'!$C$64) -> 0
A39: 250 watt equivalent LED considering energy efficiency with adaptive controls | B39: 88.5 | C39: 31.83345 | D39: 354 | E39: energy cost 100 LED no adaptive controls | F39: =+C28+IF('Data Input and Instructions'!$C$11="1703",0.8309,0) -> 23.3805 | G39: =+$B$5 -> 0 | H39: 0 | I39: 1 | J39: 0 | K39: =(K$4*$H39)*((1+'Data Input and Instructions'!$C$64)^$J$2) -> 0 | L39: =(L$4*$H39)*((1+'Data Input and Instructions'!$C$64)^$K$2) -> 0 | M39: =(M$4*$H39)*((1+'Data Input and Instructions'!$C$64)^$L$2) -> 0 | N39: =(N$4*$H39)*((1+'Data Input and Instructions'!$C$64)^$M$2) -> 0 | O39: =+N39*(1+'Data Input and Instructions'!$C$64) -> 0 | P39: =+O39*(1+'Data Input and Instructions'!$C$64) -> 0 | Q39: =+P39*(1+'Data Input and Instructions'!$C$64) -> 0 | R39: =+Q39*(1+'Data Input and Instructions'!$C$64) -> 0 | S39: =+R39*(1+'Data Input and Instructions'!$C$64) -> 0 | T39: =+S39*(1+'Data Input and Instructions'!$C$64) -> 0 | U39: =+T39*(1+'Data Input and Instructions'!$C$64) -> 0 | V39: =+U39*(1+'Data Input and Instructions'!$C$64) -> 0 | W39: =+V39*(1+'Data Input and Instructions'!$C$64) -> 0 | X39: =+W39*(1+'Data Input and Instructions'!$C$64) -> 0 | Y39: =+X39*(1+'Data Input and Instructions'!$C$64) -> 0
A40: 400 watt equivalent LED considering energy efficiency with adaptive controls | B40: 136.8 | C40: 49.20696 | D40: 547.2 | E40: energy cost 150 LED no adaptive controls | F40: =+C29+IF('Data Input and Instructions'!$C$11="1703",0.8309,0) -> 33.721875 | G40: =+$B$6 -> 0 | H40: 0 | I40: 1 | J40: 0 | K40: =(K$4*$H40)*((1+'Data Input and Instructions'!$C$64)^$J$2) -> 0 | L40: =(L$4*$H40)*((1+'Data Input and Instructions'!$C$64)^$K$2) -> 0 | M40: =(M$4*$H40)*((1+'Data Input and Instructions'!$C$64)^$L$2) -> 0 | N40: =(N$4*$H40)*((1+'Data Input and Instructions'!$C$64)^$M$2) -> 0 | O40: =+N40*(1+'Data Input and Instructions'!$C$64) -> 0 | P40: =+O40*(1+'Data Input and Instructions'!$C$64) -> 0 | Q40: =+P40*(1+'Data Input and Instructions'!$C$64) -> 0 | R40: =+Q40*(1+'Data Input and Instructions'!$C$64) -> 0 | S40: =+R40*(1+'Data Input and Instructions'!$C$64) -> 0 | T40: =+S40*(1+'Data Input and Instructions'!$C$64) -> 0 | U40: =+T40*(1+'Data Input and Instructions'!$C$64) -> 0 | V40: =+U40*(1+'Data Input and Instructions'!$C$64) -> 0 | W40: =+V40*(1+'Data Input and Instructions'!$C$64) -> 0 | X40: =+W40*(1+'Data Input and Instructions'!$C$64) -> 0 | Y40: =+X40*(1+'Data Input and Instructions'!$C$64) -> 0
A41: 1000 watt equivalent LED considering energy efficiency with adaptive controls | B41: 333 | C41: 119.7801 | D41: 1332 | E41: energy cost 200 LED no adaptive controls | F41: =+C30+IF('Data Input and Instructions'!$C$11="1703",0.8309,0) -> 43.164 | G41: =+$B$7 -> 0 | H41: 0 | I41: 1 | J41: 0 | K41: =(K$4*$H41)*((1+'Data Input and Instructions'!$C$64)^$J$2) -> 0 | L41: =(L$4*$H41)*((1+'Data Input and Instructions'!$C$64)^$K$2) -> 0 | M41: =(M$4*$H41)*((1+'Data Input and Instructions'!$C$64)^$L$2) -> 0 | N41: =(N$4*$H41)*((1+'Data Input and Instructions'!$C$64)^$M$2) -> 0 | O41: =+N41*(1+'Data Input and Instructions'!$C$64) -> 0 | P41: =+O41*(1+'Data Input and Instructions'!$C$64) -> 0 | Q41: =+P41*(1+'Data Input and Instructions'!$C$64) -> 0 | R41: =+Q41*(1+'Data Input and Instructions'!$C$64) -> 0 | S41: =+R41*(1+'Data Input and Instructions'!$C$64) -> 0 | T41: =+S41*(1+'Data Input and Instructions'!$C$64) -> 0 | U41: =+T41*(1+'Data Input and Instructions'!$C$64) -> 0 | V41: =+U41*(1+'Data Input and Instructions'!$C$64) -> 0 | W41: =+V41*(1+'Data Input and Instructions'!$C$64) -> 0 | X41: =+W41*(1+'Data Input and Instructions'!$C$64) -> 0 | Y41: =+X41*(1+'Data Input and Instructions'!$C$64) -> 0
A42: 50 watt equivalent energy efficiency with adaptive controls only | B42: =+B17*(1-$D$15) -> 54 | C42: 19.4238 | D42: =+($B42*4000)/1000 -> 216 | E42: energy cost 250 LED no adaptive controls | F42: =+C31+IF('Data Input and Instructions'!$C$11="1703",0.8309,0) -> 53.05575 | G42: =+$B$8 -> 0 | H42: 0 | I42: 1 | J42: 0 | K42: =(K$4*$H42)*((1+'Data Input and Instructions'!$C$64)^$J$2) -> 0 | L42: =(L$4*$H42)*((1+'Data Input and Instructions'!$C$64)^$K$2) -> 0 | M42: =(M$4*$H42)*((1+'Data Input and Instructions'!$C$64)^$L$2) -> 0 | N42: =(N$4*$H42)*((1+'Data Input and Instructions'!$C$64)^$M$2) -> 0 | O42: =+N42*(1+'Data Input and Instructions'!$C$64) -> 0 | P42: =+O42*(1+'Data Input and Instructions'!$C$64) -> 0 | Q42: =+P42*(1+'Data Input and Instructions'!$C$64) -> 0 | R42: =+Q42*(1+'Data Input and Instructions'!$C$64) -> 0 | S42: =+R42*(1+'Data Input and Instructions'!$C$64) -> 0 | T42: =+S42*(1+'Data Input and Instructions'!$C$64) -> 0 | U42: =+T42*(1+'Data Input and Instructions'!$C$64) -> 0 | V42: =+U42*(1+'Data Input and Instructions'!$C$64) -> 0 | W42: =+V42*(1+'Data Input and Instructions'!$C$64) -> 0 | X42: =+W42*(1+'Data Input and Instructions'!$C$64) -> 0 | Y42: =+X42*(1+'Data Input and Instructions'!$C$64) -> 0
A43: 70 watt equivalent energy efficiency with adaptive controls only | B43: 72.8 | C43: 26.18616 | D43: 291.2 | E43: energy cost 400 LED no adaptive controls | F43: =+C32+IF('Data Input and Instructions'!$C$11="1703",0.8309,0) -> 82.0116 | G43: =+$B$9 -> 0 | H43: 0 | I43: 1 | J43: 0 | K43: =(K$4*$H43)*((1+'Data Input and Instructions'!$C$64)^$J$2) -> 0 | L43: =(L$4*$H43)*((1+'Data Input and Instructions'!$C$64)^$K$2) -> 0 | M43: =(M$4*$H43)*((1+'Data Input and Instructions'!$C$64)^$L$2) -> 0 | N43: =(N$4*$H43)*((1+'Data Input and Instructions'!$C$64)^$M$2) -> 0 | O43: =+N43*(1+'Data Input and Instructions'!$C$64) -> 0 | P43: =+O43*(1+'Data Input and Instructions'!$C$64) -> 0 | Q43: =+P43*(1+'Data Input and Instructions'!$C$64) -> 0 | R43: =+Q43*(1+'Data Input and Instructions'!$C$64) -> 0 | S43: =+R43*(1+'Data Input and Instructions'!$C$64) -> 0 | T43: =+S43*(1+'Data Input and Instructions'!$C$64) -> 0 | U43: =+T43*(1+'Data Input and Instructions'!$C$64) -> 0 | V43: =+U43*(1+'Data Input and Instructions'!$C$64) -> 0 | W43: =+V43*(1+'Data Input and Instructions'!$C$64) -> 0 | X43: =+W43*(1+'Data Input and Instructions'!$C$64) -> 0 | Y43: =+X43*(1+'Data Input and Instructions'!$C$64) -> 0
A44: 100 watt equivalent energy efficiency with adaptive controls only | B44: 104 | C44: 37.4088 | D44: 416 | E44: energy cost 1000 LED no adaptive controls | F44: =+C33+IF('Data Input and Instructions'!$C$11="1703",0.8309,0) -> 199.6335 | G44: =+$B$10 -> 0 | H44: 0 | I44: 1 | J44: 0 | K44: =(K$4*$H44)*((1+'Data Input and Instructions'!$C$64)^$J$2) -> 0 | L44: =(L$4*$H44)*((1+'Data Input and Instructions'!$C$64)^$K$2) -> 0 | M44: =(M$4*$H44)*((1+'Data Input and Instructions'!$C$64)^$L$2) -> 0 | N44: =(N$4*$H44)*((1+'Data Input and Instructions'!$C$64)^$M$2) -> 0 | O44: =+N44*(1+'Data Input and Instructions'!$C$64) -> 0 | P44: =+O44*(1+'Data Input and Instructions'!$C$64) -> 0 | Q44: =+P44*(1+'Data Input and Instructions'!$C$64) -> 0 | R44: =+Q44*(1+'Data Input and Instructions'!$C$64) -> 0 | S44: =+R44*(1+'Data Input and Instructions'!$C$64) -> 0 | T44: =+S44*(1+'Data Input and Instructions'!$C$64) -> 0 | U44: =+T44*(1+'Data Input and Instructions'!$C$64) -> 0 | V44: =+U44*(1+'Data Input and Instructions'!$C$64) -> 0 | W44: =+V44*(1+'Data Input and Instructions'!$C$64) -> 0 | X44: =+W44*(1+'Data Input and Instructions'!$C$64) -> 0 | Y44: =+X44*(1+'Data Input and Instructions'!$C$64) -> 0
A45: 150 watt equivalent energy efficiency with adaptive controls only | B45: 150 | C45: 53.955 | D45: 600 | E45: energy KWh 50 LED no adaptive controls | F45: =+$D26 -> 135 | G45: =+$B$3 -> 0 | H45: =F45*G45 -> 0 | I45: 1 | J45: 0 | K45: =(K$4*$H45) -> 0 | L45: 0 | M45: 0 | N45: 0 | O45: 0 | P45: 0 | Q45: 0 | R45: 0 | S45: 0 | T45: 0 | U45: 0 | V45: 0 | W45: 0 | X45: 0 | Y45: 0
A46: 200 watt equivalent energy efficiency with adaptive controls only | B46: 192 | C46: 69.0624 | D46: 768 | E46: energy KWh 70 LED no adaptive controls | F46: 182 | G46: =+$B$4 -> 0 | H46: 0 | I46: 1 | J46: 0 | K46: 0 | L46: 0 | M46: 0 | N46: 0 | O46: 0 | P46: 0 | Q46: 0 | R46: 0 | S46: 0 | T46: 0 | U46: 0 | V46: 0 | W46: 0 | X46: 0 | Y46: 0
A47: 250 watt equivalent energy efficiency with adaptive controls only | B47: 236 | C47: 84.8892 | D47: 944 | E47: energy KWh 100 LED no adaptive controls | F47: 260 | G47: =+$B$5 -> 0 | H47: =F47*G47 -> 0 | I47: 1 | J47: 0 | K47: 0 | L47: 0 | M47: 0 | N47: 0 | O47: 0 | P47: 0 | Q47: 0 | R47: 0 | S47: 0 | T47: 0 | U47: 0 | V47: 0 | W47: 0 | X47: 0 | Y47: 0
A48: 400 watt equivalent energy efficiency with adaptive controls only | B48: 364.8 | C48: 131.21856 | D48: 1459.2 | E48: energy KWh 150 LED no adaptive controls | F48: 375 | G48: =+$B$6 -> 0 | H48: 0 | I48: 1 | J48: 0 | K48: 0 | L48: 0 | M48: 0 | N48: 0 | O48: 0 | P48: 0 | Q48: 0 | R48: 0 | S48: 0 | T48: 0 | U48: 0 | V48: 0 | W48: 0 | X48: 0 | Y48: 0
A49: 1000 watt equivalent energy efficiency with adaptive controls only | B49: 888 | C49: 319.4136 | D49: 3552 | E49: energy KWh 200 LED no adaptive controls | F49: 480 | G49: =+$B$7 -> 0 | H49: 0 | I49: 1 | J49: 0 | K49: 0 | L49: 0 | M49: 0 | N49: 0 | O49: 0 | P49: 0 | Q49: 0 | R49: 0 | S49: 0 | T49: 0 | U49: 0 | V49: 0 | W49: 0 | X49: 0 | Y49: 0
E50: energy KWh 250 LED no adaptive controls | F50: 590 | G50: =+$B$8 -> 0 | H50: 0 | I50: 1 | J50: 0 | K50: 0 | L50: 0 | M50: 0 | N50: 0 | O50: 0 | P50: 0 | Q50: 0 | R50: 0 | S50: 0 | T50: 0 | U50: 0 | V50: 0 | W50: 0 | X50: 0 | Y50: 0
E51: energy KWh 400 LED no adaptive controls | F51: 912 | G51: =+$B$9 -> 0 | H51: 0 | I51: 1 | J51: 0 | K51: 0 | L51: 0 | M51: 0 | N51: 0 | O51: 0 | P51: 0 | Q51: 0 | R51: 0 | S51: 0 | T51: 0 | U51: 0 | V51: 0 | W51: 0 | X51: 0 | Y51: 0
A52: Consulting cost | B52: 0.01 | E52: energy KWh 1000 LED no adaptive controls | F52: 2220 | G52: =+$B$10 -> 0 | H52: 0 | I52: 1 | J52: 0 | K52: 0 | L52: 0 | M52: 0 | N52: 0 | O52: 0 | P52: 0 | Q52: 0 | R52: 0 | S52: 0 | T52: 0 | U52: 0 | V52: 0 | W52: 0 | X52: 0 | Y52: 0
A53: Consulting admin fee for procurement services | B53: 0.01 | E53: energy cost adaptive controls 50 watt LED | F53: =+C34+IF('Data Input and Instructions'!$C$11="1703",0.8309,0) -> 7.283925 | G53: =+$B$3 -> 0 | H53: 0 | I53: 1 | J53: 0 | K53: =(K$4*$H53)*((1+'Data Input and Instructions'!$C$64)^$J$2) -> 0 | L53: =(L$4*$H53)*((1+'Data Input and Instructions'!$C$64)^$K$2) -> 0 | M53: =(M$4*$H53)*((1+'Data Input and Instructions'!$C$64)^$L$2) -> 0 | N53: =(N$4*$H53)*((1+'Data Input and Instructions'!$C$64)^$M$2) -> 0 | O53: =+N53*(1+'Data Input and Instructions'!$C$64) -> 0 | P53: =+O53*(1+'Data Input and Instructions'!$C$64) -> 0 | Q53: =+P53*(1+'Data Input and Instructions'!$C$64) -> 0 | R53: =+Q53*(1+'Data Input and Instructions'!$C$64) -> 0 | S53: =+R53*(1+'Data Input and Instructions'!$C$64) -> 0 | T53: =+S53*(1+'Data Input and Instructions'!$C$64) -> 0 | U53: =+T53*(1+'Data Input and Instructions'!$C$64) -> 0 | V53: =+U53*(1+'Data Input and Instructions'!$C$64) -> 0 | W53: =+V53*(1+'Data Input and Instructions'!$C$64) -> 0 | X53: =+W53*(1+'Data Input and Instructions'!$C$64) -> 0 | Y53: =+X53*(1+'Data Input and Instructions'!$C$64) -> 0
A54: Joint Procurement cost | B54: 0.0025 | E54: energy cost adaptive controls 70 watt LED | F54: =+C35+IF('Data Input and Instructions'!$C$11="1703",0.8309,0) -> 9.81981 | G54: =+$B$4 -> 0 | H54: =F54*G54 -> 0 | I54: 1 | J54: 0 | K54: =(K$4*$H54)*((1+'Data Input and Instructions'!$C$64)^$J$2) -> 0 | L54: =(L$4*$H54)*((1+'Data Input and Instructions'!$C$64)^$K$2) -> 0 | M54: =(M$4*$H54)*((1+'Data Input and Instructions'!$C$64)^$L$2) -> 0 | N54: =(N$4*$H54)*((1+'Data Input and Instructions'!$C$64)^$M$2) -> 0 | O54: =+N54*(1+'Data Input and Instructions'!$C$64) -> 0 | P54: =+O54*(1+'Data Input and Instructions'!$C$64) -> 0 | Q54: =+P54*(1+'Data Input and Instructions'!$C$64) -> 0 | R54: =+Q54*(1+'Data Input and Instructions'!$C$64) -> 0 | S54: =+R54*(1+'Data Input and Instructions'!$C$64) -> 0 | T54: =+S54*(1+'Data Input and Instructions'!$C$64) -> 0 | U54: =+T54*(1+'Data Input and Instructions'!$C$64) -> 0 | V54: =+U54*(1+'Data Input and Instructions'!$C$64) -> 0 | W54: =+V54*(1+'Data Input and Instructions'!$C$64) -> 0 | X54: =+W54*(1+'Data Input and Instructions'!$C$64) -> 0 | Y54: =+X54*(1+'Data Input and Instructions'!$C$64) -> 0
A55: Inflation | B55: =+'Data Input and Instructions'!C68 -> 0.02 | E55: energy cost adaptive controls 100 watt LED | F55: =+C36+IF('Data Input and Instructions'!$C$11="1703",0.8309,0) -> 14.0283 | G55: =+$B$5 -> 0 | H55: 0 | I55: 1 | J55: 0 | K55: =(K$4*$H55)*((1+'Data Input and Instructions'!$C$64)^$J$2) -> 0 | L55: =(L$4*$H55)*((1+'Data Input and Instructions'!$C$64)^$K$2) -> 0 | M55: =(M$4*$H55)*((1+'Data Input and Instructions'!$C$64)^$L$2) -> 0 | N55: =(N$4*$H55)*((1+'Data Input and Instructions'!$C$64)^$M$2) -> 0 | O55: =+N55*(1+'Data Input and Instructions'!$C$64) -> 0 | P55: =+O55*(1+'Data Input and Instructions'!$C$64) -> 0 | Q55: =+P55*(1+'Data Input and Instructions'!$C$64) -> 0 | R55: =+Q55*(1+'Data Input and Instructions'!$C$64) -> 0 | S55: =+R55*(1+'Data Input and Instructions'!$C$64) -> 0 | T55: =+S55*(1+'Data Input and Instructions'!$C$64) -> 0 | U55: =+T55*(1+'Data Input and Instructions'!$C$64) -> 0 | V55: =+U55*(1+'Data Input and Instructions'!$C$64) -> 0 | W55: =+V55*(1+'Data Input and Instructions'!$C$64) -> 0 | X55: =+W55*(1+'Data Input and Instructions'!$C$64) -> 0 | Y55: =+X55*(1+'Data Input and Instructions'!$C$64) -> 0
E56: energy cost adaptive controls 150 watt LED | F56: =+C37+IF('Data Input and Instructions'!$C$11="1703",0.8309,0) -> 20.233125 | G56: =+$B$6 -> 0 | H56: 0 | I56: 1 | J56: =(J$4*$H56)*1.03 -> 0 | K56: =(K$4*$H56)*((1+'Data Input and Instructions'!$C$64)^$J$2) -> 0 | L56: =(L$4*$H56)*((1+'Data Input and Instructions'!$C$64)^$K$2) -> 0 | M56: =(M$4*$H56)*((1+'Data Input and Instructions'!$C$64)^$L$2) -> 0 | N56: =(N$4*$H56)*((1+'Data Input and Instructions'!$C$64)^$M$2) -> 0 | O56: =+N56*(1+'Data Input and Instructions'!$C$64) -> 0 | P56: =+O56*(1+'Data Input and Instructions'!$C$64) -> 0 | Q56: =+P56*(1+'Data Input and Instructions'!$C$64) -> 0 | R56: =+Q56*(1+'Data Input and Instructions'!$C$64) -> 0 | S56: =+R56*(1+'Data Input and Instructions'!$C$64) -> 0 | T56: =+S56*(1+'Data Input and Instructions'!$C$64) -> 0 | U56: =+T56*(1+'Data Input and Instructions'!$C$64) -> 0 | V56: =+U56*(1+'Data Input and Instructions'!$C$64) -> 0 | W56: =+V56*(1+'Data Input and Instructions'!$C$64) -> 0 | X56: =+W56*(1+'Data Input and Instructions'!$C$64) -> 0 | Y56: =+X56*(1+'Data Input and Instructions'!$C$64) -> 0
E57: energy cost adaptive controls 200 watt LED | F57: =+C38+IF('Data Input and Instructions'!$C$11="1703",0.8309,0) -> 25.8984 | G57: =+$B$7 -> 0 | H57: 0 | I57: 1 | J57: =(J$4*$H57)*1.03 -> 0 | K57: =(K$4*$H57)*((1+'Data Input and Instructions'!$C$64)^$J$2) -> 0 | L57: =(L$4*$H57)*((1+'Data Input and Instructions'!$C$64)^$K$2) -> 0 | M57: =(M$4*$H57)*((1+'Data Input and Instructions'!$C$64)^$L$2) -> 0 | N57: =(N$4*$H57)*((1+'Data Input and Instructions'!$C$64)^$M$2) -> 0 | O57: =+N57*(1+'Data Input and Instructions'!$C$64) -> 0 | P57: =+O57*(1+'Data Input and Instructions'!$C$64) -> 0 | Q57: =+P57*(1+'Data Input and Instructions'!$C$64) -> 0 | R57: =+Q57*(1+'Data Input and Instructions'!$C$64) -> 0 | S57: =+R57*(1+'Data Input and Instructions'!$C$64) -> 0 | T57: =+S57*(1+'Data Input and Instructions'!$C$64) -> 0 | U57: =+T57*(1+'Data Input and Instructions'!$C$64) -> 0 | V57: =+U57*(1+'Data Input and Instructions'!$C$64) -> 0 | W57: =+V57*(1+'Data Input and Instructions'!$C$64) -> 0 | X57: =+W57*(1+'Data Input and Instructions'!$C$64) -> 0 | Y57: =+X57*(1+'Data Input and Instructions'!$C$64) -> 0
E58: energy cost adaptive controls 250 watt LED | F58: =+C39+IF('Data Input and Instructions'!$C$11="1703",0.8309,0) -> 31.83345 | G58: =+$B$8 -> 0 | H58: 0 | I58: 1 | J58: =(J$4*$H58)*1.03 -> 0 | K58: =(K$4*$H58)*((1+'Data Input and Instructions'!$C$64)^$J$2) -> 0 | L58: =(L$4*$H58)*((1+'Data Input and Instructions'!$C$64)^$K$2) -> 0 | M58: =(M$4*$H58)*((1+'Data Input and Instructions'!$C$64)^$L$2) -> 0 | N58: =(N$4*$H58)*((1+'Data Input and Instructions'!$C$64)^$M$2) -> 0 | O58: =+N58*(1+'Data Input and Instructions'!$C$64) -> 0 | P58: =+O58*(1+'Data Input and Instructions'!$C$64) -> 0 | Q58: =+P58*(1+'Data Input and Instructions'!$C$64) -> 0 | R58: =+Q58*(1+'Data Input and Instructions'!$C$64) -> 0 | S58: =+R58*(1+'Data Input and Instructions'!$C$64) -> 0 | T58: =+S58*(1+'Data Input and Instructions'!$C$64) -> 0 | U58: =+T58*(1+'Data Input and Instructions'!$C$64) -> 0 | V58: =+U58*(1+'Data Input and Instructions'!$C$64) -> 0 | W58: =+V58*(1+'Data Input and Instructions'!$C$64) -> 0 | X58: =+W58*(1+'Data Input and Instructions'!$C$64) -> 0 | Y58: =+X58*(1+'Data Input and Instructions'!$C$64) -> 0
E59: energy cost adaptive controls 400 watt LED | F59: =+C40+IF('Data Input and Instructions'!$C$11="1703",0.8309,0) -> 49.20696 | G59: =+$B$9 -> 0 | H59: 0 | I59: 1 | J59: =(J$4*$H59)*1.03 -> 0 | K59: =(K$4*$H59)*((1+'Data Input and Instructions'!$C$64)^$J$2) -> 0 | L59: =(L$4*$H59)*((1+'Data Input and Instructions'!$C$64)^$K$2) -> 0 | M59: =(M$4*$H59)*((1+'Data Input and Instructions'!$C$64)^$L$2) -> 0 | N59: =(N$4*$H59)*((1+'Data Input and Instructions'!$C$64)^$M$2) -> 0 | O59: =+N59*(1+'Data Input and Instructions'!$C$64) -> 0 | P59: =+O59*(1+'Data Input and Instructions'!$C$64) -> 0 | Q59: =+P59*(1+'Data Input and Instructions'!$C$64) -> 0 | R59: =+Q59*(1+'Data Input and Instructions'!$C$64) -> 0 | S59: =+R59*(1+'Data Input and Instructions'!$C$64) -> 0 | T59: =+S59*(1+'Data Input and Instructions'!$C$64) -> 0 | U59: =+T59*(1+'Data Input and Instructions'!$C$64) -> 0 | V59: =+U59*(1+'Data Input and Instructions'!$C$64) -> 0 | W59: =+V59*(1+'Data Input and Instructions'!$C$64) -> 0 | X59: =+W59*(1+'Data Input and Instructions'!$C$64) -> 0 | Y59: =+X59*(1+'Data Input and Instructions'!$C$64) -> 0
E60: energy cost adaptive controls 1000 watt LED | F60: =+C41+IF('Data Input and Instructions'!$C$11="1703",0.8309,0) -> 119.7801 | G60: =+$B$10 -> 0 | H60: 0 | I60: 1 | J60: =(J$4*$H60)*1.03 -> 0 | K60: =(K$4*$H60)*((1+'Data Input and Instructions'!$C$64)^$J$2) -> 0 | L60: =(L$4*$H60)*((1+'Data Input and Instructions'!$C$64)^$K$2) -> 0 | M60: =(M$4*$H60)*((1+'Data Input and Instructions'!$C$64)^$L$2) -> 0 | N60: =(N$4*$H60)*((1+'Data Input and Instructions'!$C$64)^$M$2) -> 0 | O60: =+N60*(1+'Data Input and Instructions'!$C$64) -> 0 | P60: =+O60*(1+'Data Input and Instructions'!$C$64) -> 0 | Q60: =+P60*(1+'Data Input and Instructions'!$C$64) -> 0 | R60: =+Q60*(1+'Data Input and Instructions'!$C$64) -> 0 | S60: =+R60*(1+'Data Input and Instructions'!$C$64) -> 0 | T60: =+S60*(1+'Data Input and Instructions'!$C$64) -> 0 | U60: =+T60*(1+'Data Input and Instructions'!$C$64) -> 0 | V60: =+U60*(1+'Data Input and Instructions'!$C$64) -> 0 | W60: =+V60*(1+'Data Input and Instructions'!$C$64) -> 0 | X60: =+W60*(1+'Data Input and Instructions'!$C$64) -> 0 | Y60: =+X60*(1+'Data Input and Instructions'!$C$64) -> 0
E61: energy KWh 50 LED with adaptive controls | F61: =+$D34 -> 81 | G61: =+$B$3 -> 0 | H61: 0 | I61: 1 | J61: =(J$4*$H61) -> 0 | K61: =(K$4*$H61) -> 0 | L61: 0 | M61: 0 | N61: 0 | O61: 0 | P61: 0 | Q61: 0 | R61: 0 | S61: 0 | T61: 0 | U61: 0 | V61: 0 | W61: 0 | X61: 0 | Y61: 0
E62: energy KWh 70 LED with adaptive controls | F62: 109.2 | G62: =+$B$4 -> 0 | H62: 0 | I62: 1 | J62: 0 | K62: 0 | L62: 0 | M62: 0 | N62: 0 | O62: 0 | P62: 0 | Q62: 0 | R62: 0 | S62: 0 | T62: 0 | U62: 0 | V62: 0 | W62: 0 | X62: 0 | Y62: 0
E63: energy KWh 100 LED with adaptive controls | F63: 156 | G63: =+$B$5 -> 0 | H63: =F63*G63 -> 0 | I63: 1 | J63: 0 | K63: 0 | L63: 0 | M63: 0 | N63: 0 | O63: 0 | P63: 0 | Q63: 0 | R63: 0 | S63: 0 | T63: 0 | U63: 0 | V63: 0 | W63: 0 | X63: 0 | Y63: 0
E64: energy KWh 150 LED with adaptive controls | F64: 225 | G64: =+$B$6 -> 0 | H64: 0 | I64: 1 | J64: 0 | K64: 0 | L64: 0 | M64: 0 | N64: 0 | O64: 0 | P64: 0 | Q64: 0 | R64: 0 | S64: 0 | T64: 0 | U64: 0 | V64: 0 | W64: 0 | X64: 0 | Y64: 0
E65: energy KWh 200 LED with adaptive controls | F65: 288 | G65: =+$B$7 -> 0 | H65: 0 | I65: 1 | J65: 0 | K65: 0 | L65: 0 | M65: 0 | N65: 0 | O65: 0 | P65: 0 | Q65: 0 | R65: 0 | S65: 0 | T65: 0 | U65: 0 | V65: 0 | W65: 0 | X65: 0 | Y65: 0
E66: energy KWh 250 LED with adaptive controls | F66: 354 | G66: =+$B$8 -> 0 | H66: 0 | I66: 1 | J66: 0 | K66: 0 | L66: 0 | M66: 0 | N66: 0 | O66: 0 | P66: 0 | Q66: 0 | R66: 0 | S66: 0 | T66: 0 | U66: 0 | V66: 0 | W66: 0 | X66: 0 | Y66: 0
E67: energy KWh 400 LED with adaptive controls | F67: 547.2 | G67: =+$B$9 -> 0 | H67: 0 | I67: 1 | J67: 0 | K67: 0 | L67: 0 | M67: 0 | N67: 0 | O67: 0 | P67: 0 | Q67: 0 | R67: 0 | S67: 0 | T67: 0 | U67: 0 | V67: 0 | W67: 0 | X67: 0 | Y67: 0
E68: energy KWh 1000 LED with adaptive controls | F68: 1332 | G68: =+$B$10 -> 0 | H68: 0 | I68: 1 | J68: 0 | K68: 0 | L68: 0 | M68: 0 | N68: 0 | O68: 0 | P68: 0 | Q68: 0 | R68: 0 | S68: 0 | T68: 0 | U68: 0 | V68: 0 | W68: 0 | X68: 0 | Y68: 0
E69: energy cost NO LED and adaptive controls 50 watt LED | F69: =+C42+IF('Data Input and Instructions'!$C$11="1703",0.8309,0) -> 19.4238 | G69: =+$B$3 -> 0 | H69: 0 | I69: 1 | J69: 0 | K69: =(K$4*$H69)*((1+'Data Input and Instructions'!$C$64)^$J$2) -> 0 | L69: =(L$4*$H69)*((1+'Data Input and Instructions'!$C$64)^$K$2) -> 0 | M69: =(M$4*$H69)*((1+'Data Input and Instructions'!$C$64)^$L$2) -> 0 | N69: =(N$4*$H69)*((1+'Data Input and Instructions'!$C$64)^$M$2) -> 0 | O69: =+N69*(1+'Data Input and Instructions'!$C$64) -> 0 | P69: =+O69*(1+'Data Input and Instructions'!$C$64) -> 0 | Q69: =+P69*(1+'Data Input and Instructions'!$C$64) -> 0 | R69: =+Q69*(1+'Data Input and Instructions'!$C$64) -> 0 | S69: =+R69*(1+'Data Input and Instructions'!$C$64) -> 0 | T69: =+S69*(1+'Data Input and Instructions'!$C$64) -> 0 | U69: =+T69*(1+'Data Input and Instructions'!$C$64) -> 0 | V69: =+U69*(1+'Data Input and Instructions'!$C$64) -> 0 | W69: =+V69*(1+'Data Input and Instructions'!$C$64) -> 0 | X69: =+W69*(1+'Data Input and Instructions'!$C$64) -> 0 | Y69: =+X69*(1+'Data Input and Instructions'!$C$64) -> 0
E70: energy cost NO LED and adaptive controls 70 watt LED | F70: =+C43+IF('Data Input and Instructions'!$C$11="1703",0.8309,0) -> 26.18616 | G70: =+$B$4 -> 0 | H70: 0 | I70: 1 | J70: 0 | K70: =(K$4*$H70)*((1+'Data Input and Instructions'!$C$64)^$J$2) -> 0 | L70: =(L$4*$H70)*((1+'Data Input and Instructions'!$C$64)^$K$2) -> 0 | M70: =(M$4*$H70)*((1+'Data Input and Instructions'!$C$64)^$L$2) -> 0 | N70: =(N$4*$H70)*((1+'Data Input and Instructions'!$C$64)^$M$2) -> 0 | O70: =+N70*(1+'Data Input and Instructions'!$C$64) -> 0 | P70: =+O70*(1+'Data Input and Instructions'!$C$64) -> 0 | Q70: =+P70*(1+'Data Input and Instructions'!$C$64) -> 0 | R70: =+Q70*(1+'Data Input and Instructions'!$C$64) -> 0 | S70: =+R70*(1+'Data Input and Instructions'!$C$64) -> 0 | T70: =+S70*(1+'Data Input and Instructions'!$C$64) -> 0 | U70: =+T70*(1+'Data Input and Instructions'!$C$64) -> 0 | V70: =+U70*(1+'Data Input and Instructions'!$C$64) -> 0 | W70: =+V70*(1+'Data Input and Instructions'!$C$64) -> 0 | X70: =+W70*(1+'Data Input and Instructions'!$C$64) -> 0 | Y70: =+X70*(1+'Data Input and Instructions'!$C$64) -> 0
E71: energy cost NO LED and adaptive controls 100 watt LED | F71: =+C44+IF('Data Input and Instructions'!$C$11="1703",0.8309,0) -> 37.4088 | G71: =+$B$5 -> 0 | H71: 0 | I71: 1 | J71: 0 | K71: =(K$4*$H71)*((1+'Data Input and Instructions'!$C$64)^$J$2) -> 0 | L71: =(L$4*$H71)*((1+'Data Input and Instructions'!$C$64)^$K$2) -> 0 | M71: =(M$4*$H71)*((1+'Data Input and Instructions'!$C$64)^$L$2) -> 0 | N71: =(N$4*$H71)*((1+'Data Input and Instructions'!$C$64)^$M$2) -> 0 | O71: =+N71*(1+'Data Input and Instructions'!$C$64) -> 0 | P71: =+O71*(1+'Data Input and Instructions'!$C$64) -> 0 | Q71: =+P71*(1+'Data Input and Instructions'!$C$64) -> 0 | R71: =+Q71*(1+'Data Input and Instructions'!$C$64) -> 0 | S71: =+R71*(1+'Data Input and Instructions'!$C$64) -> 0 | T71: =+S71*(1+'Data Input and Instructions'!$C$64) -> 0 | U71: =+T71*(1+'Data Input and Instructions'!$C$64) -> 0 | V71: =+U71*(1+'Data Input and Instructions'!$C$64) -> 0 | W71: =+V71*(1+'Data Input and Instructions'!$C$64) -> 0 | X71: =+W71*(1+'Data Input and Instructions'!$C$64) -> 0 | Y71: =+X71*(1+'Data Input and Instructions'!$C$64) -> 0
E72: energy cost NO LED and adaptive controls 150 watt LED | F72: =+C45+IF('Data Input and Instructions'!$C$11="1703",0.8309,0) -> 53.955 | G72: =+$B$6 -> 0 | H72: 0 | I72: 1 | J72: =(J$4*$H72)*1.03 -> 0 | K72: =(K$4*$H72)*((1+'Data Input and Instructions'!$C$64)^$J$2) -> 0 | L72: =(L$4*$H72)*((1+'Data Input and Instructions'!$C$64)^$K$2) -> 0 | M72: =(M$4*$H72)*((1+'Data Input and Instructions'!$C$64)^$L$2) -> 0 | N72: =(N$4*$H72)*((1+'Data Input and Instructions'!$C$64)^$M$2) -> 0 | O72: =+N72*(1+'Data Input and Instructions'!$C$64) -> 0 | P72: =+O72*(1+'Data Input and Instructions'!$C$64) -> 0 | Q72: =+P72*(1+'Data Input and Instructions'!$C$64) -> 0 | R72: =+Q72*(1+'Data Input and Instructions'!$C$64) -> 0 | S72: =+R72*(1+'Data Input and Instructions'!$C$64) -> 0 | T72: =+S72*(1+'Data Input and Instructions'!$C$64) -> 0 | U72: =+T72*(1+'Data Input and Instructions'!$C$64) -> 0 | V72: =+U72*(1+'Data Input and Instructions'!$C$64) -> 0 | W72: =+V72*(1+'Data Input and Instructions'!$C$64) -> 0 | X72: =+W72*(1+'Data Input and Instructions'!$C$64) -> 0 | Y72: =+X72*(1+'Data Input and Instructions'!$C$64) -> 0
E73: energy cost NO LED and adaptive controls 200 watt LED | F73: =+C46+IF('Data Input and Instructions'!$C$11="1703",0.8309,0) -> 69.0624 | G73: =+$B$7 -> 0 | H73: 0 | I73: 1 | J73: =(J$4*$H73)*1.03 -> 0 | K73: =(K$4*$H73)*((1+'Data Input and Instructions'!$C$64)^$J$2) -> 0 | L73: =(L$4*$H73)*((1+'Data Input and Instructions'!$C$64)^$K$2) -> 0 | M73: =(M$4*$H73)*((1+'Data Input and Instructions'!$C$64)^$L$2) -> 0 | N73: =(N$4*$H73)*((1+'Data Input and Instructions'!$C$64)^$M$2) -> 0 | O73: =+N73*(1+'Data Input and Instructions'!$C$64) -> 0 | P73: =+O73*(1+'Data Input and Instructions'!$C$64) -> 0 | Q73: =+P73*(1+'Data Input and Instructions'!$C$64) -> 0 | R73: =+Q73*(1+'Data Input and Instructions'!$C$64) -> 0 | S73: =+R73*(1+'Data Input and Instructions'!$C$64) -> 0 | T73: =+S73*(1+'Data Input and Instructions'!$C$64) -> 0 | U73: =+T73*(1+'Data Input and Instructions'!$C$64) -> 0 | V73: =+U73*(1+'Data Input and Instructions'!$C$64) -> 0 | W73: =+V73*(1+'Data Input and Instructions'!$C$64) -> 0 | X73: =+W73*(1+'Data Input and Instructions'!$C$64) -> 0 | Y73: =+X73*(1+'Data Input and Instructions'!$C$64) -> 0
E74: energy cost NO LED and adaptive controls 250 watt LED | F74: =+C47+IF('Data Input and Instructions'!$C$11="1703",0.8309,0) -> 84.8892 | G74: =+$B$8 -> 0 | H74: 0 | I74: 1 | J74: =(J$4*$H74)*1.03 -> 0 | K74: =(K$4*$H74)*((1+'Data Input and Instructions'!$C$64)^$J$2) -> 0 | L74: =(L$4*$H74)*((1+'Data Input and Instructions'!$C$64)^$K$2) -> 0 | M74: =(M$4*$H74)*((1+'Data Input and Instructions'!$C$64)^$L$2) -> 0 | N74: =(N$4*$H74)*((1+'Data Input and Instructions'!$C$64)^$M$2) -> 0 | O74: =+N74*(1+'Data Input and Instructions'!$C$64) -> 0 | P74: =+O74*(1+'Data Input and Instructions'!$C$64) -> 0 | Q74: =+P74*(1+'Data Input and Instructions'!$C$64) -> 0 | R74: =+Q74*(1+'Data Input and Instructions'!$C$64) -> 0 | S74: =+R74*(1+'Data Input and Instructions'!$C$64) -> 0 | T74: =+S74*(1+'Data Input and Instructions'!$C$64) -> 0 | U74: =+T74*(1+'Data Input and Instructions'!$C$64) -> 0 | V74: =+U74*(1+'Data Input and Instructions'!$C$64) -> 0 | W74: =+V74*(1+'Data Input and Instructions'!$C$64) -> 0 | X74: =+W74*(1+'Data Input and Instructions'!$C$64) -> 0 | Y74: =+X74*(1+'Data Input and Instructions'!$C$64) -> 0
E75: energy cost NO LED and adaptive controls 400 watt LED | F75: =+C48+IF('Data Input and Instructions'!$C$11="1703",0.8309,0) -> 131.21856 | G75: =+$B$9 -> 0 | H75: 0 | I75: 1 | J75: =(J$4*$H75)*1.03 -> 0 | K75: =(K$4*$H75)*((1+'Data Input and Instructions'!$C$64)^$J$2) -> 0 | L75: =(L$4*$H75)*((1+'Data Input and Instructions'!$C$64)^$K$2) -> 0 | M75: =(M$4*$H75)*((1+'Data Input and Instructions'!$C$64)^$L$2) -> 0 | N75: =(N$4*$H75)*((1+'Data Input and Instructions'!$C$64)^$M$2) -> 0 | O75: =+N75*(1+'Data Input and Instructions'!$C$64) -> 0 | P75: =+O75*(1+'Data Input and Instructions'!$C$64) -> 0 | Q75: =+P75*(1+'Data Input and Instructions'!$C$64) -> 0 | R75: =+Q75*(1+'Data Input and Instructions'!$C$64) -> 0 | S75: =+R75*(1+'Data Input and Instructions'!$C$64) -> 0 | T75: =+S75*(1+'Data Input and Instructions'!$C$64) -> 0 | U75: =+T75*(1+'Data Input and Instructions'!$C$64) -> 0 | V75: =+U75*(1+'Data Input and Instructions'!$C$64) -> 0 | W75: =+V75*(1+'Data Input and Instructions'!$C$64) -> 0 | X75: =+W75*(1+'Data Input and Instructions'!$C$64) -> 0 | Y75: =+X75*(1+'Data Input and Instructions'!$C$64) -> 0
E76: energy cost NO LED and adaptive controls 1000 watt LED | F76: =+C49+IF('Data Input and Instructions'!$C$11="1703",0.8309,0) -> 319.4136 | G76: =+$B$10 -> 0 | H76: 0 | I76: 1 | J76: =(J$4*$H76)*1.03 -> 0 | K76: =(K$4*$H76)*((1+'Data Input and Instructions'!$C$64)^$J$2) -> 0 | L76: =(L$4*$H76)*((1+'Data Input and Instructions'!$C$64)^$K$2) -> 0 | M76: =(M$4*$H76)*((1+'Data Input and Instructions'!$C$64)^$L$2) -> 0 | N76: =(N$4*$H76)*((1+'Data Input and Instructions'!$C$64)^$M$2) -> 0 | O76: =+N76*(1+'Data Input and Instructions'!$C$64) -> 0 | P76: =+O76*(1+'Data Input and Instructions'!$C$64) -> 0 | Q76: =+P76*(1+'Data Input and Instructions'!$C$64) -> 0 | R76: =+Q76*(1+'Data Input and Instructions'!$C$64) -> 0 | S76: =+R76*(1+'Data Input and Instructions'!$C$64) -> 0 | T76: =+S76*(1+'Data Input and Instructions'!$C$64) -> 0 | U76: =+T76*(1+'Data Input and Instructions'!$C$64) -> 0 | V76: =+U76*(1+'Data Input and Instructions'!$C$64) -> 0 | W76: =+V76*(1+'Data Input and Instructions'!$C$64) -> 0 | X76: =+W76*(1+'Data Input and Instructions'!$C$64) -> 0 | Y76: =+X76*(1+'Data Input and Instructions'!$C$64) -> 0
E77: energy KWh NO LED, only adaptive controls 50 Watts | F77: =+$D42 -> 216 | G77: =+$B$3 -> 0 | H77: =F77*G77 -> 0 | I77: 1 | J77: =(J$4*$H77) -> 0 | K77: 0 | L77: 0 | M77: 0 | N77: 0 | O77: 0 | P77: 0 | Q77: 0 | R77: 0 | S77: 0 | T77: 0 | U77: 0 | V77: 0 | W77: 0 | X77: 0 | Y77: 0
E78: energy KWh NO LED, only adaptive controls 100 Watts | F78: =+$D43 -> 291.2 | G78: =+$B$4 -> 0 | H78: =F78*G78 -> 0 | I78: 1 | J78: 0 | K78: 0 | L78: 0 | M78: 0 | N78: 0 | O78: 0 | P78: 0 | Q78: 0 | R78: 0 | S78: 0 | T78: 0 | U78: 0 | V78: 0 | W78: 0 | X78: 0 | Y78: 0
E79: energy KWh NO LED, only adaptive controls 100 Watts | F79: 416 | G79: =+$B$5 -> 0 | H79: =F79*G79 -> 0 | I79: 1 | J79: 0 | K79: 0 | L79: 0 | M79: 0 | N79: 0 | O79: 0 | P79: 0 | Q79: 0 | R79: 0 | S79: 0 | T79: 0 | U79: 0 | V79: 0 | W79: 0 | X79: 0 | Y79: 0
E80: energy KWh NO LED, only adaptive controls 150 Watts | F80: 600 | G80: =+$B$6 -> 0 | H80: 0 | I80: 1 | J80: 0 | K80: 0 | L80: 0 | M80: 0 | N80: 0 | O80: 0 | P80: 0 | Q80: 0 | R80: 0 | S80: 0 | T80: 0 | U80: 0 | V80: 0 | W80: 0 | X80: 0 | Y80: 0
E81: energy KWh NO LED, only adaptive controls 200 Watts | F81: 768 | G81: =+$B$7 -> 0 | H81: 0 | I81: 1 | J81: 0 | K81: 0 | L81: 0 | M81: 0 | N81: 0 | O81: 0 | P81: 0 | Q81: 0 | R81: 0 | S81: 0 | T81: 0 | U81: 0 | V81: 0 | W81: 0 | X81: 0 | Y81: 0
E82: energy KWh NO LED, only adaptive controls 250 Watts | F82: 944 | G82: =+$B$8 -> 0 | H82: 0 | I82: 1 | J82: 0 | K82: 0 | L82: 0 | M82: 0 | N82: 0 | O82: 0 | P82: 0 | Q82: 0 | R82: 0 | S82: 0 | T82: 0 | U82: 0 | V82: 0 | W82: 0 | X82: 0 | Y82: 0
E83: energy KWh NO LED, only adaptive controls 400 Watts | F83: 1459.2 | G83: =+$B$9 -> 0 | H83: 0 | I83: 1 | J83: 0 | K83: 0 | L83: 0 | M83: 0 | N83: 0 | O83: 0 | P83: 0 | Q83: 0 | R83: 0 | S83: 0 | T83: 0 | U83: 0 | V83: 0 | W83: 0 | X83: 0 | Y83: 0
E84: energy KWh NO LED, only adaptive controls 1000 Watts | F84: 3552 | G84: =+$B$10 -> 0 | H84: 0 | I84: 1 | J84: 0 | K84: 0 | L84: 0 | M84: 0 | N84: 0 | O84: 0 | P84: 0 | Q84: 0 | R84: 0 | S84: 0 | T84: 0 | U84: 0 | V84: 0 | W84: 0 | X84: 0 | Y84: 0
E85: energy cost 50 HPS | F85: =+C17+IF('Data Input and Instructions'!$C$11="1703",0.8309,0) -> 24.27975 | G85: =+$B$3 -> 0 | H85: 0 | I85: 1 | J85: =(J$3*$H85) -> 0 | K85: =(K$3*$H85)*((1+'Data Input and Instructions'!$C$64)^$J$2) -> 0 | L85: =(L$3*$H85)*((1+'Data Input and Instructions'!$C$64)^$K$2) -> 0 | M85: =(M$3*$H85)*((1+'Data Input and Instructions'!$C$64)^$L$2) -> 0 | N85: =(N$3*$H85)*((1+'Data Input and Instructions'!$C$64)^$M$2) -> 0
E86: energy cost 70 HPS | F86: =+C18+IF('Data Input and Instructions'!$C$11="1703",0.8309,0) -> 32.7327 | G86: =+$B$4 -> 0 | H86: =F86*G86 -> 0 | I86: 1 | J86: 0 | K86: =(K$3*$H86)*((1+'Data Input and Instructions'!$C$64)^$J$2) -> 0 | L86: =(L$3*$H86)*((1+'Data Input and Instructions'!$C$64)^$K$2) -> 0 | M86: =(M$3*$H86)*((1+'Data Input and Instructions'!$C$64)^$L$2) -> 0 | N86: =(N$3*$H86)*((1+'Data Input and Instructions'!$C$64)^$M$2) -> 0
E87: energy cost 100 HPS | F87: =+C19+IF('Data Input and Instructions'!$C$11="1703",0.8309,0) -> 46.761 | G87: =+$B$5 -> 0 | H87: 0 | I87: 1 | J87: 0 | K87: =(K$3*$H87)*((1+'Data Input and Instructions'!$C$64)^$J$2) -> 0 | L87: =(L$3*$H87)*((1+'Data Input and Instructions'!$C$64)^$K$2) -> 0 | M87: =(M$3*$H87)*((1+'Data Input and Instructions'!$C$64)^$L$2) -> 0 | N87: =(N$3*$H87)*((1+'Data Input and Instructions'!$C$64)^$M$2) -> 0
E88: energy cost 150 HPS | F88: =+C20+IF('Data Input and Instructions'!$C$11="1703",0.8309,0) -> 67.44375 | G88: =+$B$6 -> 0 | H88: 0 | I88: 1 | J88: 0 | K88: =(K$3*$H88)*((1+'Data Input and Instructions'!$C$64)^$J$2) -> 0 | L88: =(L$3*$H88)*((1+'Data Input and Instructions'!$C$64)^$K$2) -> 0 | M88: =(M$3*$H88)*((1+'Data Input and Instructions'!$C$64)^$L$2) -> 0 | N88: =(N$3*$H88)*((1+'Data Input and Instructions'!$C$64)^$M$2) -> 0
E89: energy cost 200 HPS | F89: =+C21+IF('Data Input and Instructions'!$C$11="1703",0.8309,0) -> 86.328 | G89: =+$B$7 -> 0 | H89: 0 | I89: 1 | J89: 0 | K89: =(K$3*$H89)*((1+'Data Input and Instructions'!$C$64)^$J$2) -> 0 | L89: =(L$3*$H89)*((1+'Data Input and Instructions'!$C$64)^$K$2) -> 0 | M89: =(M$3*$H89)*((1+'Data Input and Instructions'!$C$64)^$L$2) -> 0 | N89: =(N$3*$H89)*((1+'Data Input and Instructions'!$C$64)^$M$2) -> 0
E90: energy cost 250 HPS | F90: =+C22+IF('Data Input and Instructions'!$C$11="1703",0.8309,0) -> 106.1115 | G90: =+$B$8 -> 0 | H90: 0 | I90: 1 | J90: 0 | K90: =(K$3*$H90)*((1+'Data Input and Instructions'!$C$64)^$J$2) -> 0 | L90: =(L$3*$H90)*((1+'Data Input and Instructions'!$C$64)^$K$2) -> 0 | M90: =(M$3*$H90)*((1+'Data Input and Instructions'!$C$64)^$L$2) -> 0 | N90: =(N$3*$H90)*((1+'Data Input and Instructions'!$C$64)^$M$2) -> 0
E91: energy cost 400 HPS | F91: =+C23+IF('Data Input and Instructions'!$C$11="1703",0.8309,0) -> 164.0232 | G91: =+$B$9 -> 0 | H91: 0 | I91: 1 | J91: 0 | K91: =(K$3*$H91)*((1+'Data Input and Instructions'!$C$64)^$J$2) -> 0 | L91: =(L$3*$H91)*((1+'Data Input and Instructions'!$C$64)^$K$2) -> 0 | M91: =(M$3*$H91)*((1+'Data Input and Instructions'!$C$64)^$L$2) -> 0 | N91: =(N$3*$H91)*((1+'Data Input and Instructions'!$C$64)^$M$2) -> 0
E92: energy cost 1000 HPS | F92: =+C24+IF('Data Input and Instructions'!$C$11="1703",0.8309,0) -> 399.267 | G92: =+$B$10 -> 0 | H92: 0 | I92: 1 | J92: 0 | K92: =(K$3*$H92)*((1+'Data Input and Instructions'!$C$64)^$J$2) -> 0 | L92: =(L$3*$H92)*((1+'Data Input and Instructions'!$C$64)^$K$2) -> 0 | M92: =(M$3*$H92)*((1+'Data Input and Instructions'!$C$64)^$L$2) -> 0 | N92: =(N$3*$H92)*((1+'Data Input and Instructions'!$C$64)^$M$2) -> 0
E93: energy KWh 50 HPS | F93: =+$D17 -> 270 | G93: =+$B$3 -> 0 | H93: 0 | I93: 1 | J93: 0 | K93: =(K$3*$H93) -> 0 | L93: 0 | M93: 0 | N93: 0 | O93: 0 | P93: 0 | Q93: 0 | R93: 0 | S93: 0 | T93: 0 | U93: 0 | V93: 0 | W93: 0 | X93: 0 | Y93: 0
E94: energy KWh 70 HPS | F94: 364 | G94: =+$B$4 -> 0 | H94: 0 | I94: 1 | J94: 0 | K94: 0 | L94: 0 | M94: 0 | N94: 0 | O94: 0 | P94: 0 | Q94: 0 | R94: 0 | S94: 0 | T94: 0 | U94: 0 | V94: 0 | W94: 0 | X94: 0 | Y94: 0
E95: energy KWh 100 HPS | F95: 520 | G95: =+$B$5 -> 0 | H95: =F95*G95 -> 0 | I95: 1 | J95: 0 | K95: =(K$3*$H95) -> 0 | L95: 0 | M95: 0 | N95: 0 | O95: 0 | P95: 0 | Q95: 0 | R95: 0 | S95: 0 | T95: 0 | U95: 0 | V95: 0 | W95: 0 | X95: 0 | Y95: 0
E96: energy KWh 150 HPS | F96: 750 | G96: =+$B$6 -> 0 | H96: 0 | I96: 1 | J96: 0 | K96: 0 | L96: 0 | M96: 0 | N96: 0 | O96: 0 | P96: 0 | Q96: 0 | R96: 0 | S96: 0 | T96: 0 | U96: 0 | V96: 0 | W96: 0 | X96: 0 | Y96: 0
E97: energy KWh 200 HPS | F97: 960 | G97: =+$B$7 -> 0 | H97: 0 | I97: 1 | J97: 0 | K97: 0 | L97: 0 | M97: 0 | N97: 0 | O97: 0 | P97: 0 | Q97: 0 | R97: 0 | S97: 0 | T97: 0 | U97: 0 | V97: 0 | W97: 0 | X97: 0 | Y97: 0
E98: energy KWh 250 HPS | F98: 1180 | G98: =+$B$8 -> 0 | H98: 0 | I98: 1 | J98: 0 | K98: 0 | L98: 0 | M98: 0 | N98: 0 | O98: 0 | P98: 0 | Q98: 0 | R98: 0 | S98: 0 | T98: 0 | U98: 0 | V98: 0 | W98: 0 | X98: 0 | Y98: 0
E99: energy KWh 400 HPS | F99: 1824 | G99: =+$B$9 -> 0 | H99: 0 | I99: 1 | J99: 0 | K99: 0 | L99: 0 | M99: 0 | N99: 0 | O99: 0 | P99: 0 | Q99: 0 | R99: 0 | S99: 0 | T99: 0 | U99: 0 | V99: 0 | W99: 0 | X99: 0 | Y99: 0
E100: energy KWh 1000 HPS | F100: 4440 | G100: =+$B$10 -> 0 | H100: 0 | I100: 1 | J100: 0 | K100: 0 | L100: 0 | M100: 0 | N100: 0 | O100: 0 | P100: 0 | Q100: 0 | R100: 0 | S100: 0 | T100: 0 | U100: 0 | V100: 0 | W100: 0 | X100: 0 | Y100: 0
E101: luminaire maintenance cost 50 LED | F101: =+F5+F13 -> 360.9 | G101: =+$B$3 -> 0 | H101: =F101*G101*I101 -> 0 | I101: 0.05 | J101: 0 | K101: 0 | L101: 0 | M101: 0 | N101: 0 | O101: 0 | P101: 0 | Q101: 0 | R101: 0 | S101: 0 | T101: =J$4*$H101*$I101*((1+$B$55)^T$2) -> 0 | U101: 0 | V101: 0 | W101: 0 | X101: 0 | Y101: 0
E102: luminaire maintenance cost 70 LED | F102: 375.9375 | G102: =+$B$4 -> 0 | H102: =F102*G102*I102 -> 0 | I102: 0.05 | J102: 0 | K102: 0 | L102: 0 | M102: 0 | N102: 0 | O102: 0 | P102: 0 | Q102: 0 | R102: 0 | S102: 0 | T102: 0 | U102: 0 | V102: 0 | W102: 0 | X102: 0 | Y102: 0
E103: luminaire maintenance cost 100 LED | F103: 402.654125 | G103: =+$B$5 -> 0 | H103: 0 | I103: 0.05 | J103: 0 | K103: 0 | L103: 0 | M103: 0 | N103: 0 | O103: 0 | P103: 0 | Q103: 0 | R103: 0 | S103: 0 | T103: 0 | U103: 0 | V103: 0 | W103: 0 | X103: 0 | Y103: 0
E104: luminaire maintenance cost 150 LED | F104: 422.7342 | G104: =+$B$6 -> 0 | H104: 0 | I104: 0.05 | J104: 0 | K104: 0 | L104: 0 | M104: 0 | N104: 0 | O104: 0 | P104: 0 | Q104: 0 | R104: 0 | S104: 0 | T104: 0 | U104: 0 | V104: 0 | W104: 0 | X104: 0 | Y104: 0
E105: luminaire maintenance cost 200 LED | F105: 504.2575 | G105: =+$B$7 -> 0 | H105: 0 | I105: 0.05 | J105: 0 | K105: 0 | L105: 0 | M105: 0 | N105: 0 | O105: 0 | P105: 0 | Q105: 0 | R105: 0 | S105: 0 | T105: 0 | U105: 0 | V105: 0 | W105: 0 | X105: 0 | Y105: 0
E106: luminaire maintenance cost 250 LED | F106: 579.074075 | G106: =+$B$8 -> 0 | H106: 0 | I106: 0.05 | J106: 0 | K106: 0 | L106: 0 | M106: 0 | N106: 0 | O106: 0 | P106: 0 | Q106: 0 | R106: 0 | S106: 0 | T106: 0 | U106: 0 | V106: 0 | W106: 0 | X106: 0 | Y106: 0
E107: luminaire maintenance cost 400 LED | F107: 613.058825 | G107: =+$B$9 -> 0 | H107: 0 | I107: 0.05 | J107: 0 | K107: 0 | L107: 0 | M107: 0 | N107: 0 | O107: 0 | P107: 0 | Q107: 0 | R107: 0 | S107: 0 | T107: 0 | U107: 0 | V107: 0 | W107: 0 | X107: 0 | Y107: 0
E108: luminaire maintenance cost 1000 LED | F108: 862.15 | G108: =+$B$10 -> 0 | H108: 0 | I108: 0.05 | J108: 0 | K108: 0 | L108: 0 | M108: 0 | N108: 0 | O108: 0 | P108: 0 | Q108: 0 | R108: 0 | S108: 0 | T108: 0 | U108: 0 | V108: 0 | W108: 0 | X108: 0 | Y108: 0
E109: spot maintenance cost 50 HPS | F109: =$I$155 -> 0 | G109: =+$B$3 -> 0 | H109: =F109*G109*I109 -> 0 | I109: 0.1 | J109: =J$3*$H109 -> 0 | K109: =K$3*$H109*((1+$B$55)^K$2) -> 0 | L109: 0 | M109: 0 | N109: 0
E110: spot maintenance cost 70 HPS | F110: 0 | G110: =+$B$4 -> 0 | H110: 0 | I110: 0.1 | J110: 0 | K110: 0 | L110: 0 | M110: 0 | N110: 0
E111: spot maintenance cost 100 HPS | F111: 0 | G111: =+$B$5 -> 0 | H111: 0 | I111: 0.1 | J111: 0 | K111: 0 | L111: 0 | M111: 0 | N111: 0
E112: spot maintenance cost 150 HPS | F112: 0 | G112: =+$B$6 -> 0 | H112: 0 | I112: 0.1 | J112: 0 | K112: 0 | L112: 0 | M112: 0 | N112: 0
E113: spot maintenance cost 200 HPS | F113: 0 | G113: =+$B$7 -> 0 | H113: 0 | I113: 0.1 | J113: 0 | K113: 0 | L113: 0 | M113: 0 | N113: 0
E114: spot maintenance cost 250 HPS | F114: 0 | G114: =+$B$8 -> 0 | H114: 0 | I114: 0.1 | J114: 0 | K114: 0 | L114: 0 | M114: 0 | N114: 0
E115: spot maintenance cost 400 HPS | F115: =$I$155 -> 0 | G115: =+$B$9 -> 0 | H115: 0 | I115: 0.1 | J115: =J$3*$H115 -> 0 | K115: 0 | L115: 0 | M115: 0 | N115: 0
E116: spot maintenance cost 1000 HPS | F116: =$I$155 -> 0 | G116: =+$B$10 -> 0 | H116: 0 | I116: 0.1 | J116: =J$3*$H116 -> 0 | K116: 0 | L116: 0 | M116: 0 | N116: 0
E117: luminaire maintenance 50 HPS | F117: 0 | G117: =+$B$3 -> 0 | H117: 0 | I117: 0.05 | J117: =J$3*$H117*$I117 -> 0 | K117: 0 | L117: =L$3*$H117*$I117 -> 0 | M117: 0 | N117: 0
E118: luminaire maintenance 70 HPS | F118: 0 | G118: =+$B$4 -> 0 | H118: =F118*G118*I118 -> 0 | I118: 0.05 | J118: 0 | K118: 0 | L118: 0 | M118: 0 | N118: 0
E119: luminaire maintenance 100 HPS | F119: 0 | G119: =+$B$5 -> 0 | H119: 0 | I119: 0.05 | J119: 0 | K119: 0 | L119: 0 | M119: 0 | N119: 0
E120: luminaire maintenance 150 HPS | F120: 0 | G120: =+$B$6 -> 0 | H120: 0 | I120: 0.05 | J120: 0 | K120: 0 | L120: 0 | M120: 0 | N120: 0
E121: luminaire maintenance 200 HPS | F121: 0 | G121: =+$B$7 -> 0 | H121: 0 | I121: 0.05 | J121: 0 | K121: 0 | L121: 0 | M121: 0 | N121: 0
E122: luminaire maintenance 250 HPS | F122: 0 | G122: =+$B$8 -> 0 | H122: 0 | I122: 0.05 | J122: 0 | K122: 0 | L122: 0 | M122: 0 | N122: 0
E123: luminaire maintenance 400 HPS | F123: 0 | G123: =+$B$9 -> 0 | H123: 0 | I123: 0.05 | J123: 0 | K123: 0 | L123: 0 | M123: 0 | N123: 0
E124: luminaire maintenance 1000 HPS | F124: 0 | G124: =+$B$10 -> 0 | H124: 0 | I124: 0.05 | J124: 0 | K124: 0 | L124: 0 | M124: 0 | N124: 0
E125: group maintenance cost 50 LED | F125: 32.14 | G125: =+$B$3 -> 0 | H125: 0 | I125: 1 | J125: 0 | K125: 0 | L125: 0 | M125: 0 | N125: 0 | O125: 0 | P125: =$J$4*$H125*((1+$B$55)^P$2) -> 0 | Q125: 0 | R125: 0 | S125: 0 | T125: 0 | U125: 0 | V125: 0 | W125: =$J$4*$H125*((1+$B$55)^W$2) -> 0 | X125: 0 | Y125: 0
E126: group maintenance cost 70 LED | F126: 32.14 | G126: =+$B$4 -> 0 | H126: =F126*G126*I126 -> 0 | I126: 1 | J126: 0 | K126: 0 | L126: 0 | M126: 0 | N126: 0 | O126: 0 | P126: 0 | Q126: 0 | R126: 0 | S126: 0 | T126: 0 | U126: 0 | V126: 0 | W126: 0 | X126: 0 | Y126: 0
E127: group maintenance cost 70 LED | F127: 33.14 | G127: =+$B$4 -> 0 | H127: 0 | I127: 1 | J127: 0 | K127: 0 | L127: 0 | M127: 0 | N127: 0 | O127: 0 | P127: 0 | Q127: 0 | R127: 0 | S127: 0 | T127: 0 | U127: 0 | V127: 0 | W127: 0 | X127: 0 | Y127: 0
E128: group maintenance cost 100 LED | F128: 33.14 | G128: =+$B$5 -> 0 | H128: 0 | I128: 1 | J128: 0 | K128: 0 | L128: 0 | M128: 0 | N128: 0 | O128: 0 | P128: 0 | Q128: 0 | R128: 0 | S128: 0 | T128: 0 | U128: 0 | V128: 0 | W128: 0 | X128: 0 | Y128: 0
E129: group maintenance cost 150 LED | F129: 33.14 | G129: =+$B$6 -> 0 | H129: 0 | I129: 1 | J129: 0 | K129: 0 | L129: 0 | M129: 0 | N129: 0 | O129: 0 | P129: 0 | Q129: 0 | R129: 0 | S129: 0 | T129: 0 | U129: 0 | V129: 0 | W129: 0 | X129: 0 | Y129: 0
E130: group maintenance cost 200 LED | F130: 33.14 | G130: =+$B$7 -> 0 | H130: 0 | I130: 1 | J130: 0 | K130: 0 | L130: 0 | M130: 0 | N130: 0 | O130: 0 | P130: 0 | Q130: 0 | R130: 0 | S130: 0 | T130: 0 | U130: 0 | V130: 0 | W130: 0 | X130: 0 | Y130: 0
E131: group maintenance cost 250 LED | F131: 33.14 | G131: =+$B$8 -> 0 | H131: 0 | I131: 1 | J131: 0 | K131: 0 | L131: 0 | M131: 0 | N131: 0 | O131: 0 | P131: 0 | Q131: 0 | R131: 0 | S131: 0 | T131: 0 | U131: 0 | V131: 0 | W131: 0 | X131: 0 | Y131: 0
E132: group maintenance cost 400 LED | F132: 33.14 | G132: =+$B$9 -> 0 | H132: 0 | I132: 1 | J132: 0 | K132: 0 | L132: 0 | M132: 0 | N132: 0 | O132: 0 | P132: 0 | Q132: 0 | R132: 0 | S132: 0 | T132: 0 | U132: 0 | V132: 0 | W132: 0 | X132: 0 | Y132: 0
E133: group maintenance cost 1000 LED | F133: 33.14 | G133: =+$B$10 -> 0 | H133: 0 | I133: 1 | J133: 0 | K133: 0 | L133: 0 | M133: 0 | N133: 0 | O133: 0 | P133: 0 | Q133: 0 | R133: 0 | S133: 0 | T133: 0 | U133: 0 | V133: 0 | W133: 0 | X133: 0 | Y133: 0
E134: group maintenance cost 50 HPS | F134: 33.14 | G134: =+$B$3 -> 0 | H134: =F134*G134*I134 -> 0 | I134: 0.25 | J134: =J$3*$H134 -> 0 | K134: =K$3*$H134*(1+$B$55) -> 0 | L134: =L$3*$H134*((1+$B$55)^L$2) -> 0 | M134: 0 | N134: 0
E135: group maintenance cost 70 HPS | F135: 33.14 | G135: =+$B$4 -> 0 | H135: 0 | I135: 0.25 | J135: 0 | K135: 0 | L135: 0 | M135: 0 | N135: 0
E136: group maintenance cost 100 HPS | F136: 33.14 | G136: =+$B$5 -> 0 | H136: 0 | I136: 0.25 | J136: 0 | K136: 0 | L136: 0 | M136: 0 | N136: 0
E137: group maintenance cost 150 HPS | F137: 33.14 | G137: =+$B$6 -> 0 | H137: 0 | I137: 0.25 | J137: 0 | K137: 0 | L137: 0 | M137: 0 | N137: 0
E138: group maintenance cost 200 HPS | F138: 33.14 | G138: =+$B$7 -> 0 | H138: 0 | I138: 0.25 | J138: 0 | K138: 0 | L138: 0 | M138: 0 | N138: 0
E139: group maintenance cost 250 HPS | F139: 33.14 | G139: =+$B$8 -> 0 | H139: 0 | I139: 0.25 | J139: 0 | K139: 0 | L139: 0 | M139: 0 | N139: 0
E140: group maintenance cost 400 HPS | F140: 33.14 | G140: =+$B$9 -> 0 | H140: =F140*G140*I140 -> 0 | I140: 0.25 | J140: =J$3*$H140 -> 0 | K140: 0 | L140: 0 | M140: 0 | N140: 0
E141: group maintenance cost 1000 HPS | F141: 33.14 | G141: =+$B$10 -> 0 | H141: =F141*G141*I141 -> 0 | I141: 0.25 | J141: 0 | K141: 0 | L141: 0 | M141: 0 | N141: 0
E142: interest | F142: 0.035 | J142: 0 | K142: 0 | L142: 0 | M142: 0 | N142: 0
J143: 0 | K143: 0 | L143: 0 | M143: 0 | N143: 0
J144: 0 | K144: 0 | L144: 0 | M144: 0 | N144: 0
J145: 0 | K145: 0 | L145: 0 | M145: 0 | N145: 0
C146: status quo costs | J146: 0 | K146: 0 | L146: 0 | M146: 0 | N146: 0
J147: 0 | K147: 0 | L147: 0 | M147: 0 | N147: 0
J148: 0 | K148: 0 | L148: 0 | M148: 0 | N148: 0
J149: 0 | K149: 0 | L149: 0 | M149: 0 | N149: 0
J150: 0 | K150: 0 | L150: 0 | M150: 0 | N150: 0
J151: 0 | K151: 0 | L151: 0 | M151: 0 | N151: 0
F152: non spot lamping | I152: spot lamping | J152: 0 | K152: 0 | L152: 0 | M152: 0 | N152: 0
E153: luminaire costs | F153: 415869 | J153: 0 | K153: 0 | L153: 0 | M153: 0 | N153: 0
E154: number of work orders | F154: 1888 | I154: =M167 -> 0 | J154: 0 | K154: 0 | L154: =L$3*$H154*((1+$B$55)^L$2) -> 0 | M154: 0 | N154: 0
E155: unit cost | F155: =F153/F154 -> 220.2695975 | I155: =N167 -> 0 | J155: 0 | K155: 0 | L155: 0 | M155: 0 | N155: 0
J156: 0 | K156: 0 | L156: 0 | M156: 0 | N156: 0
E157: extrapolated per year | F157: =12/9*F154 -> 2517.333333 | G157: units expected to fail | I157: =12/8*I154 -> 0 | J157: 0 | K157: 0 | L157: 0 | M157: 0 | N157: 0
J158: 0 | K158: 0 | L158: 0 | M158: 0 | N158: 0
E159: percentage failure of 50,000 | F159: =F157/50000 -> 0.05034666667 | I159: =I157/50000 -> 0 | J159: 0 | K159: 0 | L159: 0 | M159: 0 | N159: 0
J160: 0 | K160: 0 | L160: 0 | M160: 0 | N160: 0
J161: 0 | K161: 0 | L161: 0 | M161: 0 | N161: 0
E162: annual | F162: =F157*F155 -> 554492 | I162: =I157*I155 -> 0 | J162: 0 | K162: 0 | L162: 0 | M162: 0 | N162: 0
E163: total maintenance | F163: =F162+I162 -> 554492 | J163: 0 | K163: 0 | L163: 0 | M163: 0 | N163: 0
J164: 0 | K164: 0 | L164: 0 | M164: 0 | N164: 0
J165: 0 | K165: 0 | L165: 0 | M165: 0 | N165: 0
J166: 0 | K166: 0 | L166: 0 | M166: 0 | N166: 0
J167: 0 | K167: 0 | L167: 0 | M167: 0 | N167: 0
J168: 0 | K168: 0 | L168: 0 | M168: 0 | N168: 0
J169: 0 | K169: 0 | L169: 0 | M169: 0 | N169: 0

Sheet ballast losses (hidden)
A1: Nominal | B1: Ballast Loss
A2: Lamp Wattage | B2: as a Percentage (%) of Lamp Wattage
A3: 50 | B3: =+'Data Input and Instructions'!C50 -> 0.35 | D3: 50 | E3: =+A3*B3 -> 17.5 | F3: =+D3+E3 -> 67.5
A4: 70 | B4: =+'Data Input and Instructions'!C51 -> 0.3 | D4: 70 | E4: 21 | F4: =+D4+E4 -> 91
A5: 100 | B5: =+'Data Input and Instructions'!C52 -> 0.3 | D5: 100 | E5: 30 | F5: =+D5+E5 -> 130
A6: 150 | B6: =+'Data Input and Instructions'!C53 -> 0.25 | D6: 150 | E6: 37.5 | F6: 187.5
A7: 200 | B7: =+'Data Input and Instructions'!C54 -> 0.2 | D7: 200 | E7: 40 | F7: 240
A8: 250 | B8: =+'Data Input and Instructions'!C55 -> 0.18 | D8: 250 | E8: 45 | F8: 295
A9: 400 | B9: =+'Data Input and Instructions'!C56 -> 0.14 | D9: 400 | E9: 56 | F9: =+D9+E9 -> 456
A10: 1000 | B10: =+'Data Input and Instructions'!C57 -> 0.11 | D10: 1000 | E10: 110 | F10: 1110

Sheet GHG Calculator (hidden)
A1: Overhead Street Lighting
A2: Electricity Usage Calculator
A4: Enter latitude and lighting parameters below | G4: Estimated Usage:
A5: to calculate estimated electricity usage. | I5: Estimated
F6: Month | G6: Month | H6: Night Hrs | I6: Usage (kWh)
F7: 1 | G7: Jan | H7: =SUMIF(F$24:F$388,F7,I$24:I$388) -> 479.2187432 | I7: =$C$20*H7/1000 -> 0
A8: Latitude: | B8: 54.23 | F8: 2 | G8: Feb | H8: 396.5517146 | I8: 0
F9: 3 | G9: Mar | H9: 377.7870614 | I9: 0
A10: Lighting Parameters: | F10: 4 | G10: Apr | H10: 301.8146905 | I10: 0
A11: # of Lamps | B11: Wattage | C11: Watts | F11: 5 | G11: May | H11: 262.9165489 | I11: 0
A12: =+'Data Input and Instructions'!C26 -> 0 | B12: 50 | C12: =A12*B12 -> 0 | F12: 6 | G12: Jun | H12: 233.8848677 | I12: 0
A13: =+'Data Input and Instructions'!C27 -> 0 | B13: 70 | C13: 0 | F13: 7 | G13: Jul | H13: 250.1904197 | I13: 0
A14: =+'Data Input and Instructions'!C28 -> 0 | B14: 100 | C14: 0 | F14: 8 | G14: Aug | H14: 288.2934689 | I14: 0
A15: =+'Data Input and Instructions'!C29 -> 0 | B15: 150 | C15: 0 | F15: 9 | G15: Sep | H15: 337.0088965 | I15: 0
A16: =+'Data Input and Instructions'!C30 -> 0 | B16: 200 | C16: 0 | F16: 10 | G16: Oct | H16: 414.2649173 | I16: 0
A17: =+'Data Input and Instructions'!C31 -> 0 | B17: 250 | C17: 0 | F17: 11 | G17: Nov | H17: 451.2033766 | I17: 0
A18: =+'Data Input and Instructions'!C32 -> 0 | B18: 400 | C18: 0 | F18: 12 | G18: Dec | H18: 489.4625413 | I18: 0
A19: =+'Data Input and Instructions'!C33 -> 0 | B19: 1000 | C19: 0 | G19: Annual Total (kWh): | I19: =SUM(I7:I18) -> 0
A20: Total Watts: | C20: =SUM(C13:C19) -> 0
G22: Estimated Hours of Day/Night:
E23: Day # | F23: Month | G23: Date | H23: Daylight Hrs | I23: Night Hrs
E24: 1 | F24: =MONTH(G24) -> 1 | G24: 2011-01-01 | H24: =24-(24/PI())*(ACOS((SIN(0.8333*PI()/180) + SIN(B$8*PI()/180)*SIN(ASIN(0.39795*COS(0.2163108 + 2*ATAN(0.9671396*TAN(0.0086*($E24-186)))))))/COS(B$8*PI()/180)*COS(ASIN(0.39795*COS(0.2163108 + 2*ATAN(0.9671396*TAN(0.0086*($E24-186)))))))) -> 8.196310642 | I24: =24-H24 -> 15.80368936
E25: 2 | F25: =MONTH(G25) -> 1 | G25: 2011-01-02 | H25: 8.208170401 | I25: =24-H25 -> 15.7918296
E26: 3 | F26: 1 | G26: 2011-01-03 | H26: 8.221184503 | I26: 15.7788155
E27: 4 | F27: 1 | G27: 2011-01-04 | H27: 8.235353766 | I27: 15.76464623
E28: 5 | F28: 1 | G28: 2011-01-05 | H28: 8.250678932 | I28: 15.74932107
E29: 6 | F29: 1 | G29: 2011-01-06 | H29: 8.267160641 | I29: 15.73283936
E30: 7 | F30: 1 | G30: 2011-01-07 | H30: 8.2847994 | I30: 15.7152006
E31: 8 | F31: 1 | G31: 2011-01-08 | H31: 8.30359556 | I31: 15.69640444
E32: 9 | F32: 1 | G32: 2011-01-09 | H32: 8.32354928 | I32: 15.67645072
E33: 10 | F33: 1 | G33: 2011-01-10 | H33: 8.344660508 | I33: 15.65533949
E34: 11 | F34: 1 | G34: 2011-01-11 | H34: 8.36692894 | I34: 15.63307106
E35: 12 | F35: 1 | G35: 2011-01-12 | H35: 8.390353999 | I35: 15.609646
E36: 13 | F36: 1 | G36: 2011-01-13 | H36: 8.414934802 | I36: 15.5850652
E37: 14 | F37: 1 | G37: 2011-01-14 | H37: 8.440670128 | I37: 15.55932987
E38: 15 | F38: 1 | G38: 2011-01-15 | H38: 8.467558394 | I38: 15.53244161
E39: 16 | F39: 1 | G39: 2011-01-16 | H39: 8.495597624 | I39: 15.50440238
E40: 17 | F40: 1 | G40: 2011-01-17 | H40: 8.52478542 | I40: 15.47521458
E41: 18 | F41: 1 | G41: 2011-01-18 | H41: 8.555118941 | I41: 15.44488106
E42: 19 | F42: 1 | G42: 2011-01-19 | H42: 8.586594872 | I42: 15.41340513
E43: 20 | F43: 1 | G43: 2011-01-20 | H43: 8.619209403 | I43: 15.3807906
E44: 21 | F44: 1 | G44: 2011-01-21 | H44: 8.652958208 | I44: 15.34704179
E45: 22 | F45: 1 | G45: 2011-01-22 | H45: 8.687836419 | I45: 15.31216358
E46: 23 | F46: 1 | G46: 2011-01-23 | H46: 8.723838613 | I46: 15.27616139
E47: 24 | F47: 1 | G47: 2011-01-24 | H47: 8.760958791 | I47: 15.23904121
E48: 25 | F48: 1 | G48: 2011-01-25 | H48: 8.799190362 | I48: 15.20080964
E49: 26 | F49: 1 | G49: 2011-01-26 | H49: 8.838526132 | I49: 15.16147387
E50: 27 | F50: 1 | G50: 2011-01-27 | H50: 8.87895829 | I50: 15.12104171
E51: 28 | F51: 1 | G51: 2011-01-28 | H51: 8.920478398 | I51: 15.0795216
E52: 29 | F52: 1 | G52: 2011-01-29 | H52: 8.963077385 | I52: 15.03692261
E53: 30 | F53: 1 | G53: 2011-01-30 | H53: 9.00674554 | I53: 14.99325446
E54: 31 | F54: 1 | G54: 2011-01-31 | H54: 9.051472506 | I54: 14.94852749
E55: 32 | F55: 2 | G55: 2011-02-01 | H55: 9.097247282 | I55: 14.90275272
E56: 33 | F56: 2 | G56: 2011-02-02 | H56: 9.144058221 | I56: 14.85594178
E57: 34 | F57: 2 | G57: 2011-02-03 | H57: 9.191893028 | I57: 14.80810697
E58: 35 | F58: 2 | G58: 2011-02-04 | H58: 9.240738769 | I58: 14.75926123
E59: 36 | F59: 2 | G59: 2011-02-05 | H59: 9.290581873 | I59: 14.70941813
E60: 37 | F60: 2 | G60: 2011-02-06 | H60: 9.34140814 | I60: 14.65859186
E61: 38 | F61: 2 | G61: 2011-02-07 | H61: 9.393202747 | I61: 14.60679725
E62: 39 | F62: 2 | G62: 2011-02-08 | H62: 9.44595026 | I62: 14.55404974
E63: 40 | F63: 2 | G63: 2011-02-09 | H63: 9.499634643 | I63: 14.50036536
E64: 41 | F64: 2 | G64: 2011-02-10 | H64: 9.554239272 | I64: 14.44576073
E65: 42 | F65: 2 | G65: 2011-02-11 | H65: 9.609746946 | I65: 14.39025305
E66: 43 | F66: 2 | G66: 2011-02-12 | H66: 9.666139906 | I66: 14.33386009
E67: 44 | F67: 2 | G67: 2011-02-13 | H67: 9.723399843 | I67: 14.27660016
E68: 45 | F68: 2 | G68: 2011-02-14 | H68: 9.781507922 | I68: 14.21849208
E69: 46 | F69: 2 | G69: 2011-02-15 | H69: 9.840444794 | I69: 14.15955521
E70: 47 | F70: 2 | G70: 2011-02-16 | H70: 9.900190614 | I70: 14.09980939
E71: 48 | F71: 2 | G71: 2011-02-17 | H71: 9.960725062 | I71: 14.03927494
E72: 49 | F72: 2 | G72: 2011-02-18 | H72: 10.02202736 | I72: 13.97797264
E73: 50 | F73: 2 | G73: 2011-02-19 | H73: 10.08407629 | I73: 13.91592371
E74: 51 | F74: 2 | G74: 2011-02-20 | H74: 10.14685021 | I74: 13.85314979
E75: 52 | F75: 2 | G75: 2011-02-21 | H75: 10.21032708 | I75: 13.78967292
E76: 53 | F76: 2 | G76: 2011-02-22 | H76: 10.27448449 | I76: 13.72551551
E77: 54 | F77: 2 | G77: 2011-02-23 | H77: 10.33929965 | I77: 13.66070035
E78: 55 | F78: 2 | G78: 2011-02-24 | H78: 10.40474944 | I78: 13.59525056
E79: 56 | F79: 2 | G79: 2011-02-25 | H79: 10.47081042 | I79: 13.52918958
E80: 57 | F80: 2 | G80: 2011-02-26 | H80: 10.53745884 | I80: 13.46254116
E81: 58 | F81: 2 | G81: 2011-02-27 | H81: 10.60467068 | I81: 13.39532932
E82: 59 | F82: 2 | G82: 2011-02-28 | H82: 10.67242164 | I82: 13.32757836
E83: 60 | F83: 3 | G83: 2011-03-01 | H83: 10.74068718 | I83: 13.25931282
E84: 61 | F84: 3 | G84: 2011-03-02 | H84: 10.80944255 | I84: 13.19055745
E85: 62 | F85: 3 | G85: 2011-03-03 | H85: 10.87866277 | I85: 13.12133723
E86: 63 | F86: 3 | G86: 2011-03-04 | H86: 10.94832268 | I86: 13.05167732
E87: 64 | F87: 3 | G87: 2011-03-05 | H87: 11.01839695 | I87: 12.98160305
E88: 65 | F88: 3 | G88: 2011-03-06 | H88: =24-(24/PI())*(ACOS((SIN(0.8333*PI()/180) + SIN(B$8*PI()/180)*SIN(ASIN(0.39795*COS(0.2163108 + 2*ATAN(0.9671396*TAN(0.0086*($E88-186)))))))/COS(B$8*PI()/180)*COS(ASIN(0.39795*COS(0.2163108 + 2*ATAN(0.9671396*TAN(0.0086*($E88-186)))))))) -> 11.0888601 | I88: 12.9111399
E89: 66 | F89: =MONTH(G89) -> 3 | G89: 2011-03-07 | H89: 11.1596865 | I89: =24-H89 -> 12.8403135
E90: 67 | F90: 3 | G90: 2011-03-08 | H90: 11.2308504 | I90: 12.7691496
E91: 68 | F91: 3 | G91: 2011-03-09 | H91: 11.30232596 | I91: 12.69767404
E92: 69 | F92: 3 | G92: 2011-03-10 | H92: 11.37408723 | I92: 12.62591277
E93: 70 | F93: 3 | G93: 2011-03-11 | H93: 11.44610821 | I93: 12.55389179
E94: 71 | F94: 3 | G94: 2011-03-12 | H94: 11.51836281 | I94: 12.48163719
E95: 72 | F95: 3 | G95: 2011-03-13 | H95: 11.59082493 | I95: 12.40917507
E96: 73 | F96: 3 | G96: 2011-03-14 | H96: 11.66346841 | I96: 12.33653159
E97: 74 | F97: 3 | G97: 2011-03-15 | H97: 11.7362671 | I97: 12.2637329
E98: 75 | F98: 3 | G98: 2011-03-16 | H98: 11.80919482 | I98: 12.19080518
E99: 76 | F99: 3 | G99: 2011-03-17 | H99: 11.88222542 | I99: 12.11777458
E100: 77 | F100: 3 | G100: 2011-03-18 | H100: 11.95533277 | I100: 12.04466723
E101: 78 | F101: 3 | G101: 2011-03-19 | H101: 12.02849077 | I101: 11.97150923
E102: 79 | F102: 3 | G102: 2011-03-20 | H102: 12.10167338 | I102: 11.89832662
E103: 80 | F103: 3 | G103: 2011-03-21 | H103: 12.17485462 | I103: 11.82514538
E104: 81 | F104: 3 | G104: 2011-03-22 | H104: 12.24800857 | I104: 11.75199143
E105: 82 | F105: 3 | G105: 2011-03-23 | H105: 12.3211094 | I105: 11.6788906
E106: 83 | F106: 3 | G106: 2011-03-24 | H106: 12.39413138 | I106: 11.60586862
E107: 84 | F107: 3 | G107: 2011-03-25 | H107: 12.4670489 | I107: 11.5329511
E108: 85 | F108: 3 | G108: 2011-03-26 | H108: 12.53983644 | I108: 11.46016356
E109: 86 | F109: 3 | G109: 2011-03-27 | H109: 12.61246863 | I109: 11.38753137
E110: 87 | F110: 3 | G110: 2011-03-28 | H110: 12.68492025 | I110: 11.31507975
E111: 88 | F111: 3 | G111: 2011-03-29 | H111: 12.75716621 | I111: 11.24283379
E112: 89 | F112: 3 | G112: 2011-03-30 | H112: 12.82918161 | I112: 11.17081839
E113: 90 | F113: 3 | G113: 2011-03-31 | H113: 12.9009417 | I113: 11.0990583
E114: 91 | F114: 4 | G114: 2011-04-01 | H114: 12.97242193 | I114: 11.02757807
E115: 92 | F115: 4 | G115: 2011-04-02 | H115: 13.04359795 | I115: 10.95640205
E116: 93 | F116: 4 | G116: 2011-04-03 | H116: 13.11444561 | I116: 10.88555439
E117: 94 | F117: 4 | G117: 2011-04-04 | H117: 13.184941 | I117: 10.815059
E118: 95 | F118: 4 | G118: 2011-04-05 | H118: 13.25506041 | I118: 10.74493959
E119: 96 | F119: 4 | G119: 2011-04-06 | H119: 13.3247804 | I119: 10.6752196
E120: 97 | F120: 4 | G120: 2011-04-07 | H120: 13.39407776 | I120: 10.60592224
E121: 98 | F121: 4 | G121: 2011-04-08 | H121: 13.46292958 | I121: 10.53707042
E122: 99 | F122: 4 | G122: 2011-04-09 | H122: 13.53131319 | I122: 10.46868681
E123: 100 | F123: 4 | G123: 2011-04-10 | H123: 13.59920624 | I123: 10.40079376
E124: 101 | F124: 4 | G124: 2011-04-11 | H124: 13.66658665 | I124: 10.33341335
E125: 102 | F125: 4 | G125: 2011-04-12 | H125: 13.73343269 | I125: 10.26656731
E126: 103 | F126: 4 | G126: 2011-04-13 | H126: 13.79972291 | I126: 10.20027709
E127: 104 | F127: 4 | G127: 2011-04-14 | H127: 13.86543624 | I127: 10.13456376
E128: 105 | F128: 4 | G128: 2011-04-15 | H128: 13.93055193 | I128: 10.06944807
E129: 106 | F129: 4 | G129: 2011-04-16 | H129: 13.9950496 | I129: 10.0049504
E130: 107 | F130: 4 | G130: 2011-04-17 | H130: 14.05890924 | I130: 9.941090764
E131: 108 | F131: 4 | G131: 2011-04-18 | H131: 14.12211122 | I131: 9.87788878
E132: 109 | F132: 4 | G132: 2011-04-19 | H132: 14.18463632 | I132: 9.815363681
E133: 110 | F133: 4 | G133: 2011-04-20 | H133: 14.24646571 | I133: 9.753534288
E134: 111 | F134: 4 | G134: 2011-04-21 | H134: 14.307581 | I134: 9.692419004
E135: 112 | F135: 4 | G135: 2011-04-22 | H135: 14.3679642 | I135: 9.632035802
E136: 113 | F136: 4 | G136: 2011-04-23 | H136: 14.42759779 | I136: 9.572402212
E137: 114 | F137: 4 | G137: 2011-04-24 | H137: 14.48646469 | I137: 9.513535313
E138: 115 | F138: 4 | G138: 2011-04-25 | H138: 14.54454828 | I138: 9.455451719
E139: 116 | F139: 4 | G139: 2011-04-26 | H139: 14.60183243 | I139: 9.398167572
E140: 117 | F140: 4 | G140: 2011-04-27 | H140: 14.65830147 | I140: 9.341698531
E141: 118 | F141: 4 | G141: 2011-04-28 | H141: 14.71394024 | I141: 9.286059762
E142: 119 | F142: 4 | G142: 2011-04-29 | H142: 14.76873407 | I142: 9.231265929
E143: 120 | F143: 4 | G143: 2011-04-30 | H143: 14.82266881 | I143: 9.177331188
E144: 121 | F144: 5 | G144: 2011-05-01 | H144: 14.87573082 | I144: 9.124269176
E145: 122 | F145: 5 | G145: 2011-05-02 | H145: 14.92790699 | I145: 9.072093008
E146: 123 | F146: 5 | G146: 2011-05-03 | H146: 14.97918473 | I146: 9.020815267
E147: 124 | F147: 5 | G147: 2011-05-04 | H147: 15.029552 | I147: 8.970448001
E148: 125 | F148: 5 | G148: 2011-05-05 | H148: 15.07899728 | I148: 8.92100272
E149: 126 | F149: 5 | G149: 2011-05-06 | H149: 15.12750961 | I149: 8.872490388
E150: 127 | F150: 5 | G150: 2011-05-07 | H150: 15.17507858 | I150: 8.824921423
E151: 128 | F151: 5 | G151: 2011-05-08 | H151: 15.2216943 | I151: 8.778305699
E152: 129 | F152: 5 | G152: 2011-05-09 | H152: =24-(24/PI())*(ACOS((SIN(0.8333*PI()/180) + SIN(B$8*PI()/180)*SIN(ASIN(0.39795*COS(0.2163108 + 2*ATAN(0.9671396*TAN(0.0086*($E152-186)))))))/COS(B$8*PI()/180)*COS(ASIN(0.39795*COS(0.2163108 + 2*ATAN(0.9671396*TAN(0.0086*($E152-186)))))))) -> 15.26734746 | I152: 8.732652538
E153: 130 | F153: =MONTH(G153) -> 5 | G153: 2011-05-10 | H153: 15.31202928 | I153: =24-H153 -> 8.687970717
E154: 131 | F154: 5 | G154: 2011-05-11 | H154: 15.35573153 | I154: 8.644268467
E155: 132 | F155: 5 | G155: 2011-05-12 | H155: 15.39844652 | I155: 8.601553478
E156: 133 | F156: 5 | G156: 2011-05-13 | H156: 15.4401671 | I156: 8.559832901
E157: 134 | F157: 5 | G157: 2011-05-14 | H157: 15.48088664 | I157: 8.519113356
E158: 135 | F158: 5 | G158: 2011-05-15 | H158: 15.52059906 | I158: 8.479400936
E159: 136 | F159: 5 | G159: 2011-05-16 | H159: 15.55929878 | I159: 8.44070122
E160: 137 | F160: 5 | G160: 2011-05-17 | H160: 15.59698072 | I160: 8.403019276
E161: 138 | F161: 5 | G161: 2011-05-18 | H161: 15.63364032 | I161: 8.366359678
E162: 139 | F162: 5 | G162: 2011-05-19 | H162: 15.66927349 | I162: 8.330726513
E163: 140 | F163: 5 | G163: 2011-05-20 | H163: 15.7038766 | I163: 8.296123398
E164: 141 | F164: 5 | G164: 2011-05-21 | H164: 15.73744651 | I164: 8.262553493
E165: 142 | F165: 5 | G165: 2011-05-22 | H165: 15.76998048 | I165: 8.230019518
E166: 143 | F166: 5 | G166: 2011-05-23 | H166: 15.80147623 | I166: 8.198523766
E167: 144 | F167: 5 | G167: 2011-05-24 | H167: 15.83193187 | I167: 8.168068127
E168: 145 | F168: 5 | G168: 2011-05-25 | H168: 15.8613459 | I168: 8.138654102
E169: 146 | F169: 5 | G169: 2011-05-26 | H169: 15.88971717 | I169: 8.110282827
E170: 147 | F170: 5 | G170: 2011-05-27 | H170: 15.91704491 | I170: 8.08295509
E171: 148 | F171: 5 | G171: 2011-05-28 | H171: 15.94332865 | I171: 8.056671355
E172: 149 | F172: 5 | G172: 2011-05-29 | H172: 15.96856821 | I172: 8.031431785
E173: 150 | F173: 5 | G173: 2011-05-30 | H173: 15.99276374 | I173: 8.007236264
E174: 151 | F174: 5 | G174: 2011-05-31 | H174: 16.01591558 | I174: 7.98408442
E175: 152 | F175: 6 | G175: 2011-06-01 | H175: 16.03802435 | I175: 7.96197565
E176: 153 | F176: 6 | G176: 2011-06-02 | H176: 16.05909086 | I176: 7.940909143
E177: 154 | F177: 6 | G177: 2011-06-03 | H177: 16.07911609 | I177: 7.920883905
E178: 155 | F178: 6 | G178: 2011-06-04 | H178: 16.09810122 | I178: 7.901898785
E179: 156 | F179: 6 | G179: 2011-06-05 | H179: 16.1160475 | I179: 7.883952495
E180: 157 | F180: 6 | G180: 2011-06-06 | H180: 16.13295636 | I180: 7.867043638
E181: 158 | F181: 6 | G181: 2011-06-07 | H181: 16.14882927 | I181: 7.85117073
E182: 159 | F182: 6 | G182: 2011-06-08 | H182: 16.16366778 | I182: 7.836332222
E183: 160 | F183: 6 | G183: 2011-06-09 | H183: 16.17747348 | I183: 7.822526524
E184: 161 | F184: 6 | G184: 2011-06-10 | H184: 16.19024797 | I184: 7.809752027
E185: 162 | F185: 6 | G185: 2011-06-11 | H185: 16.20199288 | I185: 7.79800712
E186: 163 | F186: 6 | G186: 2011-06-12 | H186: 16.21270978 | I186: 7.787290216
E187: 164 | F187: 6 | G187: 2011-06-13 | H187: 16.22240023 | I187: 7.777599766
E188: 165 | F188: 6 | G188: 2011-06-14 | H188: 16.23106572 | I188: 7.768934276
E189: 166 | F189: 6 | G189: 2011-06-15 | H189: 16.23870767 | I189: 7.761292326
E190: 167 | F190: 6 | G190: 2011-06-16 | H190: 16.24532742 | I190: 7.754672584
E191: 168 | F191: 6 | G191: 2011-06-17 | H191: 16.25092618 | I191: 7.749073818
E192: 169 | F192: 6 | G192: 2011-06-18 | H192: 16.25550509 | I192: 7.744494905
E193: 170 | F193: 6 | G193: 2011-06-19 | H193: 16.25906515 | I193: 7.740934849
E194: 171 | F194: 6 | G194: 2011-06-20 | H194: 16.26160722 | I194: 7.73839278
E195: 172 | F195: 6 | G195: 2011-06-21 | H195: 16.26313204 | I195: 7.736867964
E196: 173 | F196: 6 | G196: 2011-06-22 | H196: 16.26364019 | I196: 7.73635981
E197: 174 | F197: 6 | G197: 2011-06-23 | H197: 16.26313213 | I197: 7.73686787
E198: 175 | F198: 6 | G198: 2011-06-24 | H198: 16.26160816 | I198: 7.73839184
E199: 176 | F199: 6 | G199: 2011-06-25 | H199: 16.25906844 | I199: 7.74093156
E200: 177 | F200: 6 | G200: 2011-06-26 | H200: 16.25551299 | I200: 7.74448701
E201: 178 | F201: 6 | G201: 2011-06-27 | H201: 16.25094169 | I201: 7.749058307
E202: 179 | F202: 6 | G202: 2011-06-28 | H202: 16.2453543 | I202: 7.754645698
... 186 more rows

Sheet GHG savings (hidden)
C5: British Columbia
C7: British Columbia | D7: Greenhouse Gas Intensity1
D8: (g GHG/kWh electricity generated)
D9: 1990 | E9: 2008 | F9: 20092
C10: CO2 Intensity | D10: 17 | E10: 26 | F10: 24
C11: CH4 Intensity | D11: 0.004 | E11: 0.007 | F11: 0.006
C12: N2O Intensity | D12: 0.001 | E12: 0.0007 | F12: 0.0006
C13: Overall Intensity3 | D13: 17 | E13: 27 | F13: 25
C14: (g CO2 eq/kWh)
N20: =+I27/325652 -> 0
G21: HPS | I21: =+'GHG Calculator'!I19 -> 0 | J21: grams CO2e
I22: =+I21/1000000 -> 0 | J22: Tonnes CO2e per year
I23: =+I22*12 -> 0 | J23: Tonnes CO2e per 12 years
I24: =+I22*15 -> 0 | J24: Tonnes CO2e per 15 years
I25: =+I22*25 -> 0 | J25: Carbon price per year
B26: Carbon price | D26: =+'Data Input and Instructions'!C71 -> 25 | I26: =+I23*25 -> 0 | J26: Carbon price 12 years
I27: =+I24*25 -> 0 | J27: Carbon price 15 years
L28: Savings
G29: LED 30% | I29: =+I21*0.7 -> 0 | J29: grams CO2e | M29: =+I21-I29 -> 0 | N29: grams CO2e
I30: =+I29/1000000 -> 0 | J30: Tonnes CO2e per year | M30: =+M29/1000000 -> 0 | N30: Tonnes CO2e per year
I31: =+I30*12 -> 0 | J31: Tonnes CO2e per 12 years | M31: =+M30*12 -> 0 | N31: Tonnes CO2e per 12 years
I32: =+I30*15 -> 0 | J32: Tonnes CO2e per 15 years | M32: =+M30*15 -> 0 | N32: Tonnes CO2e per 15 years
I33: =+I30*D26 -> 0 | J33: Carbon price per year | M33: =+M30*D26 -> 0 | N33: Carbon price per year
I34: =+I31*D26 -> 0 | J34: Carbon price 12 years | M34: =+M31*D26 -> 0 | N34: Carbon price 12 years
I35: =+I32*D26 -> 0 | J35: Carbon price 15 years | M35: =+M32*D26 -> 0 | N35: Carbon price 15 years
G37: LED 50% | I37: =+I21*(1-'Data Input and Instructions'!C59) -> 0 | J37: grams CO2e | M37: =+I21-I37 -> 0 | N37: grams CO2e
I38: =+I37/1000000 -> 0 | J38: Tonnes CO2e per year | M38: =+M37/1000000 -> 0 | N38: Tonnes CO2e per year
I39: =+I38*12 -> 0 | J39: Tonnes CO2e per 12 years | M39: =+M38*12 -> 0 | N39: Tonnes CO2e per 12 years
I40: =+I38*15 -> 0 | J40: Tonnes CO2e per 15 years | M40: =+M38*15 -> 0 | N40: Tonnes CO2e per 15 years
I41: =+I38*D26 -> 0 | J41: Carbon price per year | M41: =+M38*D26 -> 0 | N41: Carbon price per year
I42: =+I41*12 -> 0 | J42: Carbon price 12 years | M42: =+M39*D26 -> 0 | N42: Carbon price 12 years
I43: =+I41*15 -> 0 | J43: Carbon price 15 years | M43: =+M40*D26 -> 0 | N43: Carbon price 15 years | O43: =+M43/325652 -> 0
G45: LED 70% | I45: =+I21*('Data Input and Instructions'!C60) -> 0 | J45: grams CO2e | M45: =+I21-I45 -> 0 | N45: grams CO2e
I46: =+I45/1000000 -> 0 | J46: Tonnes CO2e per year | M46: =+M45/1000000 -> 0 | N46: Tonnes CO2e per year
I47: =+I46*12 -> 0 | J47: Tonnes CO2e per 12years | M47: =+M46*12 -> 0 | N47: Tonnes CO2e per 12years
I48: =+I46*15 -> 0 | J48: Tonnes CO2e per 15 years | M48: =+M46*15 -> 0 | N48: Tonnes CO2e per 15 years
I49: =+I46*D26 -> 0 | J49: Carbon price per year | M49: =+M46*D26 -> 0 | N49: Carbon price per year
I50: =+I47*D26 -> 0 | J50: Carbon price 12 years | M50: =+M47*D26 -> 0 | N50: Carbon price 12 years
I51: =+I48*D26 -> 0 | J51: Carbon price 15 years | M51: =+M48*D26 -> 0 | N51: Carbon price 15 years | O51: =+I51/325652 -> 0

Sheet Assumptions (hidden)
F13: ASSUMPTIONS
A15: ASSETS BUSINESS AS USUAL | I15: ASSETS LED and/or adaptive controls 20%, 50% and 70 % energy efficiency
B16: · HPS fixtures average lifetime 15 years, HPS Light bulbs only 4-5 years. | I16: · LED average lifetime is estimated between 15 (without adaptive controls) and 16 years or more with adaptive controls
B17: · Business as Usual Scenario does not include capital cost; however, it considers a cost of replacement of the 5 percent of total intalled fixtures per year | I17: · Prices do not include installation of new poles, general assumption and recommendation is to reuse and adapt existing poles
B18: · 5% of HPS fixtures and 25% of HPS light bulds will be replaced annually. | I18: · Actual unit prices will depend on procurement process, for reference we are using prices provided by LED suppliers and City of Vancouver
B19: · This busines case does not take into account increasing quantities due to new installations (only repleacements of existing infraestructure) | I19: · This business case assumes additional incentive: 10% joint procurement discount. Other grants may be available from various sources, but are not yet included.
B20: . This busines case considers capital costs of HPS fixtures and HPS light bulbs | I20: · LED lights are constantly improving from bluish to warm white while costs are dropping. For this business case there is an estimation of 10 percent price reduction annually in capital, installation and consulting cost
I21: · Prices for adaptative controls are estimated to be 125dols additional to luminarie price
I22: · Costs for installation are estimated at 160 dols per luminarie, independently of the wattage
I23: · Costs for consulting and designing services are estimated at 1% of capital cost, this includes administration fee for procurement services
I24: · This busines case does not take into account increasing quantities due to new installations
A25: FINANCIAL BUSINESS AS USUAL | I25: FINANCIAL LED and/or adaptive controls 20%, 50% and 70 % energy efficiency
B26: · Business case evaluation is 15 years | I26: · Business case evaluation is 15 years
I27: · A 2 to 4 percent discount rate is recommended
I28: · Business plan considers a 1 to 5 years implementation period. longer or shorther implementation plans could be considererd
I29: · A discounted ROI calculation method has been used for this business case
I30: · Cost of financing is not being considered in this business case
A31: OPERATION BUSINESS AS USUAL | I31: OPERATION LED and/or adaptive controls 20%, 50% and 70 % energy efficiency
B32: · Prices on energy (.03 per watt per month) are estimated to raise 4.125% every year | I32: · Prices on energy (.03 per watt per month) are estimated to raise 4.125% every year
B33: · Maintance will be required for both, new LED luminaries and existing HPS | I33: · Prices on energy estimate 3 different energy efficiency scenarios: 20%, 50% and 70% with adaptative controls
B34: · For HPS, a 10 percent of the total plants is considered to require reactive maintance (failures and fixture repleacement). Also a 25 percent is estimated for scheduled maintance (this includes cleaning and re-lamping costs (changing HPS light bulbs) | I34: · The estimated potential from LED technology with Adaptive Controls represents a technical potential of ~50 GWh for roadway application and ~17 GWh for general public areas (example parks, pathways etc).
B35: · 90 percent of HPS spot maintance and group maintance belongs to labour | I35: · A 5 percent of the total LED cost is considered for reactive maintance (after guarantee has expired
B36: · Inflation is 2% affecting costs of maintance | I36: · Scheduled maintenance (cleaning) is required every 7 years
I37: · Inflation is 2% affecting costs of maintance
I38: · 10 years guarantee is considered
I39: · A .25% fee over capital cost and installation has been considered to cover for joint procurement services.
A41: OTHER ASSUMPTIONS | M41: `
A43: ='Data Input and Instructions'!B50 -> Ballast losses 50 Watts (%) | E43: ='Data Input and Instructions'!C50 -> 0.35
A44: ='Data Input and Instructions'!B51 -> Ballast losses 70 Watts (%) | E44: ='Data Input and Instructions'!C51 -> 0.3
A45: ='Data Input and Instructions'!B52 -> Ballast losses 100 Watts (%) | E45: ='Data Input and Instructions'!C52 -> 0.3
A46: ='Data Input and Instructions'!B53 -> Ballast losses 150 Watts (%) | E46: ='Data Input and Instructions'!C53 -> 0.25
A47: ='Data Input and Instructions'!B54 -> Ballast losses 200 Watts (%) | E47: ='Data Input and Instructions'!C54 -> 0.2
A48: ='Data Input and Instructions'!B55 -> Ballast losses 250 Watts (%) | E48: ='Data Input and Instructions'!C55 -> 0.18
A49: ='Data Input and Instructions'!B56 -> Ballast losses 400 Watts (%) | E49: ='Data Input and Instructions'!C56 -> 0.14
A50: ='Data Input and Instructions'!B57 -> Ballast losses 1000 Watts (%) | E50: ='Data Input and Instructions'!C57 -> 0.11
A51: ='Data Input and Instructions'!B59 -> Estimated energy efficiency of LED without adaptive controls (%) | E51: ='Data Input and Instructions'!C59 -> 0.5
A52: ='Data Input and Instructions'!B60 -> Estimated energy efficiency with LED + adaptive controls (%) | E52: ='Data Input and Instructions'!C60 -> 0.7
A53: ='Data Input and Instructions'!B61 -> Estimated efficiency with adaptive controls only (%) | E53: ='Data Input and Instructions'!C61 -> 0.2
A54: ='Data Input and Instructions'!B64 -> Electricity rate annual increase (%) | E54: ='Data Input and Instructions'!C64 -> 0.04125
A55: ='Data Input and Instructions'!B66 -> Joint procurement discounts (% of total cost) | E55: ='Data Input and Instructions'!C66 -> 0
A56: ='Data Input and Instructions'!B71 -> Carbon price ($ Cost of Carbon Neutral Government Program) | E56: ='Data Input and Instructions'!C71 -> 25
A57: ='Data Input and Instructions'!B72 -> Carbon price rate annual increase(%) | E57: ='Data Input and Instructions'!C72 -> 0
